Council Name,Date,TransNo,Amount � (Excl VAT),Supplier name,Supplier Category,Expense Area,Expense Type,Expense Code
London Borough of Sutton,02/06/2023,50360343,500.00,REDACTED - PERSONAL DATA,GRANTS & EX GRATIA PAYMENTS,Environment Housing and Neighbourhoods,"Grants, Contributions & Donations",A47005
London Borough of Sutton,20/06/2023,50367298,"9,460.80",A Step Beyond Ltd,SOCIAL SERVICES - OTHER,People's Services,Supported Living,A56088
London Borough of Sutton,20/06/2023,50367298,"3,547.80",A Step Beyond Ltd,SOCIAL SERVICES - OTHER,People's Services,Supported Living,A56088
London Borough of Sutton,20/06/2023,50367298,622.55,A Step Beyond Ltd,SOCIAL SERVICES - OTHER,People's Services,Supported Living,A56088
London Borough of Sutton,20/06/2023,50367298,929.18,A Step Beyond Ltd,SOCIAL SERVICES - OTHER,People's Services,Supported Living,A56088
London Borough of Sutton,19/06/2023,20052110,535.00,A T Sound Hire,OFFICE SERVICES,Resources,Equipment And Materials Purchase,A40000
London Borough of Sutton,01/05/2023,50363362,"30,070.00",A Wilderness Way Ltd,CHILDREN'S SERVICES - FOSTERING & ADOPTION SERVICES,People's Services,Residential Care-Children,A56115
London Borough of Sutton,09/06/2023,50363701,"4,096.12",Abbey Care Centre,SOCIAL SERVICES RESIDENTIAL,People's Services,Nursing Care - Ext Provider,A56025
London Borough of Sutton,09/06/2023,50363701,-878.84,Abbey Care Centre,SOCIAL SERVICES RESIDENTIAL,People's Services,Nursing Care - 3rd party top up payment,A56023
London Borough of Sutton,09/06/2023,50363825,"4,096.12",Abbey Care Centre,SOCIAL SERVICES RESIDENTIAL,People's Services,Nursing Care - Ext Provider,A56025
London Borough of Sutton,09/06/2023,50363825,-878.84,Abbey Care Centre,SOCIAL SERVICES RESIDENTIAL,People's Services,Nursing Care - 3rd party top up payment,A56023
London Borough of Sutton,09/06/2023,50363921,"3,848.24",Abbey Care Centre,SOCIAL SERVICES RESIDENTIAL,People's Services,Nursing Care Short Term,A56026
London Borough of Sutton,09/06/2023,50363921,-750.40,Abbey Care Centre,SOCIAL SERVICES RESIDENTIAL,People's Services,Nursing Care - 3rd party top up payment,A56023
London Borough of Sutton,09/06/2023,50363921,"-1,492.80",Abbey Care Centre,SOCIAL SERVICES RESIDENTIAL,People's Services,Nursing Care - 3rd party top up payment,A56023
London Borough of Sutton,09/06/2023,50364038,"3,848.24",Abbey Care Centre,SOCIAL SERVICES RESIDENTIAL,People's Services,Nursing Care Short Term,A56026
London Borough of Sutton,09/06/2023,50364038,-750.40,Abbey Care Centre,SOCIAL SERVICES RESIDENTIAL,People's Services,Nursing Care - 3rd party top up payment,A56023
London Borough of Sutton,09/06/2023,20051322,581.00,Abbott Toxicology Plc,CHILDREN'S SERVICE - OTHER,People's Services,Client Related Assessments,A56017
London Borough of Sutton,06/06/2023,50360577,"4,952.64",ABC Pre-School Beddington LLP,GRANTS & EX GRATIA PAYMENTS,People's Services,Payment - Nursery Funding,A51056
London Borough of Sutton,06/06/2023,50360710,912.60,ABC Pre-School Beddington LLP,GRANTS & EX GRATIA PAYMENTS,People's Services,Payment - Nursery Funding,A51056
London Borough of Sutton,29/05/2023,20050447,"6,794.87",Absolute Care Services Ltd,SOCIAL SERVICES DAY CARE,People's Services,Homecare Core Services,A56020
London Borough of Sutton,05/06/2023,20050981,"6,794.87",Absolute Care Services Ltd,SOCIAL SERVICES DAY CARE,People's Services,Homecare Core Services,A56020
London Borough of Sutton,05/06/2023,20050982,"5,926.51",Absolute Care Services Ltd,SOCIAL SERVICES DAY CARE,People's Services,Homecare Core Services,A56020
London Borough of Sutton,05/06/2023,20050983,"5,715.81",Absolute Care Services Ltd,SOCIAL SERVICES DAY CARE,People's Services,Homecare Core Services,A56020
London Borough of Sutton,03/04/2023,20051083,"5,715.81",Absolute Care Services Ltd,SOCIAL SERVICES DAY CARE,People's Services,Homecare Core Services,A56020
London Borough of Sutton,15/05/2023,20051090,"6,794.87",Absolute Care Services Ltd,SOCIAL SERVICES DAY CARE,People's Services,Homecare Core Services,A56020
London Borough of Sutton,22/05/2023,20051092,"6,794.87",Absolute Care Services Ltd,SOCIAL SERVICES DAY CARE,People's Services,Homecare Core Services,A56020
London Borough of Sutton,15/05/2023,20051344,"5,715.81",Absolute Care Services Ltd,SOCIAL SERVICES DAY CARE,People's Services,Homecare Core Services,A56020
London Borough of Sutton,29/05/2023,20051345,"5,715.81",Absolute Care Services Ltd,SOCIAL SERVICES DAY CARE,People's Services,Homecare Core Services,A56020
London Borough of Sutton,22/05/2023,20051346,"5,715.81",Absolute Care Services Ltd,SOCIAL SERVICES DAY CARE,People's Services,Homecare Core Services,A56020
London Borough of Sutton,29/05/2023,20051348,"5,926.51",Absolute Care Services Ltd,SOCIAL SERVICES DAY CARE,People's Services,Homecare Core Services,A56020
London Borough of Sutton,22/05/2023,20051349,"5,926.51",Absolute Care Services Ltd,SOCIAL SERVICES DAY CARE,People's Services,Homecare Core Services,A56020
London Borough of Sutton,15/05/2023,20051350,"5,926.51",Absolute Care Services Ltd,SOCIAL SERVICES DAY CARE,People's Services,Homecare Core Services,A56020
London Borough of Sutton,12/06/2023,20051517,"6,794.87",Absolute Care Services Ltd,SOCIAL SERVICES DAY CARE,People's Services,Homecare Core Services,A56020
London Borough of Sutton,01/06/2023,20052057,"1,467.76",Absolute Care Services Ltd,SOCIAL SERVICES DAY CARE,People's Services,Building Rents,A22005
London Borough of Sutton,12/06/2023,20052058,"5,715.81",Absolute Care Services Ltd,SOCIAL SERVICES DAY CARE,People's Services,Homecare Core Services,A56020
London Borough of Sutton,12/06/2023,20052059,"5,926.51",Absolute Care Services Ltd,SOCIAL SERVICES DAY CARE,People's Services,Homecare Core Services,A56020
London Borough of Sutton,19/06/2023,20052349,"5,715.81",Absolute Care Services Ltd,SOCIAL SERVICES DAY CARE,People's Services,Homecare Core Services,A56020
London Borough of Sutton,19/06/2023,20052350,"6,794.87",Absolute Care Services Ltd,SOCIAL SERVICES DAY CARE,People's Services,Homecare Core Services,A56020
London Borough of Sutton,19/06/2023,20052351,"5,926.51",Absolute Care Services Ltd,SOCIAL SERVICES DAY CARE,People's Services,Homecare Core Services,A56020
London Borough of Sutton,16/04/2023,50361557,611.04,Absolute Care Services Ltd,SOCIAL SERVICES DAY CARE,People's Services,Home Care Services,A56019
London Borough of Sutton,16/04/2023,50361557,160.80,Absolute Care Services Ltd,SOCIAL SERVICES DAY CARE,People's Services,Home Care Services,A56019
London Borough of Sutton,21/05/2023,50361572,105.61,Absolute Care Services Ltd,SOCIAL SERVICES DAY CARE,People's Services,Home Care Services,A56019
London Borough of Sutton,21/05/2023,50361572,457.19,Absolute Care Services Ltd,SOCIAL SERVICES DAY CARE,People's Services,Home Care Services,A56019
London Borough of Sutton,30/04/2023,50361594,570.84,Absolute Care Services Ltd,SOCIAL SERVICES DAY CARE,People's Services,Home Care Services,A56019
London Borough of Sutton,30/04/2023,50361594,160.80,Absolute Care Services Ltd,SOCIAL SERVICES DAY CARE,People's Services,Home Care Services,A56019
London Borough of Sutton,21/05/2023,50361597,546.19,Absolute Care Services Ltd,SOCIAL SERVICES DAY CARE,People's Services,Home Care Services,A56019
London Borough of Sutton,21/05/2023,50361597,173.39,Absolute Care Services Ltd,SOCIAL SERVICES DAY CARE,People's Services,Home Care Services,A56019
London Borough of Sutton,21/05/2023,50361614,16.08,Absolute Care Services Ltd,SOCIAL SERVICES DAY CARE,People's Services,Home Care Services,A56019
London Borough of Sutton,21/05/2023,50361614,506.52,Absolute Care Services Ltd,SOCIAL SERVICES DAY CARE,People's Services,Home Care Services,A56019
London Borough of Sutton,21/05/2023,50361638,522.60,Absolute Care Services Ltd,SOCIAL SERVICES DAY CARE,People's Services,Home Care Services,A56019
London Borough of Sutton,07/05/2023,50361667,594.96,Absolute Care Services Ltd,SOCIAL SERVICES DAY CARE,People's Services,Home Care Services,A56019
London Borough of Sutton,07/05/2023,50361667,160.80,Absolute Care Services Ltd,SOCIAL SERVICES DAY CARE,People's Services,Home Care Services,A56019
London Borough of Sutton,14/05/2023,50361678,603.00,Absolute Care Services Ltd,SOCIAL SERVICES DAY CARE,People's Services,Home Care Services,A56019
London Borough of Sutton,14/05/2023,50361678,160.80,Absolute Care Services Ltd,SOCIAL SERVICES DAY CARE,People's Services,Home Care Services,A56019
London Borough of Sutton,21/05/2023,50361739,620.62,Absolute Care Services Ltd,SOCIAL SERVICES DAY CARE,People's Services,Home Care Services,A56019
London Borough of Sutton,21/05/2023,50361763,118.20,Absolute Care Services Ltd,SOCIAL SERVICES DAY CARE,People's Services,Home Care Services,A56019
London Borough of Sutton,21/05/2023,50361763,896.56,Absolute Care Services Ltd,SOCIAL SERVICES DAY CARE,People's Services,Home Care Services,A56019
London Borough of Sutton,21/05/2023,50361774,45.01,Absolute Care Services Ltd,SOCIAL SERVICES DAY CARE,People's Services,Home Care Services,A56019
London Borough of Sutton,21/05/2023,50361774,772.61,Absolute Care Services Ltd,SOCIAL SERVICES DAY CARE,People's Services,Home Care Services,A56019
London Borough of Sutton,21/05/2023,50361780,684.77,Absolute Care Services Ltd,SOCIAL SERVICES DAY CARE,People's Services,Home Care Services,A56019
London Borough of Sutton,28/05/2023,50362240,543.14,Absolute Care Services Ltd,SOCIAL SERVICES DAY CARE,People's Services,Home Care Services,A56019
London Borough of Sutton,28/05/2023,50362240,172.42,Absolute Care Services Ltd,SOCIAL SERVICES DAY CARE,People's Services,Home Care Services,A56019
London Borough of Sutton,28/05/2023,50362246,16.08,Absolute Care Services Ltd,SOCIAL SERVICES DAY CARE,People's Services,Home Care Services,A56019
London Borough of Sutton,28/05/2023,50362246,506.52,Absolute Care Services Ltd,SOCIAL SERVICES DAY CARE,People's Services,Home Care Services,A56019
London Borough of Sutton,28/05/2023,50362592,105.61,Absolute Care Services Ltd,SOCIAL SERVICES DAY CARE,People's Services,Home Care Services,A56019
London Borough of Sutton,28/05/2023,50362592,457.19,Absolute Care Services Ltd,SOCIAL SERVICES DAY CARE,People's Services,Home Care Services,A56019
London Borough of Sutton,28/05/2023,50362595,620.62,Absolute Care Services Ltd,SOCIAL SERVICES DAY CARE,People's Services,Home Care Services,A56019
London Borough of Sutton,28/05/2023,50362619,45.01,Absolute Care Services Ltd,SOCIAL SERVICES DAY CARE,People's Services,Home Care Services,A56019
London Borough of Sutton,28/05/2023,50362619,772.61,Absolute Care Services Ltd,SOCIAL SERVICES DAY CARE,People's Services,Home Care Services,A56019
London Borough of Sutton,28/05/2023,50362631,689.50,Absolute Care Services Ltd,SOCIAL SERVICES DAY CARE,People's Services,Home Care Services,A56019
London Borough of Sutton,28/05/2023,50362644,522.60,Absolute Care Services Ltd,SOCIAL SERVICES DAY CARE,People's Services,Home Care Services,A56019
London Borough of Sutton,04/06/2023,50362901,105.61,Absolute Care Services Ltd,SOCIAL SERVICES DAY CARE,People's Services,Home Care Services,A56019
London Borough of Sutton,04/06/2023,50362901,457.19,Absolute Care Services Ltd,SOCIAL SERVICES DAY CARE,People's Services,Home Care Services,A56019
London Borough of Sutton,04/06/2023,50362962,620.62,Absolute Care Services Ltd,SOCIAL SERVICES DAY CARE,People's Services,Home Care Services,A56019
London Borough of Sutton,04/06/2023,50362979,45.01,Absolute Care Services Ltd,SOCIAL SERVICES DAY CARE,People's Services,Home Care Services,A56019
London Borough of Sutton,04/06/2023,50362979,772.61,Absolute Care Services Ltd,SOCIAL SERVICES DAY CARE,People's Services,Home Care Services,A56019
London Borough of Sutton,04/06/2023,50364368,522.60,Absolute Care Services Ltd,SOCIAL SERVICES DAY CARE,People's Services,Home Care Services,A56019
London Borough of Sutton,04/06/2023,50364434,586.92,Absolute Care Services Ltd,SOCIAL SERVICES DAY CARE,People's Services,Home Care Services,A56019
London Borough of Sutton,04/06/2023,50364434,160.80,Absolute Care Services Ltd,SOCIAL SERVICES DAY CARE,People's Services,Home Care Services,A56019
London Borough of Sutton,04/06/2023,50364440,684.77,Absolute Care Services Ltd,SOCIAL SERVICES DAY CARE,People's Services,Home Care Services,A56019
London Borough of Sutton,04/06/2023,50364441,16.08,Absolute Care Services Ltd,SOCIAL SERVICES DAY CARE,People's Services,Home Care Services,A56019
London Borough of Sutton,04/06/2023,50364441,506.52,Absolute Care Services Ltd,SOCIAL SERVICES DAY CARE,People's Services,Home Care Services,A56019
London Borough of Sutton,11/06/2023,50366590,105.61,Absolute Care Services Ltd,SOCIAL SERVICES DAY CARE,People's Services,Home Care Services,A56019
London Borough of Sutton,11/06/2023,50366590,457.19,Absolute Care Services Ltd,SOCIAL SERVICES DAY CARE,People's Services,Home Care Services,A56019
London Borough of Sutton,11/06/2023,50366618,620.62,Absolute Care Services Ltd,SOCIAL SERVICES DAY CARE,People's Services,Home Care Services,A56019
London Borough of Sutton,11/06/2023,50366622,896.56,Absolute Care Services Ltd,SOCIAL SERVICES DAY CARE,People's Services,Home Care Services,A56019
London Borough of Sutton,11/06/2023,50366622,118.20,Absolute Care Services Ltd,SOCIAL SERVICES DAY CARE,People's Services,Home Care Services,A56019
London Borough of Sutton,11/06/2023,50366635,45.01,Absolute Care Services Ltd,SOCIAL SERVICES DAY CARE,People's Services,Home Care Services,A56019
London Borough of Sutton,11/06/2023,50366635,772.61,Absolute Care Services Ltd,SOCIAL SERVICES DAY CARE,People's Services,Home Care Services,A56019
London Borough of Sutton,11/06/2023,50366640,689.50,Absolute Care Services Ltd,SOCIAL SERVICES DAY CARE,People's Services,Home Care Services,A56019
London Borough of Sutton,11/06/2023,50366641,16.08,Absolute Care Services Ltd,SOCIAL SERVICES DAY CARE,People's Services,Home Care Services,A56019
London Borough of Sutton,11/06/2023,50366641,506.52,Absolute Care Services Ltd,SOCIAL SERVICES DAY CARE,People's Services,Home Care Services,A56019
London Borough of Sutton,11/06/2023,50366650,522.60,Absolute Care Services Ltd,SOCIAL SERVICES DAY CARE,People's Services,Home Care Services,A56019
London Borough of Sutton,23/06/2023,50370752,118.20,Absolute Care Services Ltd,SOCIAL SERVICES DAY CARE,People's Services,Home Care Services,A56019
London Borough of Sutton,23/06/2023,50370752,896.35,Absolute Care Services Ltd,SOCIAL SERVICES DAY CARE,People's Services,Home Care Services,A56019
London Borough of Sutton,23/06/2023,50370754,832.14,Absolute Care Services Ltd,SOCIAL SERVICES DAY CARE,People's Services,Home Care Services,A56019
London Borough of Sutton,18/06/2023,50371758,118.20,Absolute Care Services Ltd,SOCIAL SERVICES DAY CARE,People's Services,Home Care Services,A56019
London Borough of Sutton,18/06/2023,50371758,896.56,Absolute Care Services Ltd,SOCIAL SERVICES DAY CARE,People's Services,Home Care Services,A56019
London Borough of Sutton,18/06/2023,50371760,522.60,Absolute Care Services Ltd,SOCIAL SERVICES DAY CARE,People's Services,Home Care Services,A56019
London Borough of Sutton,18/06/2023,50371792,45.01,Absolute Care Services Ltd,SOCIAL SERVICES DAY CARE,People's Services,Home Care Services,A56019
London Borough of Sutton,18/06/2023,50371792,772.61,Absolute Care Services Ltd,SOCIAL SERVICES DAY CARE,People's Services,Home Care Services,A56019
London Borough of Sutton,18/06/2023,50371862,522.60,Absolute Care Services Ltd,SOCIAL SERVICES DAY CARE,People's Services,Home Care Services,A56019
London Borough of Sutton,18/06/2023,50371878,689.50,Absolute Care Services Ltd,SOCIAL SERVICES DAY CARE,People's Services,Home Care Services,A56019
London Borough of Sutton,18/06/2023,50371879,16.08,Absolute Care Services Ltd,SOCIAL SERVICES DAY CARE,People's Services,Home Care Services,A56019
London Borough of Sutton,18/06/2023,50371879,506.52,Absolute Care Services Ltd,SOCIAL SERVICES DAY CARE,People's Services,Home Care Services,A56019
London Borough of Sutton,18/06/2023,50371905,105.61,Absolute Care Services Ltd,SOCIAL SERVICES DAY CARE,People's Services,Home Care Services,A56019
London Borough of Sutton,18/06/2023,50371905,457.19,Absolute Care Services Ltd,SOCIAL SERVICES DAY CARE,People's Services,Home Care Services,A56019
London Borough of Sutton,18/06/2023,50371923,620.62,Absolute Care Services Ltd,SOCIAL SERVICES DAY CARE,People's Services,Home Care Services,A56019
London Borough of Sutton,31/01/2023,20050484,"1,080.00",Access Independent Ltd,MANAGEMENT & TRAINING SERVICES,Health and Wellbeing,Mobility Scheme for the Disabled,A61015
London Borough of Sutton,31/05/2023,20050569,"162,866.65",Access UK Limited,TAXI AND COACH HIRE,People's Services,Childrens Social Care Transport,A32009
London Borough of Sutton,07/06/2023,20051119,"48,657.15",Access UK Limited,TAXI AND COACH HIRE,People's Services,Childrens Social Care Transport,A32009
London Borough of Sutton,14/06/2023,20051635,"192,137.20",Access UK Limited,TAXI AND COACH HIRE,People's Services,Childrens Social Care Transport,A32009
London Borough of Sutton,21/06/2023,20052264,"235,030.20",Access UK Limited,TAXI AND COACH HIRE,People's Services,Childrens Social Care Transport,A32009
London Borough of Sutton,28/06/2023,20052666,"150,174.78",Access UK Limited,TAXI AND COACH HIRE,People's Services,Childrens Social Care Transport,A32009
London Borough of Sutton,01/06/2023,50362025,"5,410.61",Accomplish Group Ltd,SOCIAL SERVICES RESIDENTIAL,People's Services,Supported Living,A56088
London Borough of Sutton,26/06/2023,50371296,"4,671.40",Accomplish Group Ltd,SOCIAL SERVICES RESIDENTIAL,People's Services,Supported Living,A56088
London Borough of Sutton,26/06/2023,50371297,"3,080.00",Accomplish Group Ltd,SOCIAL SERVICES RESIDENTIAL,People's Services,Supported Living,A56088
London Borough of Sutton,15/11/2021,50361251,551.57,Achieve Together Limited,SOCIAL SERVICES RESIDENTIAL,People's Services,Day Care Services,A56021
London Borough of Sutton,15/11/2021,50361252,617.76,Achieve Together Limited,SOCIAL SERVICES RESIDENTIAL,People's Services,Day Care Services,A56021
London Borough of Sutton,15/11/2022,50361253,"1,235.52",Achieve Together Limited,SOCIAL SERVICES RESIDENTIAL,People's Services,Day Care Services,A56021
London Borough of Sutton,15/11/2022,50361255,617.76,Achieve Together Limited,SOCIAL SERVICES RESIDENTIAL,People's Services,Day Care Services,A56021
London Borough of Sutton,09/06/2023,50363467,-438.80,Achieve Together Limited,SOCIAL SERVICES RESIDENTIAL,People's Services,Residential Care - Client Cont ( Net Paymt ),A56113
London Borough of Sutton,09/06/2023,50363467,"6,845.04",Achieve Together Limited,SOCIAL SERVICES RESIDENTIAL,People's Services,Residential Care - Ext Provider,A56114
London Borough of Sutton,09/06/2023,50363566,"8,103.64",Achieve Together Limited,SOCIAL SERVICES RESIDENTIAL,People's Services,Residential Care - Ext Provider,A56114
London Borough of Sutton,09/06/2023,50363566,-402.80,Achieve Together Limited,SOCIAL SERVICES RESIDENTIAL,People's Services,Residential Care - Client Cont ( Net Paymt ),A56113
London Borough of Sutton,09/06/2023,50363896,"5,810.56",Achieve Together Limited,SOCIAL SERVICES RESIDENTIAL,People's Services,Residential Care - Ext Provider,A56114
London Borough of Sutton,09/06/2023,50363901,"7,303.88",Achieve Together Limited,SOCIAL SERVICES RESIDENTIAL,People's Services,Residential Care - Ext Provider,A56114
London Borough of Sutton,09/06/2023,50363911,"5,100.00",Achieve Together Limited,SOCIAL SERVICES RESIDENTIAL,People's Services,Residential Care - Ext Provider,A56114
London Borough of Sutton,09/06/2023,50363951,-511.80,Achieve Together Limited,SOCIAL SERVICES RESIDENTIAL,People's Services,Residential Care - Client Cont ( Net Paymt ),A56113
London Borough of Sutton,09/06/2023,50363951,"4,682.44",Achieve Together Limited,SOCIAL SERVICES RESIDENTIAL,People's Services,Residential Care - Ext Provider,A56114
London Borough of Sutton,09/06/2023,50364034,-471.80,Achieve Together Limited,SOCIAL SERVICES RESIDENTIAL,People's Services,Residential Care - Client Cont ( Net Paymt ),A56113
London Borough of Sutton,09/06/2023,50364034,390.00,Achieve Together Limited,SOCIAL SERVICES RESIDENTIAL,People's Services,One to One Care,A56108
London Borough of Sutton,09/06/2023,50364034,"4,375.48",Achieve Together Limited,SOCIAL SERVICES RESIDENTIAL,People's Services,Residential Care - Ext Provider,A56114
London Borough of Sutton,09/06/2023,50363463,-438.80,ACHIEVE TOGETHER LTD,SOCIAL SERVICES RESIDENTIAL,People's Services,Residential Care - Client Cont ( Net Paymt ),A56113
London Borough of Sutton,09/06/2023,50363463,"5,620.60",ACHIEVE TOGETHER LTD,SOCIAL SERVICES RESIDENTIAL,People's Services,Residential Care - Ext Provider,A56114
London Borough of Sutton,09/06/2023,50363532,"11,047.88",ACHIEVE TOGETHER LTD,SOCIAL SERVICES RESIDENTIAL,People's Services,Residential Care - Ext Provider,A56114
London Borough of Sutton,09/06/2023,50363552,"4,653.76",ACHIEVE TOGETHER LTD,SOCIAL SERVICES RESIDENTIAL,People's Services,Residential Care - Ext Provider,A56114
London Borough of Sutton,20/06/2023,50367201,"2,311.20",ACHIEVE TOGETHER LTD,SOCIAL SERVICES RESIDENTIAL,People's Services,Supported Living,A56088
London Borough of Sutton,20/06/2023,50367201,599.45,ACHIEVE TOGETHER LTD,SOCIAL SERVICES RESIDENTIAL,People's Services,Supported Living,A56088
London Borough of Sutton,20/06/2023,50367201,620.83,ACHIEVE TOGETHER LTD,SOCIAL SERVICES RESIDENTIAL,People's Services,Supported Living,A56088
London Borough of Sutton,20/06/2023,50367224,"2,845.33",ACHIEVE TOGETHER LTD,SOCIAL SERVICES RESIDENTIAL,People's Services,Supported Living,A56088
London Borough of Sutton,20/06/2023,50367224,"3,081.60",ACHIEVE TOGETHER LTD,SOCIAL SERVICES RESIDENTIAL,People's Services,Supported Living,A56088
London Borough of Sutton,20/06/2023,50367263,"1,027.20",ACHIEVE TOGETHER LTD,SOCIAL SERVICES RESIDENTIAL,People's Services,Supported Living,A56088
London Borough of Sutton,20/06/2023,50367263,"1,027.20",ACHIEVE TOGETHER LTD,SOCIAL SERVICES RESIDENTIAL,People's Services,Supported Living,A56088
London Borough of Sutton,20/06/2023,50367263,859.45,ACHIEVE TOGETHER LTD,SOCIAL SERVICES RESIDENTIAL,People's Services,Supported Living,A56088
London Borough of Sutton,20/06/2023,50367264,"2,568.00",ACHIEVE TOGETHER LTD,SOCIAL SERVICES RESIDENTIAL,People's Services,Supported Living,A56088
London Borough of Sutton,03/05/2023,50363352,"16,784.33",Acorn Homes UK Ltd,CHILDREN'S SERVICES - FOSTERING & ADOPTION SERVICES,People's Services,Residential Care-Children,A56115
London Borough of Sutton,09/06/2023,50363591,"6,147.03",Acorn Lodge,SOCIAL SERVICES RESIDENTIAL,People's Services,Residential Care - Ext Provider,A56114
London Borough of Sutton,09/06/2023,50363541,"9,947.82",Acorn Residential Home,SOCIAL SERVICES RESIDENTIAL,People's Services,Residential Care - Ext Provider,A56114
London Borough of Sutton,12/06/2023,50367766,"7,381.00",Activate Learning,ACADEMIC INSTNS - OTHER,People's Services,Top-up Funding,A51016
London Borough of Sutton,09/06/2023,50363487,"6,441.84",Active Prospects,SOCIAL SERVICES DAY CARE,People's Services,Residential Care - Ext Provider,A56114
London Borough of Sutton,09/06/2023,50363589,"8,918.80",Active Prospects,SOCIAL SERVICES DAY CARE,People's Services,Residential Care - Ext Provider,A56114
London Borough of Sutton,09/06/2023,50363589,-438.80,Active Prospects,SOCIAL SERVICES DAY CARE,People's Services,Residential Care - Client Cont ( Net Paymt ),A56113
London Borough of Sutton,09/06/2023,50363609,"1,458.00",Admiral Healthcare Ltd,SOCIAL SERVICES RESIDENTIAL,People's Services,Residential Care - Ext Provider,A56114
London Borough of Sutton,12/06/2023,20052078,"8,347.39",Advanced Demand Side Management Ltd,CONFERENCES,Resources,Water Services,A24005
London Borough of Sutton,31/05/2023,20052255,"1,856.66",Advanced Demand Side Management Ltd,CONFERENCES,Resources,Water Services,A24005
London Borough of Sutton,31/05/2023,20052256,"1,201.91",Advanced Demand Side Management Ltd,CONFERENCES,Resources,Water Services,A24005
London Borough of Sutton,24/05/2023,50363338,"3,715.35",Affinity Fostering Services Ltd,CHILDREN'S SERVICES - FOSTERING & ADOPTION SERVICES,People's Services,Foster Parents Support,A44110
London Borough of Sutton,24/05/2023,50363339,"3,527.49",Affinity Fostering Services Ltd,CHILDREN'S SERVICES - FOSTERING & ADOPTION SERVICES,People's Services,Foster Parents Support,A44110
London Borough of Sutton,24/05/2023,50363340,"3,494.01",Affinity Fostering Services Ltd,CHILDREN'S SERVICES - FOSTERING & ADOPTION SERVICES,People's Services,Foster Parents Support,A44110
London Borough of Sutton,24/05/2023,50363387,"3,317.31",Affinity Fostering Services Ltd,CHILDREN'S SERVICES - FOSTERING & ADOPTION SERVICES,People's Services,Foster Parents Support,A44110
London Borough of Sutton,06/06/2023,20051106,834.00,African & Caribbean Heritage Association,SUNDRY SUPPLIER - ENV SERVICES,Resources,"Grants, Contributions & Donations",A47005
London Borough of Sutton,01/05/2023,20050670,"28,349.00",Age UK Sutton,SOCIAL SERVICES - OTHER,People's Services,Provider Contract Payments,A44290
London Borough of Sutton,20/06/2023,50367215,"1,958.92",Agincare Enable Limited,SOCIAL SERVICES RESIDENTIAL,People's Services,One to One Care,A56108
London Borough of Sutton,20/06/2023,50367215,"1,958.92",Agincare Enable Limited,SOCIAL SERVICES RESIDENTIAL,People's Services,Supported Living,A56088
London Borough of Sutton,20/06/2023,50367215,441.00,Agincare Enable Limited,SOCIAL SERVICES RESIDENTIAL,People's Services,Supported Living,A56088
London Borough of Sutton,09/06/2023,50363548,"7,793.40",Leighton House Ltd,SOCIAL SERVICES RESIDENTIAL,People's Services,Residential Care - Ext Provider,A56114
London Borough of Sutton,09/06/2023,50363558,"8,716.00",Aitch Care Homes,SOCIAL SERVICES RESIDENTIAL,People's Services,Residential Care - Ext Provider,A56114
London Borough of Sutton,15/06/2023,20051738,"3,916.28",Albany Housing YP Ltd,CARE LEAVERS,People's Services,Approved Lodgings,A61000
London Borough of Sutton,26/05/2023,20051459,950.00,Alderton Associates Ltd,TEMP STAFF & CONSULTANCY,HRA,Payments to Contractors,C14000
London Borough of Sutton,29/03/2023,20050826,"1,750.00",ALKINT SERVICES LTD,"SOCIAL SERVICES - DOLS, GUM & BIA ASSESSMENTS",People's Services,Client Related Assessments,A56017
London Borough of Sutton,29/03/2023,20050838,"1,750.00",ALKINT SERVICES LTD,"SOCIAL SERVICES - DOLS, GUM & BIA ASSESSMENTS",People's Services,Client Related Assessments,A56017
London Borough of Sutton,29/03/2023,20050840,"1,750.00",ALKINT SERVICES LTD,"SOCIAL SERVICES - DOLS, GUM & BIA ASSESSMENTS",People's Services,Client Related Assessments,A56017
London Borough of Sutton,29/03/2023,20050841,"1,750.00",ALKINT SERVICES LTD,"SOCIAL SERVICES - DOLS, GUM & BIA ASSESSMENTS",People's Services,Client Related Assessments,A56017
London Borough of Sutton,24/05/2023,20051791,"4,980.00",All Aspects Paving Limited,SUNDRY SUPPLIER - FINANCE,Environment Housing and Neighbourhoods,Grants Given For Capital Purposes,C20004
London Borough of Sutton,02/06/2023,20050873,867.50,All in Wallington,SUNDRY SUPPLIER - ENV SERVICES,Resources,"Grants, Contributions & Donations",A47005
London Borough of Sutton,06/06/2023,50360794,"168,131.48",All Saints Benhilton C Of E,GRANTS & EX GRATIA PAYMENTS,People's Services,Payments to Schools,A51013
London Borough of Sutton,06/06/2023,50360833,"13,174.20",All Saints Benhilton C Of E,GRANTS & EX GRATIA PAYMENTS,People's Services,Payment - Nursery Funding,A51056
London Borough of Sutton,06/06/2023,50360894,"8,167.00",All Saints Benhilton C Of E,GRANTS & EX GRATIA PAYMENTS,People's Services,Payment - Primary PE and Sport Premium,A51028
London Borough of Sutton,06/06/2023,50360915,"2,175.00",All Saints Benhilton C Of E,GRANTS & EX GRATIA PAYMENTS,People's Services,Payment - Covid 19 Recovery Premium,A51039
London Borough of Sutton,06/06/2023,50360945,"3,982.50",All Saints Benhilton C Of E,GRANTS & EX GRATIA PAYMENTS,People's Services,Payment - school led tutoring grant,A51060
London Borough of Sutton,13/06/2023,50364882,870.00,All Saints Benhilton C Of E,GRANTS & EX GRATIA PAYMENTS,Resources,"Grants, Contributions & Donations",A47005
London Borough of Sutton,06/06/2023,50365538,"-2,051.30",All Saints Benhilton C Of E,GRANTS & EX GRATIA PAYMENTS,People's Services,Top-up Funding,A51016
London Borough of Sutton,06/06/2023,50360834,"12,414.15",All Saints Carshalton Primary School,GRANTS & EX GRATIA PAYMENTS,People's Services,Payment - Nursery Funding,A51056
London Borough of Sutton,12/06/2023,50365197,"20,629.99",All4One Services,SOCIAL SERVICES RESIDENTIAL,People's Services,Supported Living,A56088
London Borough of Sutton,09/06/2023,50363638,"4,621.64",Allied Care (Mhs) Ltd,SOCIAL SERVICES - OTHER,People's Services,Residential Care - Ext Provider,A56114
London Borough of Sutton,31/05/2023,20050974,683.62,Allied Publicity Services (Manchester) Ltd,REPROGRAPHICS & PHOTOGRAPHY,Health and Wellbeing,Mobility Scheme for the Disabled,A61015
London Borough of Sutton,01/06/2023,20050968,"1,493.14",Allstar Business Solutions,FUEL AND VEHICLE SUPPLIES,Environment Housing and Neighbourhoods,Vehicles -  Fuel,A30015
London Borough of Sutton,09/06/2023,50363690,"5,397.60",Allswell Care Services Ltd,SOCIAL SERVICES RESIDENTIAL,People's Services,Residential Care - Ext Provider,A56114
London Borough of Sutton,09/06/2023,50363762,"5,397.60",Allswell Care Services Ltd,SOCIAL SERVICES RESIDENTIAL,People's Services,Residential Care - Ext Provider,A56114
London Borough of Sutton,09/06/2023,50363946,"6,609.52",Allswell Care Services Ltd,SOCIAL SERVICES RESIDENTIAL,People's Services,Residential Care - Ext Provider,A56114
London Borough of Sutton,25/04/2023,50364043,998.84,Alpenbest Limited,SOCIAL SERVICES DAY CARE,People's Services,Home Care Services,A56019
London Borough of Sutton,18/05/2023,50364058,"1,978.52",Alpenbest Limited,SOCIAL SERVICES DAY CARE,People's Services,Home Care Services,A56019
London Borough of Sutton,25/04/2023,50365570,"1,665.86",Alpenbest Limited,SOCIAL SERVICES DAY CARE,People's Services,Home Care Services,A56019
London Borough of Sutton,25/04/2023,50365572,"5,259.84",Alpenbest Limited,SOCIAL SERVICES DAY CARE,People's Services,Home Care Services,A56019
London Borough of Sutton,26/04/2023,50365573,"5,351.96",Alpenbest Limited,SOCIAL SERVICES DAY CARE,People's Services,Home Care Services,A56019
London Borough of Sutton,26/04/2023,50365574,"1,619.66",Alpenbest Limited,SOCIAL SERVICES DAY CARE,People's Services,Home Care Services,A56019
London Borough of Sutton,18/05/2023,50365575,"1,638.59",Alpenbest Limited,SOCIAL SERVICES DAY CARE,People's Services,Home Care Services,A56019
London Borough of Sutton,18/05/2023,50365576,"5,351.96",Alpenbest Limited,SOCIAL SERVICES DAY CARE,People's Services,Home Care Services,A56019
London Borough of Sutton,25/04/2023,50365579,"1,084.25",Alpenbest Limited,SOCIAL SERVICES DAY CARE,People's Services,Home Care Services,A56019
London Borough of Sutton,26/04/2023,50365580,580.25,Alpenbest Limited,SOCIAL SERVICES DAY CARE,People's Services,Home Care Services,A56019
London Borough of Sutton,18/05/2023,50365581,765.03,Alpenbest Limited,SOCIAL SERVICES DAY CARE,People's Services,Home Care Services,A56019
London Borough of Sutton,26/04/2023,50365582,"1,835.36",Alpenbest Limited,SOCIAL SERVICES DAY CARE,People's Services,Home Care Services,A56019
London Borough of Sutton,26/04/2023,50365583,853.76,Alpenbest Limited,SOCIAL SERVICES DAY CARE,People's Services,Home Care Services,A56019
London Borough of Sutton,25/04/2023,50365584,865.59,Alpenbest Limited,SOCIAL SERVICES DAY CARE,People's Services,Home Care Services,A56019
London Borough of Sutton,26/04/2023,50366300,"1,619.66",Alpenbest Limited,SOCIAL SERVICES DAY CARE,People's Services,Home Care Services,A56019
London Borough of Sutton,26/04/2023,50366301,"1,128.12",Alpenbest Limited,SOCIAL SERVICES DAY CARE,People's Services,Home Care Services,A56019
London Borough of Sutton,26/04/2023,50366302,"1,205.66",Alpenbest Limited,SOCIAL SERVICES DAY CARE,People's Services,Home Care Services,A56019
London Borough of Sutton,26/04/2023,50366305,"1,619.66",Alpenbest Limited,SOCIAL SERVICES DAY CARE,People's Services,Home Care Services,A56019
London Borough of Sutton,26/04/2023,50366306,"1,619.66",Alpenbest Limited,SOCIAL SERVICES DAY CARE,People's Services,Home Care Services,A56019
London Borough of Sutton,18/05/2023,50366447,906.43,Alpenbest Limited,SOCIAL SERVICES DAY CARE,People's Services,Home Care Services,A56019
London Borough of Sutton,18/05/2023,50366448,"1,619.66",Alpenbest Limited,SOCIAL SERVICES DAY CARE,People's Services,Home Care Services,A56019
London Borough of Sutton,18/05/2023,50366449,"1,619.66",Alpenbest Limited,SOCIAL SERVICES DAY CARE,People's Services,Home Care Services,A56019
London Borough of Sutton,18/05/2023,50366450,"1,723.79",Alpenbest Limited,SOCIAL SERVICES DAY CARE,People's Services,Home Care Services,A56019
London Borough of Sutton,18/05/2023,50366451,"1,619.66",Alpenbest Limited,SOCIAL SERVICES DAY CARE,People's Services,Home Care Services,A56019
London Borough of Sutton,18/05/2023,50366501,"1,606.71",Alpenbest Limited,SOCIAL SERVICES DAY CARE,People's Services,Home Care Services,A56019
London Borough of Sutton,26/04/2023,50366502,"1,619.66",Alpenbest Limited,SOCIAL SERVICES DAY CARE,People's Services,Home Care Services,A56019
London Borough of Sutton,18/05/2023,50366503,"1,722.46",Alpenbest Limited,SOCIAL SERVICES DAY CARE,People's Services,Home Care Services,A56019
London Borough of Sutton,18/05/2023,50366504,"2,550.45",Alpenbest Limited,SOCIAL SERVICES DAY CARE,People's Services,Home Care Services,A56019
London Borough of Sutton,18/05/2023,50366505,"1,026.18",Alpenbest Limited,SOCIAL SERVICES DAY CARE,People's Services,Home Care Services,A56019
London Borough of Sutton,16/06/2023,50367330,"3,211.42",Alpenbest Limited,SOCIAL SERVICES DAY CARE,People's Services,Home Care Services,A56019
London Borough of Sutton,16/06/2023,50367331,921.63,Alpenbest Limited,SOCIAL SERVICES DAY CARE,People's Services,Home Care Services,A56019
London Borough of Sutton,16/06/2023,50367333,860.11,Alpenbest Limited,SOCIAL SERVICES DAY CARE,People's Services,Home Care Services,A56019
London Borough of Sutton,16/06/2023,50367334,"1,691.62",Alpenbest Limited,SOCIAL SERVICES DAY CARE,People's Services,Home Care Services,A56019
London Borough of Sutton,16/06/2023,50367335,745.60,Alpenbest Limited,SOCIAL SERVICES DAY CARE,People's Services,Home Care Services,A56019
London Borough of Sutton,16/06/2023,50367336,"1,232.91",Alpenbest Limited,SOCIAL SERVICES DAY CARE,People's Services,Home Care Services,A56019
London Borough of Sutton,16/06/2023,50367337,"3,211.42",Alpenbest Limited,SOCIAL SERVICES DAY CARE,People's Services,Home Care Services,A56019
London Borough of Sutton,16/06/2023,50367338,"1,532.55",Alpenbest Limited,SOCIAL SERVICES DAY CARE,People's Services,Home Care Services,A56019
London Borough of Sutton,16/06/2023,50367340,"3,045.10",Alpenbest Limited,SOCIAL SERVICES DAY CARE,People's Services,Home Care Services,A56019
London Borough of Sutton,16/06/2023,50367340,729.42,Alpenbest Limited,SOCIAL SERVICES DAY CARE,People's Services,Home Care Services,A56019
London Borough of Sutton,16/06/2023,50367341,"1,605.71",Alpenbest Limited,SOCIAL SERVICES DAY CARE,People's Services,Home Care Services,A56019
London Borough of Sutton,16/06/2023,50367482,"1,605.71",Alpenbest Limited,SOCIAL SERVICES DAY CARE,People's Services,Home Care Services,A56019
London Borough of Sutton,16/06/2023,50367483,"3,224.37",Alpenbest Limited,SOCIAL SERVICES DAY CARE,People's Services,Home Care Services,A56019
London Borough of Sutton,16/06/2023,50367484,"1,015.50",Alpenbest Limited,SOCIAL SERVICES DAY CARE,People's Services,Home Care Services,A56019
London Borough of Sutton,16/06/2023,50367486,860.11,Alpenbest Limited,SOCIAL SERVICES DAY CARE,People's Services,Home Care Services,A56019
London Borough of Sutton,16/06/2023,50367487,"1,097.14",Alpenbest Limited,SOCIAL SERVICES DAY CARE,People's Services,Home Care Services,A56019
London Borough of Sutton,16/06/2023,50367502,"1,659.72",Alpenbest Limited,SOCIAL SERVICES DAY CARE,People's Services,Home Care Services,A56019
London Borough of Sutton,16/06/2023,50367504,"1,605.71",Alpenbest Limited,SOCIAL SERVICES DAY CARE,People's Services,Home Care Services,A56019
London Borough of Sutton,16/06/2023,50367510,542.88,Alpenbest Limited,SOCIAL SERVICES DAY CARE,People's Services,Home Care Services,A56019
London Borough of Sutton,16/06/2023,50367511,563.08,Alpenbest Limited,SOCIAL SERVICES DAY CARE,People's Services,Home Care Services,A56019
London Borough of Sutton,16/06/2023,50367524,860.11,Alpenbest Limited,SOCIAL SERVICES DAY CARE,People's Services,Home Care Services,A56019
London Borough of Sutton,16/06/2023,50367525,975.95,Alpenbest Limited,SOCIAL SERVICES DAY CARE,People's Services,Home Care Services,A56019
London Borough of Sutton,25/04/2023,50370330,779.70,Alpenbest Limited,SOCIAL SERVICES DAY CARE,People's Services,Home Care Services,A56019
London Borough of Sutton,18/05/2023,50370331,538.63,Alpenbest Limited,SOCIAL SERVICES DAY CARE,People's Services,Home Care Services,A56019
London Borough of Sutton,16/06/2023,50370332,"1,042.90",Alpenbest Limited,SOCIAL SERVICES DAY CARE,People's Services,Home Care Services,A56019
London Borough of Sutton,24/05/2023,20050519,"2,560.00",Altyne Ltd,SUNDRY SUPPLIER - HOUSING,Environment Housing and Neighbourhoods,Rent Deposit Scheme,B32179
London Borough of Sutton,06/06/2023,50360578,723.60,REDACTED - PERSONAL DATA,GRANTS & EX GRATIA PAYMENTS,People's Services,Payment - Nursery Funding,A51056
London Borough of Sutton,06/06/2023,50360645,"1,009.80",REDACTED - PERSONAL DATA,GRANTS & EX GRATIA PAYMENTS,People's Services,Payment - Nursery Funding,A51056
London Borough of Sutton,06/06/2023,50360656,673.20,REDACTED - PERSONAL DATA,GRANTS & EX GRATIA PAYMENTS,People's Services,Payment - Nursery Funding,A51056
London Borough of Sutton,15/06/2023,20051729,"3,231.00",Ambika Corporation Limited,SUNDRY SUPPLIER - HOUSING,Environment Housing and Neighbourhoods,Rent Deposit Scheme,B32179
London Borough of Sutton,01/05/2023,50369856,"4,495.00",Anchor Foster Care Services Ltd,CHILDREN'S SERVICES - FOSTERING & ADOPTION SERVICES,People's Services,Foster Parents Support,A44110
London Borough of Sutton,09/06/2023,50363613,"2,908.20",Anchor Trust  ,SOCIAL SERVICES RESIDENTIAL,People's Services,Residential Care - Ext Provider,A56114
London Borough of Sutton,21/06/2023,20052190,"2,850.00",REDACTED - PERSONAL DATA,GRANTS & EX GRATIA PAYMENTS,Environment Housing and Neighbourhoods,Temporary Protection - Homeless Persons,A62028
London Borough of Sutton,23/05/2023,20051058,"1,096.00",REDACTED - PERSONAL DATA,PLS LANDLORDS,Environment Housing and Neighbourhoods,Temporary Protection - Homeless Persons,A62028
London Borough of Sutton,23/06/2023,20052646,"1,096.00",REDACTED - PERSONAL DATA,PLS LANDLORDS,Environment Housing and Neighbourhoods,Temporary Protection - Homeless Persons,A62028
London Borough of Sutton,06/06/2023,50360633,"1,262.25",REDACTED - PERSONAL DATA,GRANTS & EX GRATIA PAYMENTS,People's Services,Payment - Nursery Funding,A51056
London Borough of Sutton,25/05/2023,20050554,714.29,REDACTED - PERSONAL DATA,CARE LEAVERS,People's Services,Equipment And Materials Purchase,A40000
London Borough of Sutton,03/06/2023,50363406,"3,476.43",Ansacare Fostering Agency Ltd,CHILDREN'S SERVICES - FOSTERING & ADOPTION SERVICES,People's Services,Foster Parents Support,A44110
London Borough of Sutton,03/06/2023,50363407,"3,476.43",Ansacare Fostering Agency Ltd,CHILDREN'S SERVICES - FOSTERING & ADOPTION SERVICES,People's Services,Foster Parents Support,A44110
London Borough of Sutton,31/05/2023,20050821,"6,311.03",Apetito Ltd,FOOD & DRINK,Health and Wellbeing,Catering Contract - Frozen Meals,A41001
London Borough of Sutton,31/05/2023,20050750,"7,901.00",Apex Housing Solutions Ltd,SOCIAL SERVICES DAY CARE,Environment Housing and Neighbourhoods,Bed & Breakfast,A56000
London Borough of Sutton,01/06/2023,20050761,"95,862.51",APL Construction Services Ltd,CONSTRUCTION INDUSTRY,HRA,Council Dwellings - Construction & Renovation,C10002
London Borough of Sutton,01/06/2023,20050762,"20,000.00",APL Construction Services Ltd,CONSTRUCTION INDUSTRY,HRA,Council Dwellings - Construction & Renovation,C10002
London Borough of Sutton,15/06/2023,20051487,605.60,APL Properties,ACCOMMODATION BED & BREAKFAST,Environment Housing and Neighbourhoods,Bed & Breakfast,A56000
London Borough of Sutton,16/05/2023,20049709,"2,339.00",Arbtech Consulting Ltd,AGRICULTURAL & ESTATE SERVICES,Development Growth and Regeneration,External Fees and Consultants,C20000
London Borough of Sutton,31/05/2023,20050856,"6,497.00",Architecture PLB Ltd,CONSULTING ARCHITECTS ENGINEER,HRA,External Fees and Consultants,C20000
London Borough of Sutton,31/05/2023,20050584,750.00,Arnold & Self,PREMISES - REMOVALS,HRA,External Fees and Consultants,C20000
London Borough of Sutton,08/05/2023,20052095,"1,172.00",Arthur Rai Medical Services Ltd,TEMP STAFF & CONSULTANCY,Health and Wellbeing,Agency Staff - Other,A10505
London Borough of Sutton,01/06/2023,20052097,"1,547.04",Arthur Rai Medical Services Ltd,TEMP STAFF & CONSULTANCY,Health and Wellbeing,Agency Staff - Other,A10505
London Borough of Sutton,24/05/2023,20052099,"1,441.56",Arthur Rai Medical Services Ltd,TEMP STAFF & CONSULTANCY,Health and Wellbeing,Agency Staff - Other,A10505
London Borough of Sutton,11/05/2023,20052100,"1,406.40",Arthur Rai Medical Services Ltd,TEMP STAFF & CONSULTANCY,Health and Wellbeing,Agency Staff - Other,A10505
London Borough of Sutton,24/05/2023,20052101,"1,476.72",Arthur Rai Medical Services Ltd,TEMP STAFF & CONSULTANCY,Health and Wellbeing,Agency Staff - Other,A10505
London Borough of Sutton,01/06/2023,20052102,"1,429.84",Arthur Rai Medical Services Ltd,TEMP STAFF & CONSULTANCY,Health and Wellbeing,Agency Staff - Other,A10505
London Borough of Sutton,11/05/2023,20052104,"1,172.00",Arthur Rai Medical Services Ltd,TEMP STAFF & CONSULTANCY,Health and Wellbeing,Agency Staff - Other,A10505
London Borough of Sutton,18/05/2023,20052105,"1,172.00",Arthur Rai Medical Services Ltd,TEMP STAFF & CONSULTANCY,Health and Wellbeing,Agency Staff - Other,A10505
London Borough of Sutton,11/05/2023,20052106,"1,078.24",Arthur Rai Medical Services Ltd,TEMP STAFF & CONSULTANCY,Health and Wellbeing,Agency Staff - Other,A10505
London Borough of Sutton,03/06/2023,20052114,"1,406.40",Arthur Rai Medical Services Ltd,TEMP STAFF & CONSULTANCY,Health and Wellbeing,Agency Staff - Other,A10505
London Borough of Sutton,26/04/2023,20052115,703.20,Arthur Rai Medical Services Ltd,TEMP STAFF & CONSULTANCY,Health and Wellbeing,Agency Staff - Other,A10505
London Borough of Sutton,26/05/2023,20052116,"1,500.16",Arthur Rai Medical Services Ltd,TEMP STAFF & CONSULTANCY,Health and Wellbeing,Agency Staff - Other,A10505
London Borough of Sutton,04/05/2023,20052117,"1,218.88",Arthur Rai Medical Services Ltd,TEMP STAFF & CONSULTANCY,Health and Wellbeing,Agency Staff - Other,A10505
London Borough of Sutton,26/04/2023,20052118,"1,500.16",Arthur Rai Medical Services Ltd,TEMP STAFF & CONSULTANCY,Health and Wellbeing,Agency Staff - Other,A10505
London Borough of Sutton,04/05/2023,20052121,"1,476.72",Arthur Rai Medical Services Ltd,TEMP STAFF & CONSULTANCY,Health and Wellbeing,Agency Staff - Other,A10505
London Borough of Sutton,12/04/2023,20052123,"1,453.28",Arthur Rai Medical Services Ltd,TEMP STAFF & CONSULTANCY,Health and Wellbeing,Agency Staff - Other,A10505
London Borough of Sutton,19/05/2023,20052124,"1,172.00",Arthur Rai Medical Services Ltd,TEMP STAFF & CONSULTANCY,Health and Wellbeing,Agency Staff - Other,A10505
London Borough of Sutton,11/05/2023,20052125,"1,406.40",Arthur Rai Medical Services Ltd,TEMP STAFF & CONSULTANCY,Health and Wellbeing,Agency Staff - Other,A10505
London Borough of Sutton,12/05/2023,20052127,726.64,Arthur Rai Medical Services Ltd,TEMP STAFF & CONSULTANCY,Health and Wellbeing,Agency Staff - Other,A10505
London Borough of Sutton,19/05/2023,20052128,"1,125.12",Arthur Rai Medical Services Ltd,TEMP STAFF & CONSULTANCY,Health and Wellbeing,Agency Staff - Other,A10505
London Borough of Sutton,08/06/2023,20052144,"1,101.68",Arthur Rai Medical Services Ltd,TEMP STAFF & CONSULTANCY,Health and Wellbeing,Agency Staff - Other,A10505
London Borough of Sutton,03/05/2023,50363384,"6,576.34",Ascent Fostering Agency Ltd,CHILDREN'S SERVICE - OTHER,People's Services,Foster Parents Support,A44110
London Borough of Sutton,03/05/2023,50363456,"6,576.34",Ascent Fostering Agency Ltd,CHILDREN'S SERVICE - OTHER,People's Services,Foster Parents Support,A44110
London Borough of Sutton,02/05/2023,50364838,"1,312.36",Ashlong House Ltd,SOCIAL SERVICES RESIDENTIAL,People's Services,Supported Living,A56088
London Borough of Sutton,26/06/2023,50371389,"1,065.84",Ashlong House Ltd,SOCIAL SERVICES RESIDENTIAL,People's Services,Supported Living,A56088
London Borough of Sutton,09/06/2023,50363489,"3,821.24",Ashton Care Homes Ltd.,SOCIAL SERVICES RESIDENTIAL,People's Services,Nursing Care - Ext Provider,A56025
London Borough of Sutton,09/06/2023,50363489,-836.76,Ashton Care Homes Ltd.,SOCIAL SERVICES RESIDENTIAL,People's Services,Nursing Care - 3rd party top up payment,A56023
London Borough of Sutton,09/06/2023,50363559,"3,980.00",Ashurst Lodge Healthcare Ltd,CHILDREN'S SERVICES - RESIDENTIAL,People's Services,Residential Care - Ext Provider,A56114
London Borough of Sutton,09/06/2023,50363559,"-1,990.00",Ashurst Lodge Healthcare Ltd,CHILDREN'S SERVICES - RESIDENTIAL,People's Services,Nursing Care - 3rd party top up payment,A56023
London Borough of Sutton,09/06/2023,50363637,"4,144.68",Aspen Place,SOCIAL SERVICES DAY CARE,People's Services,Nursing Care - Ext Provider,A56025
London Borough of Sutton,09/06/2023,50363584,"5,699.00",Aspens Charities,SOCIAL SERVICES RESIDENTIAL,People's Services,Residential Care - Ext Provider,A56114
London Borough of Sutton,01/06/2023,50361271,"2,480.31",Aspirations Care Ltd,SOCIAL SERVICES DAY CARE,People's Services,Home Care Services,A56019
London Borough of Sutton,01/06/2023,50361271,"7,356.30",Aspirations Care Ltd,SOCIAL SERVICES DAY CARE,People's Services,Home Care Services,A56019
London Borough of Sutton,31/05/2023,20050606,783.00,ASSOCIATON OF ACCOUNTING TECHNICIANS,SUBSCRIPTIONS & PUBLICATIONS,Health and Wellbeing,Examination Fees,A44200
London Borough of Sutton,16/06/2023,20051842,768.00,ASSOCIATON OF ACCOUNTING TECHNICIANS,SUBSCRIPTIONS & PUBLICATIONS,Health and Wellbeing,Examination Fees,A44200
London Borough of Sutton,23/06/2023,20052539,942.00,ASSOCIATON OF ACCOUNTING TECHNICIANS,SUBSCRIPTIONS & PUBLICATIONS,Health and Wellbeing,Examination Fees,A44200
London Borough of Sutton,14/04/2023,20050315,437.87,Atalian Servest Limited,PREMISES - CLEANING & LAUNDRY,Resources,Contract Cleaning,A27010
London Borough of Sutton,31/05/2023,20050972,580.00,Atalian Servest Limited,PREMISES - CLEANING & LAUNDRY,Resources,Pest Control,A20024
London Borough of Sutton,13/06/2023,20051576,926.86,Atalian Servest Limited,PREMISES - CLEANING & LAUNDRY,Resources,Contract Cleaning,A27010
London Borough of Sutton,19/06/2023,20052014,"11,486.40",Atalian Servest Limited,PREMISES - CLEANING & LAUNDRY,Resources,Security / Surveillance Equipment Maintenance,A20009
London Borough of Sutton,19/06/2023,20052015,"1,596.18",Atalian Servest Limited,PREMISES - CLEANING & LAUNDRY,Resources,Security / Surveillance Equipment Maintenance,A20009
London Borough of Sutton,19/06/2023,20052016,"20,828.36",Atalian Servest Limited,PREMISES - CLEANING & LAUNDRY,Resources,Security / Surveillance Equipment Maintenance,A20009
London Borough of Sutton,28/06/2023,20052711,580.00,Atalian Servest Limited,PREMISES - CLEANING & LAUNDRY,Resources,Pest Control,A20024
London Borough of Sutton,02/06/2023,50363446,"24,312.86",Athena Housing and Support Ltd,CHILDREN'S SERVICES - RESIDENTIAL,People's Services,Residential Care-Children,A56115
London Borough of Sutton,14/04/2023,20049098,"8,850.00",Auditel Rental & Services Ltd,BUSINESS & COMPUTER SYSTEMS,Resources,Equipment Purchase & Hire,A40050
London Borough of Sutton,06/06/2023,50360580,964.80,Aunty Connies Childcare,GRANTS & EX GRATIA PAYMENTS,People's Services,Payment - Nursery Funding,A51056
London Borough of Sutton,09/06/2023,50363570,"11,884.10",Autism & Aspergers Care Services,SOCIAL SERVICES RESIDENTIAL,People's Services,Residential Care - Ext Provider,A56114
London Borough of Sutton,30/05/2023,50363427,"49,998.57",Avance Ltd ,CHILDREN'S SERVICES - FOSTERING & ADOPTION SERVICES,People's Services,Residential Care-Children,A56115
London Borough of Sutton,06/06/2023,50360835,"13,759.20",Avenue Primary Acadamy,GRANTS & EX GRATIA PAYMENTS,People's Services,Payment - Nursery Funding,A51056
London Borough of Sutton,06/06/2023,50360881,"2,408.40",Avenue Primary Acadamy,GRANTS & EX GRATIA PAYMENTS,People's Services,Pupil Growth,A51014
London Borough of Sutton,06/06/2023,50360882,"9,633.40",Avenue Primary Acadamy,GRANTS & EX GRATIA PAYMENTS,People's Services,Pupil Growth,A51014
London Borough of Sutton,13/06/2023,50364884,"1,875.00",Avenue Primary Acadamy,GRANTS & EX GRATIA PAYMENTS,Resources,"Grants, Contributions & Donations",A47005
London Borough of Sutton,06/06/2023,50365489,"9,484.20",Avenue Primary Acadamy,GRANTS & EX GRATIA PAYMENTS,People's Services,Top-up Funding,A51016
London Borough of Sutton,30/04/2023,50361207,"27,827.53",Ayai Care Limited,SOCIAL SERVICES DAY CARE,People's Services,Residential Care-Children,A56115
London Borough of Sutton,30/04/2023,50361208,"19,425.00",Ayai Care Limited,SOCIAL SERVICES DAY CARE,People's Services,Approved Lodgings,A61000
London Borough of Sutton,30/04/2023,50361210,"49,221.42",Ayai Care Limited,SOCIAL SERVICES DAY CARE,People's Services,Residential Care-Children,A56115
London Borough of Sutton,30/04/2023,50361211,"14,117.57",Ayai Care Limited,SOCIAL SERVICES DAY CARE,People's Services,Approved Lodgings,A61000
London Borough of Sutton,30/04/2023,50361212,"23,469.64",Ayai Care Limited,SOCIAL SERVICES DAY CARE,People's Services,Residential Care-Children,A56115
London Borough of Sutton,31/05/2023,50363367,"24,251.96",Ayai Care Limited,SOCIAL SERVICES DAY CARE,People's Services,Residential Care-Children,A56115
London Borough of Sutton,31/05/2023,50363368,"50,862.14",Ayai Care Limited,SOCIAL SERVICES DAY CARE,People's Services,Residential Care-Children,A56115
London Borough of Sutton,31/05/2023,50363423,"28,755.12",Ayai Care Limited,SOCIAL SERVICES DAY CARE,People's Services,Residential Care-Children,A56115
London Borough of Sutton,31/05/2023,50363424,"14,588.16",Ayai Care Limited,SOCIAL SERVICES DAY CARE,People's Services,Approved Lodgings,A61000
London Borough of Sutton,31/05/2023,50363425,"20,072.50",Ayai Care Limited,SOCIAL SERVICES DAY CARE,People's Services,Approved Lodgings,A61000
London Borough of Sutton,06/06/2023,50364831,"1,505.00",Ayai Care Limited,SOCIAL SERVICES DAY CARE,People's Services,One to One Care,A56108
London Borough of Sutton,20/06/2023,50367191,"13,165.72",Ayai Care Limited,SOCIAL SERVICES DAY CARE,People's Services,Supported Living,A56088
London Borough of Sutton,20/06/2023,50367244,"13,680.00",Ayai Care Limited,SOCIAL SERVICES DAY CARE,People's Services,Supported Living,A56088
London Borough of Sutton,19/05/2023,20051521,"12,000.00",Ayup Digital Ltd,BUSINESS & COMPUTER SYSTEMS,Resources,Provider Contract Payments,A44290
London Borough of Sutton,21/06/2023,20052281,"2,143.07",REDACTED - PERSONAL DATA,SUNDRY SUPPLIER - HOUSING,Environment Housing and Neighbourhoods,Rent Deposit Scheme,B32179
London Borough of Sutton,21/05/2023,20051536,"3,907.85",Back on Track Housing Ltd,SOCIAL SERVICES - OTHER,People's Services,Approved Lodgings,A61000
London Borough of Sutton,21/05/2023,50363403,276.79,Back on Track Housing Ltd,SOCIAL SERVICES - OTHER,People's Services,Approved Lodgings,A61000
London Borough of Sutton,21/05/2023,50363403,"6,199.99",Back on Track Housing Ltd,SOCIAL SERVICES - OTHER,People's Services,Approved Lodgings,A61000
London Borough of Sutton,21/05/2023,50363404,"5,059.46",Back on Track Housing Ltd,SOCIAL SERVICES - OTHER,People's Services,Accommodation - Supported Living,A62001
London Borough of Sutton,21/05/2023,50363405,276.79,Back on Track Housing Ltd,SOCIAL SERVICES - OTHER,People's Services,Approved Lodgings,A61000
London Borough of Sutton,21/05/2023,50363405,"6,199.99",Back on Track Housing Ltd,SOCIAL SERVICES - OTHER,People's Services,Approved Lodgings,A61000
London Borough of Sutton,22/05/2023,50363415,"1,854.28",Back on Track Housing Ltd,SOCIAL SERVICES - OTHER,People's Services,Approved Lodgings,A61000
London Borough of Sutton,22/05/2023,50363433,276.79,Back on Track Housing Ltd,SOCIAL SERVICES - OTHER,People's Services,Approved Lodgings,A61000
London Borough of Sutton,22/05/2023,50363433,"7,185.71",Back on Track Housing Ltd,SOCIAL SERVICES - OTHER,People's Services,Approved Lodgings,A61000
London Borough of Sutton,05/06/2023,20050833,741.00,Balmont Ltd,CONSTRUCTION INDUSTRY,Resources,"Property Repairs, Maintenance & Alterations",A20010
London Borough of Sutton,12/06/2023,20051496,"2,740.00",Balmont Ltd,CONSTRUCTION INDUSTRY,Development Growth and Regeneration,External Fees and Consultants,C20000
London Borough of Sutton,14/06/2023,20051684,"1,527.50",Balmont Ltd,CONSTRUCTION INDUSTRY,Health and Wellbeing,Other Property Repairs & Maintenance,A20007
London Borough of Sutton,06/06/2023,50360836,"14,817.60",Bandon Hill Primary School (Academy),GRANTS & EX GRATIA PAYMENTS,People's Services,Payment - Nursery Funding,A51056
London Borough of Sutton,13/06/2023,50364885,990.00,Bandon Hill Primary School (Academy),GRANTS & EX GRATIA PAYMENTS,Resources,"Grants, Contributions & Donations",A47005
London Borough of Sutton,06/06/2023,50365490,"1,034.20",Bandon Hill Primary School (Academy),GRANTS & EX GRATIA PAYMENTS,People's Services,Top-up Funding,A51016
London Borough of Sutton,06/06/2023,50365508,"9,148.23",Bandon Hill Primary School (Academy),GRANTS & EX GRATIA PAYMENTS,People's Services,Top-up Funding,A51016
London Borough of Sutton,19/05/2023,20050031,560.50,Banner Group Limited,BOOKS PUBLICATIONS STATIONERY,Health and Wellbeing,Equipment And Materials Purchase,A40000
London Borough of Sutton,14/06/2023,20051816,447.24,Banner Group Limited,BOOKS PUBLICATIONS STATIONERY,Health and Wellbeing,Other Supplies & Services,A44291
London Borough of Sutton,07/06/2023,50362765,"2,000.00",BANSTEAD PREPARATORY SCHOOL,CHILDREN'S SERVICES - SEN SERVICES,People's Services,Top Up Additional Support,A60015
London Borough of Sutton,13/06/2023,50367835,"3,915.00",BANSTEAD PREPARATORY SCHOOL,CHILDREN'S SERVICES - SEN SERVICES,People's Services,Independent School Fees,A56002
London Borough of Sutton,31/05/2023,50363383,"4,572.50",Banya,SOCIAL SERVICES RESIDENTIAL,People's Services,Foster Parents Support,A44110
London Borough of Sutton,09/06/2023,50363600,"4,096.12",Barchester Healthcare Homes Ltd,SOCIAL SERVICES RESIDENTIAL,People's Services,Nursing Care - Ext Provider,A56025
London Borough of Sutton,09/06/2023,50363600,-878.84,Barchester Healthcare Homes Ltd,SOCIAL SERVICES RESIDENTIAL,People's Services,Nursing Care - 3rd party top up payment,A56023
London Borough of Sutton,29/05/2023,20050476,500.00,BCS Learning & Development Ltd,ACADEMIC INSTNS - OTHER,Health and Wellbeing,Registration & Licence Fees Payable,A44267
London Borough of Sutton,24/05/2023,20050674,"11,081.00",Beddington Infants School,GRANTS & EX GRATIA PAYMENTS,People's Services,Payments to Contractors,C14000
London Borough of Sutton,06/06/2023,50360788,"108,196.24",Beddington Infants School,GRANTS & EX GRATIA PAYMENTS,People's Services,Payments to Schools,A51013
London Borough of Sutton,06/06/2023,50360838,"13,759.20",Beddington Infants School,GRANTS & EX GRATIA PAYMENTS,People's Services,Payment - Nursery Funding,A51056
London Borough of Sutton,06/06/2023,50360869,"-15,000.00",Beddington Infants School,GRANTS & EX GRATIA PAYMENTS,People's Services,Payment - school forward funding,A51059
London Borough of Sutton,06/06/2023,50360888,"7,396.00",Beddington Infants School,GRANTS & EX GRATIA PAYMENTS,People's Services,Payment - Primary PE and Sport Premium,A51028
London Borough of Sutton,06/06/2023,50360909,"1,558.75",Beddington Infants School,GRANTS & EX GRATIA PAYMENTS,People's Services,Payment - Covid 19 Recovery Premium,A51039
London Borough of Sutton,06/06/2023,50360939,"2,632.50",Beddington Infants School,GRANTS & EX GRATIA PAYMENTS,People's Services,Payment - school led tutoring grant,A51060
London Borough of Sutton,13/06/2023,50364887,645.00,Beddington Infants School,GRANTS & EX GRATIA PAYMENTS,Resources,"Grants, Contributions & Donations",A47005
London Borough of Sutton,06/06/2023,50360839,"11,907.00",Beddington Park Primary (Academy),GRANTS & EX GRATIA PAYMENTS,People's Services,Payment - Nursery Funding,A51056
London Borough of Sutton,13/06/2023,50364888,"1,725.00",Beddington Park Primary (Academy),GRANTS & EX GRATIA PAYMENTS,Resources,"Grants, Contributions & Donations",A47005
London Borough of Sutton,06/06/2023,50365492,"4,900.32",Beddington Park Primary (Academy),GRANTS & EX GRATIA PAYMENTS,People's Services,Top-up Funding,A51016
London Borough of Sutton,02/06/2023,20050950,"1,000.00",BedZED Residents Association,SUNDRY SUPPLIER - ENV SERVICES,Resources,"Grants, Contributions & Donations",A47005
London Borough of Sutton,20/06/2023,50367223,855.00,Beechcroft Care Limited,SOCIAL SERVICES RESIDENTIAL,People's Services,Supported Living,A56088
London Borough of Sutton,20/06/2023,50367223,"5,674.72",Beechcroft Care Limited,SOCIAL SERVICES RESIDENTIAL,People's Services,Supported Living,A56088
London Borough of Sutton,20/06/2023,50367223,870.00,Beechcroft Care Limited,SOCIAL SERVICES RESIDENTIAL,People's Services,One to One Care,A56108
London Borough of Sutton,02/06/2023,20050809,"1,647.93",Beeches Tree Care,AGRICULTURAL & ESTATE SERVICES,Environment Housing and Neighbourhoods,Maintenance of trees,A28003
London Borough of Sutton,06/06/2023,20051057,"2,685.13",Beeches Tree Care,AGRICULTURAL & ESTATE SERVICES,Environment Housing and Neighbourhoods,Maintenance of trees,A28003
London Borough of Sutton,23/06/2023,20052479,"6,348.90",Beeches Tree Care,AGRICULTURAL & ESTATE SERVICES,Environment Housing and Neighbourhoods,Maintenance of trees,A28003
London Borough of Sutton,23/06/2023,20052480,"4,885.31",Beeches Tree Care,AGRICULTURAL & ESTATE SERVICES,Environment Housing and Neighbourhoods,Highway Trees - Maintenance,A28005
London Borough of Sutton,23/06/2023,20052481,"3,248.37",Beeches Tree Care,AGRICULTURAL & ESTATE SERVICES,Environment Housing and Neighbourhoods,Highway Trees - Maintenance,A28005
London Borough of Sutton,23/06/2023,20052483,"2,149.50",Beeches Tree Care,AGRICULTURAL & ESTATE SERVICES,Environment Housing and Neighbourhoods,Highway Trees - Maintenance,A28005
London Borough of Sutton,13/06/2023,20051582,"1,000.00",Beeches Yulefest,SUNDRY SUPPLIER - ENV SERVICES,Resources,"Grants, Contributions & Donations",A47005
London Borough of Sutton,13/06/2023,20051583,"1,000.00",Beeches Yulefest,SUNDRY SUPPLIER - ENV SERVICES,Resources,"Grants, Contributions & Donations",A47005
London Borough of Sutton,13/06/2023,20051584,"2,000.00",Beeches Yulefest,SUNDRY SUPPLIER - ENV SERVICES,Resources,"Grants, Contributions & Donations",A47005
London Borough of Sutton,06/06/2023,50360582,"4,274.82",Belmont Village Playgroup,GRANTS & EX GRATIA PAYMENTS,People's Services,Payment - Nursery Funding,A51056
London Borough of Sutton,06/06/2023,50360712,851.76,Belmont Village Playgroup,GRANTS & EX GRATIA PAYMENTS,People's Services,Payment - Nursery Funding,A51056
London Borough of Sutton,25/05/2023,20052279,"4,850.00",Benhill & Belmont GP Centre,SOCIAL SERVICES - OTHER,Health and Wellbeing,Hire of Rooms,A22010
London Borough of Sutton,20/06/2023,50367834,"3,485.18",Bensham Manor School,GRANTS & EX GRATIA PAYMENTS,People's Services,Top-up Funding,A51016
London Borough of Sutton,09/06/2023,50363472,"-2,000.00",Bespoke Care Support Ltd,SOCIAL SERVICES - OTHER,People's Services,Nursing Care - 3rd party top up payment,A56023
London Borough of Sutton,09/06/2023,50363636,"-3,890.68",Bespoke Care Support Ltd,SOCIAL SERVICES - OTHER,People's Services,Nursing Care - 3rd party top up payment,A56023
London Borough of Sutton,20/06/2023,50367222,"8,337.17",Bespoke Care Support Ltd,SOCIAL SERVICES - OTHER,People's Services,Supported Living,A56088
London Borough of Sutton,20/06/2023,50367226,"3,857.15",Bespoke Care Support Ltd,SOCIAL SERVICES - OTHER,People's Services,Supported Living,A56088
London Borough of Sutton,20/06/2023,50367241,"4,285.72",Bespoke Care Support Ltd,SOCIAL SERVICES - OTHER,People's Services,Supported Living,A56088
London Borough of Sutton,28/05/2023,50362847,981.94,Best at Home Domiciliary Care Services Ltd,SOCIAL SERVICES DAY CARE,People's Services,Home Care Services,A56019
London Borough of Sutton,28/05/2023,50362848,528.50,Best at Home Domiciliary Care Services Ltd,SOCIAL SERVICES DAY CARE,People's Services,Home Care Services,A56019
London Borough of Sutton,28/05/2023,50362850,863.00,Best at Home Domiciliary Care Services Ltd,SOCIAL SERVICES DAY CARE,People's Services,Home Care Services,A56019
London Borough of Sutton,28/05/2023,50364124,"3,156.00",Best at Home Domiciliary Care Services Ltd,SOCIAL SERVICES DAY CARE,People's Services,Home Care Services,A56019
London Borough of Sutton,28/05/2023,50364127,827.97,Best at Home Domiciliary Care Services Ltd,SOCIAL SERVICES DAY CARE,People's Services,Home Care Services,A56019
London Borough of Sutton,28/05/2023,50364135,"3,156.00",Best at Home Domiciliary Care Services Ltd,SOCIAL SERVICES DAY CARE,People's Services,Home Care Services,A56019
London Borough of Sutton,28/05/2023,50364146,901.97,Best at Home Domiciliary Care Services Ltd,SOCIAL SERVICES DAY CARE,People's Services,Home Care Services,A56019
London Borough of Sutton,04/06/2023,50364217,"3,336.00",Best at Home Domiciliary Care Services Ltd,SOCIAL SERVICES DAY CARE,People's Services,Home Care Services,A56019
London Borough of Sutton,28/05/2023,50364220,150.00,Best at Home Domiciliary Care Services Ltd,SOCIAL SERVICES DAY CARE,People's Services,Home Care Services,A56019
London Borough of Sutton,28/05/2023,50364220,777.97,Best at Home Domiciliary Care Services Ltd,SOCIAL SERVICES DAY CARE,People's Services,Home Care Services,A56019
London Borough of Sutton,04/06/2023,50364221,157.50,Best at Home Domiciliary Care Services Ltd,SOCIAL SERVICES DAY CARE,People's Services,Home Care Services,A56019
London Borough of Sutton,04/06/2023,50364221,867.98,Best at Home Domiciliary Care Services Ltd,SOCIAL SERVICES DAY CARE,People's Services,Home Care Services,A56019
London Borough of Sutton,04/06/2023,50364244,867.98,Best at Home Domiciliary Care Services Ltd,SOCIAL SERVICES DAY CARE,People's Services,Home Care Services,A56019
London Borough of Sutton,04/06/2023,50364250,"3,336.00",Best at Home Domiciliary Care Services Ltd,SOCIAL SERVICES DAY CARE,People's Services,Home Care Services,A56019
London Borough of Sutton,04/06/2023,50364253,941.98,Best at Home Domiciliary Care Services Ltd,SOCIAL SERVICES DAY CARE,People's Services,Home Care Services,A56019
London Borough of Sutton,04/06/2023,50364283,"1,031.95",Best at Home Domiciliary Care Services Ltd,SOCIAL SERVICES DAY CARE,People's Services,Home Care Services,A56019
London Borough of Sutton,04/06/2023,50364349,908.00,Best at Home Domiciliary Care Services Ltd,SOCIAL SERVICES DAY CARE,People's Services,Home Care Services,A56019
London Borough of Sutton,11/06/2023,50366344,981.94,Best at Home Domiciliary Care Services Ltd,SOCIAL SERVICES DAY CARE,People's Services,Home Care Services,A56019
London Borough of Sutton,11/06/2023,50366348,863.00,Best at Home Domiciliary Care Services Ltd,SOCIAL SERVICES DAY CARE,People's Services,Home Care Services,A56019
London Borough of Sutton,11/06/2023,50366381,150.00,Best at Home Domiciliary Care Services Ltd,SOCIAL SERVICES DAY CARE,People's Services,Home Care Services,A56019
London Borough of Sutton,11/06/2023,50366381,827.97,Best at Home Domiciliary Care Services Ltd,SOCIAL SERVICES DAY CARE,People's Services,Home Care Services,A56019
London Borough of Sutton,11/06/2023,50366389,"3,156.00",Best at Home Domiciliary Care Services Ltd,SOCIAL SERVICES DAY CARE,People's Services,Home Care Services,A56019
London Borough of Sutton,11/06/2023,50366394,827.97,Best at Home Domiciliary Care Services Ltd,SOCIAL SERVICES DAY CARE,People's Services,Home Care Services,A56019
London Borough of Sutton,11/06/2023,50366404,"3,156.00",Best at Home Domiciliary Care Services Ltd,SOCIAL SERVICES DAY CARE,People's Services,Home Care Services,A56019
London Borough of Sutton,11/06/2023,50366408,901.97,Best at Home Domiciliary Care Services Ltd,SOCIAL SERVICES DAY CARE,People's Services,Home Care Services,A56019
London Borough of Sutton,18/06/2023,50370340,150.00,Best at Home Domiciliary Care Services Ltd,SOCIAL SERVICES DAY CARE,People's Services,Home Care Services,A56019
London Borough of Sutton,18/06/2023,50370340,827.97,Best at Home Domiciliary Care Services Ltd,SOCIAL SERVICES DAY CARE,People's Services,Home Care Services,A56019
London Borough of Sutton,18/06/2023,50370349,"3,156.00",Best at Home Domiciliary Care Services Ltd,SOCIAL SERVICES DAY CARE,People's Services,Home Care Services,A56019
London Borough of Sutton,18/06/2023,50370356,827.97,Best at Home Domiciliary Care Services Ltd,SOCIAL SERVICES DAY CARE,People's Services,Home Care Services,A56019
London Borough of Sutton,18/06/2023,50370361,"3,156.00",Best at Home Domiciliary Care Services Ltd,SOCIAL SERVICES DAY CARE,People's Services,Home Care Services,A56019
London Borough of Sutton,18/06/2023,50370380,901.97,Best at Home Domiciliary Care Services Ltd,SOCIAL SERVICES DAY CARE,People's Services,Home Care Services,A56019
London Borough of Sutton,18/06/2023,50370428,981.94,Best at Home Domiciliary Care Services Ltd,SOCIAL SERVICES DAY CARE,People's Services,Home Care Services,A56019
London Borough of Sutton,18/06/2023,50370526,863.00,Best at Home Domiciliary Care Services Ltd,SOCIAL SERVICES DAY CARE,People's Services,Home Care Services,A56019
London Borough of Sutton,31/05/2023,20050814,"10,799.00",Bestcourt UK Ltd,ACCOMMODATION BED & BREAKFAST,Environment Housing and Neighbourhoods,Bed & Breakfast,A56000
London Borough of Sutton,25/05/2023,20051064,"1,770.00",Better Families Social Work Services Ltd,SUNDRY SUPPLIER - SOCIAL SERVICES,People's Services,One to One Care,A56108
London Borough of Sutton,25/05/2023,20051442,"3,894.00",Better Families Social Work Services Ltd,SUNDRY SUPPLIER - SOCIAL SERVICES,People's Services,One to One Care,A56108
London Borough of Sutton,06/06/2023,20051443,"6,726.00",Better Families Social Work Services Ltd,SUNDRY SUPPLIER - SOCIAL SERVICES,People's Services,One to One Care,A56108
London Borough of Sutton,13/06/2023,20051703,"7,106.55",Better Families Social Work Services Ltd,SUNDRY SUPPLIER - SOCIAL SERVICES,People's Services,One to One Care,A56108
London Borough of Sutton,30/05/2023,20051957,"3,628.50",Better Families Social Work Services Ltd,SUNDRY SUPPLIER - SOCIAL SERVICES,People's Services,One to One Care,A56108
London Borough of Sutton,05/06/2023,20051977,"6,445.75",Better Families Social Work Services Ltd,SUNDRY SUPPLIER - SOCIAL SERVICES,People's Services,One to One Care,A56108
London Borough of Sutton,25/05/2023,20051978,"6,106.50",Better Families Social Work Services Ltd,SUNDRY SUPPLIER - SOCIAL SERVICES,People's Services,One to One Care,A56108
London Borough of Sutton,20/06/2023,50367281,"4,500.00",BETTER LIFE SUPPORTED LIVING LIMITED,SOCIAL SERVICES RESIDENTIAL,People's Services,One to One Care,A56108
London Borough of Sutton,30/05/2023,19002169,-501.20,Bevan Brittan LLP,LEGAL & PROFESSIONAL SERVICES,HRA,External Legal Fees,C20008
London Borough of Sutton,30/05/2023,20050857,501.20,Bevan Brittan LLP,LEGAL & PROFESSIONAL SERVICES,HRA,External Legal Fees,C20008
London Borough of Sutton,30/05/2023,20051007,697.50,Bevan Brittan LLP,LEGAL & PROFESSIONAL SERVICES,People's Services,External Fees and Consultants,C20000
London Borough of Sutton,30/05/2023,20051201,903.00,Bevan Brittan LLP,LEGAL & PROFESSIONAL SERVICES,HRA,External Legal Fees,C20008
London Borough of Sutton,28/04/2023,20051435,"3,403.00",Bevan Brittan LLP,LEGAL & PROFESSIONAL SERVICES,Environment Housing and Neighbourhoods,External Legal Fees,C20008
London Borough of Sutton,05/05/2023,20048747,"7,107.50",Bibliographic Data Services Ltd,BOOKS PUBLICATIONS STATIONERY,Health and Wellbeing,Books,A43050
London Borough of Sutton,30/05/2023,20050492,"11,330.00",Bibliotheca Ltd,BUSINESS & COMPUTER SYSTEMS,Health and Wellbeing,Books,A43050
London Borough of Sutton,06/06/2023,50360697,"6,681.51",Bizzy Bees Day Nursery,GRANTS & EX GRATIA PAYMENTS,People's Services,Payment - Nursery Funding,A51056
London Borough of Sutton,31/05/2023,20050707,660.01,BOC Limited,BUILDING MNTCE - SERVICES,Resources,Equipment And Materials Purchase,A40000
London Borough of Sutton,29/11/2019,20051047,959.14,Bottomline Technologies Ltd,OFFICE SERVICES,Resources,Fees,A44040
London Borough of Sutton,09/06/2023,50363619,"2,400.00",Brama Care Ltd,SOCIAL SERVICES-HOME CARE,People's Services,Nursing Care - Ext Provider,A56025
London Borough of Sutton,01/05/2023,20050293,722.50,Brandex Publishing Limited,IT EQUIPMENT MAINTENANCE,Health and Wellbeing,Subscriptions,A47010
London Borough of Sutton,09/06/2023,50363648,"4,978.76",Bridge House Care Centre,SOCIAL SERVICES RESIDENTIAL,People's Services,Nursing Care - Ext Provider,A56025
London Borough of Sutton,09/06/2023,50363648,-836.76,Bridge House Care Centre,SOCIAL SERVICES RESIDENTIAL,People's Services,Nursing Care - 3rd party top up payment,A56023
London Borough of Sutton,09/06/2023,50363658,"4,096.12",Bridge House Care Centre,SOCIAL SERVICES RESIDENTIAL,People's Services,Nursing Care - Ext Provider,A56025
London Borough of Sutton,09/06/2023,50363664,"4,096.12",Bridge House Care Centre,SOCIAL SERVICES RESIDENTIAL,People's Services,Nursing Care - Ext Provider,A56025
London Borough of Sutton,09/06/2023,50363664,-878.84,Bridge House Care Centre,SOCIAL SERVICES RESIDENTIAL,People's Services,Nursing Care - 3rd party top up payment,A56023
London Borough of Sutton,09/06/2023,50363678,-878.84,Bridge House Care Centre,SOCIAL SERVICES RESIDENTIAL,People's Services,Nursing Care - 3rd party top up payment,A56023
London Borough of Sutton,09/06/2023,50363678,"4,096.12",Bridge House Care Centre,SOCIAL SERVICES RESIDENTIAL,People's Services,Nursing Care - Ext Provider,A56025
London Borough of Sutton,09/06/2023,50363693,-878.84,Bridge House Care Centre,SOCIAL SERVICES RESIDENTIAL,People's Services,Nursing Care - 3rd party top up payment,A56023
London Borough of Sutton,09/06/2023,50363710,"4,096.12",Bridge House Care Centre,SOCIAL SERVICES RESIDENTIAL,People's Services,Nursing Care - Ext Provider,A56025
London Borough of Sutton,09/06/2023,50363710,-878.84,Bridge House Care Centre,SOCIAL SERVICES RESIDENTIAL,People's Services,Nursing Care - 3rd party top up payment,A56023
London Borough of Sutton,09/06/2023,50363718,"3,821.24",Bridge House Care Centre,SOCIAL SERVICES RESIDENTIAL,People's Services,Nursing Care Short Term,A56026
London Borough of Sutton,09/06/2023,50363718,-836.76,Bridge House Care Centre,SOCIAL SERVICES RESIDENTIAL,People's Services,Nursing Care - 3rd party top up payment,A56023
London Borough of Sutton,09/06/2023,50363750,"4,096.12",Bridge House Care Centre,SOCIAL SERVICES RESIDENTIAL,People's Services,Nursing Care - Ext Provider,A56025
London Borough of Sutton,09/06/2023,50363795,"4,096.12",Bridge House Care Centre,SOCIAL SERVICES RESIDENTIAL,People's Services,Nursing Care - Ext Provider,A56025
London Borough of Sutton,09/06/2023,50363795,-878.84,Bridge House Care Centre,SOCIAL SERVICES RESIDENTIAL,People's Services,Nursing Care - 3rd party top up payment,A56023
London Borough of Sutton,09/06/2023,50363822,"4,096.12",Bridge House Care Centre,SOCIAL SERVICES RESIDENTIAL,People's Services,Nursing Care - Ext Provider,A56025
London Borough of Sutton,09/06/2023,50363822,-878.84,Bridge House Care Centre,SOCIAL SERVICES RESIDENTIAL,People's Services,Nursing Care - 3rd party top up payment,A56023
London Borough of Sutton,09/06/2023,50363846,-750.40,Bridge House Care Centre,SOCIAL SERVICES RESIDENTIAL,People's Services,Nursing Care - 3rd party top up payment,A56023
London Borough of Sutton,09/06/2023,50363846,"3,734.88",Bridge House Care Centre,SOCIAL SERVICES RESIDENTIAL,People's Services,Nursing Care Short Term,A56026
London Borough of Sutton,09/06/2023,50363888,"4,096.12",Bridge House Care Centre,SOCIAL SERVICES RESIDENTIAL,People's Services,Nursing Care - Ext Provider,A56025
London Borough of Sutton,09/06/2023,50363888,-878.84,Bridge House Care Centre,SOCIAL SERVICES RESIDENTIAL,People's Services,Nursing Care - 3rd party top up payment,A56023
London Borough of Sutton,09/06/2023,50363890,"4,096.12",Bridge House Care Centre,SOCIAL SERVICES RESIDENTIAL,People's Services,Nursing Care - Ext Provider,A56025
London Borough of Sutton,09/06/2023,50363890,-878.84,Bridge House Care Centre,SOCIAL SERVICES RESIDENTIAL,People's Services,Nursing Care - 3rd party top up payment,A56023
London Borough of Sutton,09/06/2023,50363897,"3,907.58",Bridge House Care Centre,SOCIAL SERVICES RESIDENTIAL,People's Services,Nursing Care - Ext Provider,A56025
London Borough of Sutton,09/06/2023,50363897,-753.29,Bridge House Care Centre,SOCIAL SERVICES RESIDENTIAL,People's Services,Nursing Care - 3rd party top up payment,A56023
London Borough of Sutton,09/06/2023,50363899,-878.84,Bridge House Care Centre,SOCIAL SERVICES RESIDENTIAL,People's Services,Nursing Care - 3rd party top up payment,A56023
London Borough of Sutton,09/06/2023,50363917,-219.71,Bridge House Care Centre,SOCIAL SERVICES RESIDENTIAL,People's Services,Nursing Care - 3rd party top up payment,A56023
London Borough of Sutton,09/06/2023,50363917,"1,319.71",Bridge House Care Centre,SOCIAL SERVICES RESIDENTIAL,People's Services,Respite Care,A56116
London Borough of Sutton,09/06/2023,50363920,-878.84,Bridge House Care Centre,SOCIAL SERVICES RESIDENTIAL,People's Services,Nursing Care - 3rd party top up payment,A56023
London Borough of Sutton,09/06/2023,50363920,"4,096.12",Bridge House Care Centre,SOCIAL SERVICES RESIDENTIAL,People's Services,Nursing Care Short Term,A56026
London Borough of Sutton,09/06/2023,50363931,"4,096.12",Bridge House Care Centre,SOCIAL SERVICES RESIDENTIAL,People's Services,Nursing Care - Ext Provider,A56025
London Borough of Sutton,09/06/2023,50363931,-878.84,Bridge House Care Centre,SOCIAL SERVICES RESIDENTIAL,People's Services,Nursing Care - 3rd party top up payment,A56023
London Borough of Sutton,09/06/2023,50364001,"-3,532.82",Bridge House Care Centre,SOCIAL SERVICES RESIDENTIAL,People's Services,Nursing Care - Ext Provider,A56025
London Borough of Sutton,09/06/2023,50364001,747.11,Bridge House Care Centre,SOCIAL SERVICES RESIDENTIAL,People's Services,Nursing Care - 3rd party top up payment,A56023
London Borough of Sutton,09/06/2023,50364002,"4,528.07",Bridge House Care Centre,SOCIAL SERVICES RESIDENTIAL,People's Services,Nursing Care - Ext Provider,A56025
London Borough of Sutton,09/06/2023,50364002,-915.08,Bridge House Care Centre,SOCIAL SERVICES RESIDENTIAL,People's Services,Nursing Care - 3rd party top up payment,A56023
London Borough of Sutton,06/06/2023,50360779,504.90,REDACTED - PERSONAL DATA,TEMP STAFF & CONSULTANCY,People's Services,Payment - Nursery Funding,A51056
London Borough of Sutton,01/05/2023,50363434,"3,498.57",Bridging Gaps Limited,CHILDREN'S SERVICES - FOSTERING & ADOPTION SERVICES,People's Services,Foster Parents Support,A44110
London Borough of Sutton,01/05/2023,50363435,"3,498.57",Bridging Gaps Limited,CHILDREN'S SERVICES - FOSTERING & ADOPTION SERVICES,People's Services,Foster Parents Support,A44110
London Borough of Sutton,28/04/2023,50363459,"4,041.07",Bridging the Gap,CHILDREN'S SERVICE - OTHER,People's Services,Approved Lodgings,A61000
London Borough of Sutton,19/05/2023,50363398,"3,683.73",Brighter Futures Foster Care Ltd,CHILDREN'S SERVICES - FOSTERING & ADOPTION SERVICES,People's Services,Foster Parents Support,A44110
London Borough of Sutton,19/05/2023,50363436,"3,485.02",Brighter Futures Foster Care Ltd,CHILDREN'S SERVICES - FOSTERING & ADOPTION SERVICES,People's Services,Foster Parents Support,A44110
London Borough of Sutton,19/05/2023,20050602,"1,762.23",British Gas,UTILITIES,Resources,Gas,A21003
London Borough of Sutton,23/05/2023,20050692,665.07,British Gas,UTILITIES,HRA,Electricity,A21000
London Borough of Sutton,05/06/2023,20051508,"2,287.87",British Gas,UTILITIES,Resources,Electricity,A21000
London Borough of Sutton,09/06/2023,50363571,-772.64,British Home & Hospital For Incurables,SOCIAL SERVICES RESIDENTIAL,People's Services,Nursing Care - Client Cont ( Net paymt ),A56024
London Borough of Sutton,09/06/2023,50363571,"2,591.80",British Home & Hospital For Incurables,SOCIAL SERVICES RESIDENTIAL,People's Services,Nursing Care - Ext Provider,A56025
London Borough of Sutton,27/05/2023,20051257,"20,588.00",British Telecommunications Plc,UTILITIES,Resources,Telephones,A45020
London Borough of Sutton,31/05/2023,20052599,"10,211.28",Brockwell Care,ACCOMMODATION - OTHER,People's Services,One to One Care,A56108
London Borough of Sutton,31/03/2023,20052600,"10,462.08",Brockwell Care,ACCOMMODATION - OTHER,People's Services,One to One Care,A56108
London Borough of Sutton,07/06/2023,50365509,"1,833.29",Brunel SEN Multi Academy,CHILDREN'S SERVICES - SEN SERVICES,People's Services,Top-up Funding,A51016
London Borough of Sutton,01/01/2023,20050641,"1,674.00",BuildVantage Limited,ACCOMMODATION BED & BREAKFAST,Environment Housing and Neighbourhoods,Bed & Breakfast,A56000
London Borough of Sutton,01/02/2023,20050642,"2,294.00",BuildVantage Limited,ACCOMMODATION BED & BREAKFAST,Environment Housing and Neighbourhoods,Bed & Breakfast,A56000
London Borough of Sutton,01/02/2023,20050643,"1,674.00",BuildVantage Limited,ACCOMMODATION BED & BREAKFAST,Environment Housing and Neighbourhoods,Bed & Breakfast,A56000
London Borough of Sutton,01/02/2023,20050644,"1,406.00",BuildVantage Limited,ACCOMMODATION BED & BREAKFAST,Environment Housing and Neighbourhoods,Bed & Breakfast,A56000
London Borough of Sutton,01/12/2022,20050645,"1,458.00",BuildVantage Limited,ACCOMMODATION BED & BREAKFAST,Environment Housing and Neighbourhoods,Bed & Breakfast,A56000
London Borough of Sutton,01/06/2023,20050706,"33,518.00",BuildVantage Limited,ACCOMMODATION BED & BREAKFAST,Environment Housing and Neighbourhoods,Bed & Breakfast,A56000
London Borough of Sutton,14/06/2023,20051878,"9,200.00",Buller Hotel,ACCOMMODATION BED & BREAKFAST,Environment Housing and Neighbourhoods,Bed & Breakfast,A56000
London Borough of Sutton,06/06/2023,50360592,"12,783.60",Bumpsa Daisies Nurserys,GRANTS & EX GRATIA PAYMENTS,People's Services,Payment - Nursery Funding,A51056
London Borough of Sutton,06/06/2023,50360717,"4,563.00",Bumpsa Daisies Nurserys,GRANTS & EX GRATIA PAYMENTS,People's Services,Payment - Nursery Funding,A51056
London Borough of Sutton,09/06/2023,50363545,"7,084.60",Bupa Care Services,SOCIAL SERVICES RESIDENTIAL,People's Services,Nursing Care Short Term,A56026
London Borough of Sutton,09/06/2023,50363545,-836.76,Bupa Care Services,SOCIAL SERVICES RESIDENTIAL,People's Services,Nursing Care - 3rd party top up payment,A56023
London Borough of Sutton,09/06/2023,50363568,"8,091.16",Bupa Care Services,SOCIAL SERVICES RESIDENTIAL,People's Services,Nursing Care Short Term,A56026
London Borough of Sutton,09/06/2023,50363568,"-1,436.76",Bupa Care Services,SOCIAL SERVICES RESIDENTIAL,People's Services,Nursing Care - 3rd party top up payment,A56023
London Borough of Sutton,09/06/2023,50363689,"4,096.12",Bupa Care Services,SOCIAL SERVICES RESIDENTIAL,People's Services,Nursing Care - Ext Provider,A56025
London Borough of Sutton,09/06/2023,50363745,"4,339.24",Bupa Care Services,SOCIAL SERVICES RESIDENTIAL,People's Services,Nursing Care - Ext Provider,A56025
London Borough of Sutton,09/06/2023,50363745,-878.84,Bupa Care Services,SOCIAL SERVICES RESIDENTIAL,People's Services,Nursing Care - 3rd party top up payment,A56023
London Borough of Sutton,09/06/2023,50363772,"1,859.67",Bupa Care Services,SOCIAL SERVICES RESIDENTIAL,People's Services,Respite Care,A56116
London Borough of Sutton,09/06/2023,50363772,-376.65,Bupa Care Services,SOCIAL SERVICES RESIDENTIAL,People's Services,Nursing Care - 3rd party top up payment,A56023
London Borough of Sutton,09/06/2023,50363837,"4,388.70",Bupa Care Services,SOCIAL SERVICES RESIDENTIAL,People's Services,Nursing Care Short Term,A56026
London Borough of Sutton,09/06/2023,50363837,-941.61,Bupa Care Services,SOCIAL SERVICES RESIDENTIAL,People's Services,Nursing Care - 3rd party top up payment,A56023
London Borough of Sutton,09/06/2023,50363857,-878.84,Bupa Care Services,SOCIAL SERVICES RESIDENTIAL,People's Services,Nursing Care - 3rd party top up payment,A56023
London Borough of Sutton,09/06/2023,50363874,"4,096.12",Bupa Care Services,SOCIAL SERVICES RESIDENTIAL,People's Services,Nursing Care - Ext Provider,A56025
London Borough of Sutton,09/06/2023,50363881,"3,821.24",Bupa Care Services,SOCIAL SERVICES RESIDENTIAL,People's Services,Nursing Care Short Term,A56026
London Borough of Sutton,09/06/2023,50363881,-836.76,Bupa Care Services,SOCIAL SERVICES RESIDENTIAL,People's Services,Nursing Care - 3rd party top up payment,A56023
London Borough of Sutton,09/06/2023,50364003,"1,859.67",Bupa Care Services,SOCIAL SERVICES RESIDENTIAL,People's Services,Respite Care,A56116
London Borough of Sutton,09/06/2023,50364003,-376.65,Bupa Care Services,SOCIAL SERVICES RESIDENTIAL,People's Services,Nursing Care - 3rd party top up payment,A56023
London Borough of Sutton,12/03/2023,50371412,"2,891.24",Burdett Coutts Primary School,CHILDREN'S SERVICES - SEN SERVICES,People's Services,Top-up Funding,A51016
London Borough of Sutton,06/06/2023,50360595,"15,533.28",Busy Bees Day Nurseries Ltd ,GRANTS & EX GRATIA PAYMENTS,People's Services,Payment - Nursery Funding,A51056
London Borough of Sutton,06/06/2023,50360720,608.40,Busy Bees Day Nurseries Ltd ,GRANTS & EX GRATIA PAYMENTS,People's Services,Payment - Nursery Funding,A51056
London Borough of Sutton,06/06/2023,50360594,"13,024.80",Busy Bees Day Nurseries Ltd ,GRANTS & EX GRATIA PAYMENTS,People's Services,Payment - Nursery Funding,A51056
London Borough of Sutton,09/06/2023,50363477,"8,118.48",Butterfly's Care Homes Ltd,SOCIAL SERVICES RESIDENTIAL,People's Services,Residential Care - Ext Provider,A56114
London Borough of Sutton,01/06/2023,50363392,"2,975.69",By The Bridge Ltd,CHILDREN'S SERVICES - FOSTERING & ADOPTION SERVICES,People's Services,Foster Parents Support,A44110
London Borough of Sutton,01/06/2023,50363393,"2,975.69",By The Bridge Ltd,CHILDREN'S SERVICES - FOSTERING & ADOPTION SERVICES,People's Services,Foster Parents Support,A44110
London Borough of Sutton,01/06/2023,50363451,"4,667.05",By The Bridge Ltd,CHILDREN'S SERVICES - FOSTERING & ADOPTION SERVICES,People's Services,Foster Parents Support,A44110
London Borough of Sutton,20/04/2023,50363332,"24,374.68",Calcot Services for Children Ltd,CHILDREN'S SERVICES - FOSTERING & ADOPTION SERVICES,People's Services,Residential Care-Children,A56115
London Borough of Sutton,23/06/2023,19002251,"-1,200.00",Calfordseaden LLP,LEGAL & PROFESSIONAL SERVICES,HRA,External Fees and Consultants,C20000
London Borough of Sutton,23/06/2023,20052568,"1,200.00",Calfordseaden LLP,LEGAL & PROFESSIONAL SERVICES,HRA,External Fees and Consultants,C20000
London Borough of Sutton,26/06/2023,20052569,"2,099.44",Calfordseaden LLP,LEGAL & PROFESSIONAL SERVICES,HRA,External Fees and Consultants,C20000
London Borough of Sutton,14/06/2023,20052554,"7,290.00",Cambian Childcare Ltd,CHILDREN'S SERVICES - FOSTERING & ADOPTION SERVICES,People's Services,Approved Lodgings,A61000
London Borough of Sutton,25/04/2023,50363349,"32,284.29",Cambian Childcare Ltd,CHILDREN'S SERVICES - FOSTERING & ADOPTION SERVICES,People's Services,Residential Care-Children,A56115
London Borough of Sutton,25/04/2023,50363351,"20,105.67",Cambian Childcare Ltd,CHILDREN'S SERVICES - FOSTERING & ADOPTION SERVICES,People's Services,Residential Care-Children,A56115
London Borough of Sutton,26/06/2023,50371428,"4,207.14",Cambian Childcare Ltd,CHILDREN'S SERVICES - FOSTERING & ADOPTION SERVICES,People's Services,Independent School Fees,A56002
London Borough of Sutton,19/05/2023,20052096,"1,138.00",REDACTED - PERSONAL DATA,SUNDRY SUPPLIER - EDUCATION,People's Services,Equipment And Materials Purchase,A40000
London Borough of Sutton,09/06/2023,50363610,"4,060.72",Canterbury Oast Trust,SOCIAL SERVICES RESIDENTIAL,People's Services,Residential Care - Ext Provider,A56114
London Borough of Sutton,09/06/2023,50363610,204.72,Canterbury Oast Trust,SOCIAL SERVICES RESIDENTIAL,People's Services,One to One Care,A56108
London Borough of Sutton,09/06/2023,50363610,-965.84,Canterbury Oast Trust,SOCIAL SERVICES RESIDENTIAL,People's Services,Residential Care - Client Cont ( Net Paymt ),A56113
London Borough of Sutton,12/06/2023,50365973,"23,071.32",Canterbury Support Ltd,CHILDREN'S SERVICE - OTHER,People's Services,Residential Care-Children,A56115
London Borough of Sutton,08/03/2023,20052347,"14,762.71",Capita Business Services Ltd,BUSINESS & COMPUTER SYSTEMS,Health and Wellbeing,Equipment And Materials Repairs & Maintenance,A40051
London Borough of Sutton,05/06/2023,50362019,679.00,Caprani Care Limited,SOCIAL SERVICES RESIDENTIAL,People's Services,Day Care Services,A56021
London Borough of Sutton,05/06/2023,50362020,"1,000.00",Caprani Care Limited,SOCIAL SERVICES RESIDENTIAL,People's Services,Day Care Services,A56021
London Borough of Sutton,05/06/2023,50362023,"1,000.00",Caprani Care Limited,SOCIAL SERVICES RESIDENTIAL,People's Services,Day Care Services,A56021
London Borough of Sutton,05/06/2023,50362871,"2,772.00",Caprani Care Limited,SOCIAL SERVICES RESIDENTIAL,People's Services,Supported Living,A56088
London Borough of Sutton,05/06/2023,50362871,"2,464.00",Caprani Care Limited,SOCIAL SERVICES RESIDENTIAL,People's Services,One to One Care,A56108
London Borough of Sutton,05/06/2023,50362871,840.00,Caprani Care Limited,SOCIAL SERVICES RESIDENTIAL,People's Services,Supported Living,A56088
London Borough of Sutton,05/06/2023,50362878,"1,881.00",Caprani Care Limited,SOCIAL SERVICES RESIDENTIAL,People's Services,Supported Living,A56088
London Borough of Sutton,05/06/2023,50362878,"1,900.00",Caprani Care Limited,SOCIAL SERVICES RESIDENTIAL,People's Services,One to One Care,A56108
London Borough of Sutton,05/06/2023,50362878,342.00,Caprani Care Limited,SOCIAL SERVICES RESIDENTIAL,People's Services,Supported Living,A56088
London Borough of Sutton,05/06/2023,50364833,"2,772.00",Caprani Care Limited,SOCIAL SERVICES RESIDENTIAL,People's Services,Supported Living,A56088
London Borough of Sutton,05/06/2023,50364833,"2,464.00",Caprani Care Limited,SOCIAL SERVICES RESIDENTIAL,People's Services,One to One Care,A56108
London Borough of Sutton,05/06/2023,50364833,840.00,Caprani Care Limited,SOCIAL SERVICES RESIDENTIAL,People's Services,Supported Living,A56088
London Borough of Sutton,31/05/2023,50363409,"6,125.29",Capstone Foster Care (South East) Ltd,CHILDREN'S SERVICES - FOSTERING & ADOPTION SERVICES,People's Services,Foster Parents Support,A44110
London Borough of Sutton,31/05/2023,50363410,"5,977.42",Capstone Foster Care (South East) Ltd,CHILDREN'S SERVICES - FOSTERING & ADOPTION SERVICES,People's Services,Foster Parents Support,A44110
London Borough of Sutton,01/06/2023,20050742,"5,357.10",Care Advocates Ltd,MANAGEMENT & TRAINING SERVICES,People's Services,Approved Lodgings,A61000
London Borough of Sutton,02/05/2023,20050746,"5,535.67",Care Advocates Ltd,MANAGEMENT & TRAINING SERVICES,People's Services,Approved Lodgings,A61000
London Borough of Sutton,02/05/2023,50364832,"-2,752.43",Care Advocates Ltd,MANAGEMENT & TRAINING SERVICES,People's Services,Supported Living,A56088
London Borough of Sutton,02/05/2023,50364832,"5,913.60",Care Advocates Ltd,MANAGEMENT & TRAINING SERVICES,People's Services,Supported Living,A56088
London Borough of Sutton,02/05/2023,50364832,"2,324.28",Care Advocates Ltd,MANAGEMENT & TRAINING SERVICES,People's Services,Supported Living,A56088
London Borough of Sutton,02/05/2023,50364835,"3,911.31",Care Advocates Ltd,MANAGEMENT & TRAINING SERVICES,People's Services,Supported Living,A56088
London Borough of Sutton,02/05/2023,50364835,"2,974.41",Care Advocates Ltd,MANAGEMENT & TRAINING SERVICES,People's Services,Supported Living,A56088
London Borough of Sutton,02/05/2023,50364835,"2,573.31",Care Advocates Ltd,MANAGEMENT & TRAINING SERVICES,People's Services,Supported Living,A56088
London Borough of Sutton,02/05/2023,50364836,"1,800.70",Care Advocates Ltd,MANAGEMENT & TRAINING SERVICES,People's Services,Supported Living,A56088
London Borough of Sutton,02/05/2023,50364836,"2,465.83",Care Advocates Ltd,MANAGEMENT & TRAINING SERVICES,People's Services,Supported Living,A56088
London Borough of Sutton,02/05/2023,50364836,"2,573.31",Care Advocates Ltd,MANAGEMENT & TRAINING SERVICES,People's Services,Supported Living,A56088
London Borough of Sutton,02/05/2023,50364837,"2,662.86",Care Advocates Ltd,MANAGEMENT & TRAINING SERVICES,People's Services,Supported Living,A56088
London Borough of Sutton,02/05/2023,50364837,"1,554.34",Care Advocates Ltd,MANAGEMENT & TRAINING SERVICES,People's Services,Supported Living,A56088
London Borough of Sutton,02/05/2023,50364837,"1,242.52",Care Advocates Ltd,MANAGEMENT & TRAINING SERVICES,People's Services,Supported Living,A56088
London Borough of Sutton,09/06/2023,50363625,"3,400.00",Care Assist Ltd.,SOCIAL SERVICES RESIDENTIAL,People's Services,Residential Care - Ext Provider,A56114
London Borough of Sutton,09/06/2023,50363625,"-1,700.00",Care Assist Ltd.,SOCIAL SERVICES RESIDENTIAL,People's Services,Nursing Care - 3rd party top up payment,A56023
London Borough of Sutton,09/06/2023,50363465,"3,320.32",Care Concern Group,SOCIAL SERVICES RESIDENTIAL,People's Services,Residential Care - Ext Provider,A56114
London Borough of Sutton,20/06/2023,50367212,"2,003.57",Care Connexions UK Limited,SOCIAL SERVICES RESIDENTIAL,People's Services,One to One Care,A56108
London Borough of Sutton,09/06/2023,50363611,"3,768.36",Care Direct Uk Ltd,SOCIAL SERVICES RESIDENTIAL,People's Services,Residential Care - Ext Provider,A56114
London Borough of Sutton,31/05/2023,50363450,"44,671.00",Care Hubz Ltd,CHILDREN'S SERVICE - OTHER,People's Services,Residential Care-Children,A56115
London Borough of Sutton,28/05/2023,50362052,273.00,Care More Ltd,SOCIAL SERVICES RESIDENTIAL,People's Services,Home Care Services,A56019
London Borough of Sutton,28/05/2023,50362052,"1,022.00",Care More Ltd,SOCIAL SERVICES RESIDENTIAL,People's Services,Home Care Services,A56019
London Borough of Sutton,28/05/2023,50362053,728.00,Care More Ltd,SOCIAL SERVICES RESIDENTIAL,People's Services,Home Care Services,A56019
London Borough of Sutton,28/05/2023,50362053,136.50,Care More Ltd,SOCIAL SERVICES RESIDENTIAL,People's Services,Home Care Services,A56019
London Borough of Sutton,28/05/2023,50362055,773.54,Care More Ltd,SOCIAL SERVICES RESIDENTIAL,People's Services,Home Care Services,A56019
London Borough of Sutton,28/05/2023,50362056,728.00,Care More Ltd,SOCIAL SERVICES RESIDENTIAL,People's Services,Home Care Services,A56019
London Borough of Sutton,28/05/2023,50362069,917.07,Care More Ltd,SOCIAL SERVICES RESIDENTIAL,People's Services,Home Care Services,A56019
London Borough of Sutton,28/05/2023,50362069,20.00,Care More Ltd,SOCIAL SERVICES RESIDENTIAL,People's Services,Home Care Services,A56019
London Borough of Sutton,28/05/2023,50362139,833.54,Care More Ltd,SOCIAL SERVICES RESIDENTIAL,People's Services,Home Care Services,A56019
London Borough of Sutton,28/05/2023,50362147,364.02,Care More Ltd,SOCIAL SERVICES RESIDENTIAL,People's Services,Home Care Services,A56019
London Borough of Sutton,28/05/2023,50362147,204.75,Care More Ltd,SOCIAL SERVICES RESIDENTIAL,People's Services,Home Care Services,A56019
London Borough of Sutton,28/05/2023,50362148,917.07,Care More Ltd,SOCIAL SERVICES RESIDENTIAL,People's Services,Home Care Services,A56019
London Borough of Sutton,28/05/2023,50362151,962.61,Care More Ltd,SOCIAL SERVICES RESIDENTIAL,People's Services,Home Care Services,A56019
London Borough of Sutton,11/06/2023,50366311,273.00,Care More Ltd,SOCIAL SERVICES RESIDENTIAL,People's Services,Home Care Services,A56019
London Borough of Sutton,11/06/2023,50366311,"1,022.00",Care More Ltd,SOCIAL SERVICES RESIDENTIAL,People's Services,Home Care Services,A56019
London Borough of Sutton,11/06/2023,50366324,893.54,Care More Ltd,SOCIAL SERVICES RESIDENTIAL,People's Services,Home Care Services,A56019
London Borough of Sutton,11/06/2023,50366328,728.00,Care More Ltd,SOCIAL SERVICES RESIDENTIAL,People's Services,Home Care Services,A56019
London Borough of Sutton,11/06/2023,50366328,136.50,Care More Ltd,SOCIAL SERVICES RESIDENTIAL,People's Services,Home Care Services,A56019
London Borough of Sutton,11/06/2023,50366340,773.54,Care More Ltd,SOCIAL SERVICES RESIDENTIAL,People's Services,Home Care Services,A56019
London Borough of Sutton,11/06/2023,50366342,728.00,Care More Ltd,SOCIAL SERVICES RESIDENTIAL,People's Services,Home Care Services,A56019
London Borough of Sutton,11/06/2023,50366345,917.07,Care More Ltd,SOCIAL SERVICES RESIDENTIAL,People's Services,Home Care Services,A56019
London Borough of Sutton,11/06/2023,50366345,20.00,Care More Ltd,SOCIAL SERVICES RESIDENTIAL,People's Services,Home Care Services,A56019
London Borough of Sutton,11/06/2023,50366429,717.07,Care More Ltd,SOCIAL SERVICES RESIDENTIAL,People's Services,Home Care Services,A56019
London Borough of Sutton,11/06/2023,50366432,917.07,Care More Ltd,SOCIAL SERVICES RESIDENTIAL,People's Services,Home Care Services,A56019
London Borough of Sutton,11/06/2023,50366434,962.61,Care More Ltd,SOCIAL SERVICES RESIDENTIAL,People's Services,Home Care Services,A56019
London Borough of Sutton,11/06/2023,50366470,364.02,Care More Ltd,SOCIAL SERVICES RESIDENTIAL,People's Services,Home Care Services,A56019
London Borough of Sutton,11/06/2023,50366470,204.75,Care More Ltd,SOCIAL SERVICES RESIDENTIAL,People's Services,Home Care Services,A56019
London Borough of Sutton,18/06/2023,50371490,773.54,Care More Ltd,SOCIAL SERVICES RESIDENTIAL,People's Services,Home Care Services,A56019
London Borough of Sutton,25/06/2023,50371491,773.54,Care More Ltd,SOCIAL SERVICES RESIDENTIAL,People's Services,Home Care Services,A56019
London Borough of Sutton,18/06/2023,50371572,833.54,Care More Ltd,SOCIAL SERVICES RESIDENTIAL,People's Services,Home Care Services,A56019
London Borough of Sutton,25/06/2023,50371573,833.54,Care More Ltd,SOCIAL SERVICES RESIDENTIAL,People's Services,Home Care Services,A56019
London Borough of Sutton,18/06/2023,50371600,364.02,Care More Ltd,SOCIAL SERVICES RESIDENTIAL,People's Services,Home Care Services,A56019
London Borough of Sutton,18/06/2023,50371600,204.75,Care More Ltd,SOCIAL SERVICES RESIDENTIAL,People's Services,Home Care Services,A56019
London Borough of Sutton,25/06/2023,50371601,364.02,Care More Ltd,SOCIAL SERVICES RESIDENTIAL,People's Services,Home Care Services,A56019
London Borough of Sutton,25/06/2023,50371601,204.75,Care More Ltd,SOCIAL SERVICES RESIDENTIAL,People's Services,Home Care Services,A56019
London Borough of Sutton,18/06/2023,50371602,917.07,Care More Ltd,SOCIAL SERVICES RESIDENTIAL,People's Services,Home Care Services,A56019
London Borough of Sutton,25/06/2023,50371603,917.07,Care More Ltd,SOCIAL SERVICES RESIDENTIAL,People's Services,Home Care Services,A56019
London Borough of Sutton,18/06/2023,50371609,962.61,Care More Ltd,SOCIAL SERVICES RESIDENTIAL,People's Services,Home Care Services,A56019
London Borough of Sutton,25/06/2023,50371610,962.61,Care More Ltd,SOCIAL SERVICES RESIDENTIAL,People's Services,Home Care Services,A56019
London Borough of Sutton,18/06/2023,50371665,273.00,Care More Ltd,SOCIAL SERVICES RESIDENTIAL,People's Services,Home Care Services,A56019
London Borough of Sutton,18/06/2023,50371665,"1,022.00",Care More Ltd,SOCIAL SERVICES RESIDENTIAL,People's Services,Home Care Services,A56019
London Borough of Sutton,25/06/2023,50371666,273.00,Care More Ltd,SOCIAL SERVICES RESIDENTIAL,People's Services,Home Care Services,A56019
London Borough of Sutton,25/06/2023,50371666,"1,022.00",Care More Ltd,SOCIAL SERVICES RESIDENTIAL,People's Services,Home Care Services,A56019
London Borough of Sutton,25/06/2023,50371668,728.00,Care More Ltd,SOCIAL SERVICES RESIDENTIAL,People's Services,Home Care Services,A56019
London Borough of Sutton,25/06/2023,50371668,136.50,Care More Ltd,SOCIAL SERVICES RESIDENTIAL,People's Services,Home Care Services,A56019
London Borough of Sutton,18/06/2023,50371680,773.54,Care More Ltd,SOCIAL SERVICES RESIDENTIAL,People's Services,Home Care Services,A56019
London Borough of Sutton,25/06/2023,50371681,773.54,Care More Ltd,SOCIAL SERVICES RESIDENTIAL,People's Services,Home Care Services,A56019
London Borough of Sutton,18/06/2023,50371688,728.00,Care More Ltd,SOCIAL SERVICES RESIDENTIAL,People's Services,Home Care Services,A56019
London Borough of Sutton,25/06/2023,50371689,728.00,Care More Ltd,SOCIAL SERVICES RESIDENTIAL,People's Services,Home Care Services,A56019
London Borough of Sutton,18/06/2023,50371716,917.07,Care More Ltd,SOCIAL SERVICES RESIDENTIAL,People's Services,Home Care Services,A56019
London Borough of Sutton,18/06/2023,50371716,20.00,Care More Ltd,SOCIAL SERVICES RESIDENTIAL,People's Services,Home Care Services,A56019
London Borough of Sutton,25/06/2023,50371717,917.07,Care More Ltd,SOCIAL SERVICES RESIDENTIAL,People's Services,Home Care Services,A56019
London Borough of Sutton,25/06/2023,50371717,20.00,Care More Ltd,SOCIAL SERVICES RESIDENTIAL,People's Services,Home Care Services,A56019
London Borough of Sutton,09/06/2023,50363475,"4,400.00",Care UK Homecare Ltd,SOCIAL SERVICES RESIDENTIAL,People's Services,Residential Care - Ext Provider,A56114
London Borough of Sutton,09/06/2023,50363567,"4,772.96",Care UK Homecare Ltd,SOCIAL SERVICES RESIDENTIAL,People's Services,Residential Care - Ext Provider,A56114
London Borough of Sutton,09/06/2023,50363567,-718.70,Care UK Homecare Ltd,SOCIAL SERVICES RESIDENTIAL,People's Services,Residential Care - Client Cont ( Net Paymt ),A56113
London Borough of Sutton,09/06/2023,50363670,-836.76,Care UK Homecare Ltd,SOCIAL SERVICES RESIDENTIAL,People's Services,Nursing Care - 3rd party top up payment,A56023
London Borough of Sutton,09/06/2023,50363670,"4,560.00",Care UK Homecare Ltd,SOCIAL SERVICES RESIDENTIAL,People's Services,Nursing Care Short Term,A56026
London Borough of Sutton,09/06/2023,50363873,"4,096.12",Care UK Homecare Ltd,SOCIAL SERVICES RESIDENTIAL,People's Services,Nursing Care - Ext Provider,A56025
London Borough of Sutton,09/06/2023,50363873,-878.84,Care UK Homecare Ltd,SOCIAL SERVICES RESIDENTIAL,People's Services,Nursing Care - 3rd party top up payment,A56023
London Borough of Sutton,09/06/2023,50363887,"28,011.43",Care UK Homecare Ltd,SOCIAL SERVICES RESIDENTIAL,People's Services,Nursing Care - Ext Provider,A56025
London Borough of Sutton,09/06/2023,50363894,"2,456.29",Care UK Homecare Ltd,SOCIAL SERVICES RESIDENTIAL,People's Services,Nursing Care - Ext Provider,A56025
London Borough of Sutton,09/06/2023,50363894,-328.73,Care UK Homecare Ltd,SOCIAL SERVICES RESIDENTIAL,People's Services,Nursing Care - 3rd party top up payment,A56023
London Borough of Sutton,09/06/2023,50363950,-836.76,Care UK Homecare Ltd,SOCIAL SERVICES RESIDENTIAL,People's Services,Nursing Care - 3rd party top up payment,A56023
London Borough of Sutton,09/06/2023,50363950,"-23,451.43",Care UK Homecare Ltd,SOCIAL SERVICES RESIDENTIAL,People's Services,Nursing Care Short Term,A56026
London Borough of Sutton,26/06/2023,50371293,410.56,Care Unlimited Domcare Ltd,SOCIAL SERVICES DAY CARE,People's Services,Supported Living,A56088
London Borough of Sutton,26/06/2023,50371293,"3,595.20",Care Unlimited Domcare Ltd,SOCIAL SERVICES DAY CARE,People's Services,Supported Living,A56088
London Borough of Sutton,26/06/2023,50371293,"1,056.88",Care Unlimited Domcare Ltd,SOCIAL SERVICES DAY CARE,People's Services,Supported Living,A56088
London Borough of Sutton,26/06/2023,50371294,410.56,Care Unlimited Domcare Ltd,SOCIAL SERVICES DAY CARE,People's Services,Supported Living,A56088
London Borough of Sutton,26/06/2023,50371294,"3,595.20",Care Unlimited Domcare Ltd,SOCIAL SERVICES DAY CARE,People's Services,Supported Living,A56088
London Borough of Sutton,26/06/2023,50371294,"1,056.88",Care Unlimited Domcare Ltd,SOCIAL SERVICES DAY CARE,People's Services,Supported Living,A56088
London Borough of Sutton,26/06/2023,50371295,"5,931.52",Care Unlimited Domcare Ltd,SOCIAL SERVICES DAY CARE,People's Services,Supported Living,A56088
London Borough of Sutton,26/06/2023,50371300,410.56,Care Unlimited Domcare Ltd,SOCIAL SERVICES DAY CARE,People's Services,Supported Living,A56088
London Borough of Sutton,26/06/2023,50371300,"3,595.20",Care Unlimited Domcare Ltd,SOCIAL SERVICES DAY CARE,People's Services,Supported Living,A56088
London Borough of Sutton,26/06/2023,50371300,"1,056.88",Care Unlimited Domcare Ltd,SOCIAL SERVICES DAY CARE,People's Services,Supported Living,A56088
London Borough of Sutton,26/06/2023,50371309,410.56,Care Unlimited Domcare Ltd,SOCIAL SERVICES DAY CARE,People's Services,Supported Living,A56088
London Borough of Sutton,26/06/2023,50371309,"3,595.20",Care Unlimited Domcare Ltd,SOCIAL SERVICES DAY CARE,People's Services,Supported Living,A56088
London Borough of Sutton,26/06/2023,50371309,"1,056.88",Care Unlimited Domcare Ltd,SOCIAL SERVICES DAY CARE,People's Services,Supported Living,A56088
London Borough of Sutton,26/06/2023,50371310,410.56,Care Unlimited Domcare Ltd,SOCIAL SERVICES DAY CARE,People's Services,Supported Living,A56088
London Borough of Sutton,26/06/2023,50371310,"3,595.20",Care Unlimited Domcare Ltd,SOCIAL SERVICES DAY CARE,People's Services,Supported Living,A56088
London Borough of Sutton,26/06/2023,50371310,"1,056.88",Care Unlimited Domcare Ltd,SOCIAL SERVICES DAY CARE,People's Services,Supported Living,A56088
London Borough of Sutton,26/06/2023,50371311,"5,931.52",Care Unlimited Domcare Ltd,SOCIAL SERVICES DAY CARE,People's Services,Supported Living,A56088
London Borough of Sutton,23/06/2023,50371324,"4,732.00",Care Unlimited Domcare Ltd,SOCIAL SERVICES DAY CARE,People's Services,Supported Living,A56088
London Borough of Sutton,07/06/2023,50364070,619.50,Care4Care Services Ltd,SOCIAL SERVICES DAY CARE,People's Services,Home Care Services,A56019
London Borough of Sutton,07/06/2023,50364070,"1,779.00",Care4Care Services Ltd,SOCIAL SERVICES DAY CARE,People's Services,Home Care Services,A56019
London Borough of Sutton,07/06/2023,50365166,"4,201.20",Care4Care Services Ltd,SOCIAL SERVICES DAY CARE,People's Services,Home Care Services,A56019
London Borough of Sutton,12/06/2023,50365172,"1,091.60",Care4Care Services Ltd,SOCIAL SERVICES DAY CARE,People's Services,Home Care Services,A56019
London Borough of Sutton,12/06/2023,50365175,930.50,Care4Care Services Ltd,SOCIAL SERVICES DAY CARE,People's Services,Home Care Services,A56019
London Borough of Sutton,12/06/2023,50365176,899.00,Care4Care Services Ltd,SOCIAL SERVICES DAY CARE,People's Services,Home Care Services,A56019
London Borough of Sutton,12/06/2023,50365180,"3,265.60",Care4Care Services Ltd,SOCIAL SERVICES DAY CARE,People's Services,Home Care Services,A56019
London Borough of Sutton,12/06/2023,50365190,"1,440.50",Care4Care Services Ltd,SOCIAL SERVICES DAY CARE,People's Services,Home Care Services,A56019
London Borough of Sutton,12/06/2023,50365201,930.50,Care4Care Services Ltd,SOCIAL SERVICES DAY CARE,People's Services,Home Care Services,A56019
London Borough of Sutton,12/06/2023,50365213,"1,940.70",Care4Care Services Ltd,SOCIAL SERVICES DAY CARE,People's Services,Home Care Services,A56019
London Borough of Sutton,09/06/2023,50363588,"6,600.00",CAREBASE (CLARE) LTD,SOCIAL SERVICES RESIDENTIAL,People's Services,Nursing Care - Ext Provider,A56025
London Borough of Sutton,11/05/2023,20049200,820.00,Careium UK Limited,ACCOMMODATION - OTHER,HRA,Supporting People - Alarm Services,A61023
London Borough of Sutton,31/05/2023,20051286,"14,664.00",Careium UK Limited,ACCOMMODATION - OTHER,People's Services,Equipment,A61013
London Borough of Sutton,31/05/2023,20051313,"5,954.31",Careium UK Limited,ACCOMMODATION - OTHER,People's Services,Other Agencies - Third Party,A57000
London Borough of Sutton,31/05/2023,20051314,"30,376.85",Careium UK Limited,ACCOMMODATION - OTHER,People's Services,Other Agencies - Third Party,A57000
London Borough of Sutton,31/05/2023,20050611,580.00,Caremark (Sutton),SOCIAL SERVICES DAY CARE,People's Services,Home Care Services,A56019
London Borough of Sutton,13/06/2023,20051571,584.00,Caremark (Sutton),SOCIAL SERVICES DAY CARE,People's Services,Home Care Services,A56019
London Borough of Sutton,15/06/2023,20051762,"12,036.25",Caremark (Sutton),SOCIAL SERVICES DAY CARE,People's Services,Provider Contract Payments,A44290
London Borough of Sutton,26/06/2023,20052612,580.00,Caremark (Sutton),SOCIAL SERVICES DAY CARE,People's Services,Home Care Services,A56019
London Borough of Sutton,16/04/2023,50361546,"1,921.00",Caremark (Sutton),SOCIAL SERVICES DAY CARE,People's Services,Home Care Services,A56019
London Borough of Sutton,14/05/2023,50361576,600.26,Caremark (Sutton),SOCIAL SERVICES DAY CARE,People's Services,Home Care Services,A56019
London Borough of Sutton,14/05/2023,50361590,579.78,Caremark (Sutton),SOCIAL SERVICES DAY CARE,People's Services,Home Care Services,A56019
London Borough of Sutton,14/05/2023,50361625,948.77,Caremark (Sutton),SOCIAL SERVICES DAY CARE,People's Services,Home Care Services,A56019
London Borough of Sutton,07/05/2023,50361661,635.77,Caremark (Sutton),SOCIAL SERVICES DAY CARE,People's Services,Home Care Services,A56019
London Borough of Sutton,07/05/2023,50361663,"1,069.10",Caremark (Sutton),SOCIAL SERVICES DAY CARE,People's Services,Home Care Services,A56019
London Borough of Sutton,07/05/2023,50361672,547.75,Caremark (Sutton),SOCIAL SERVICES DAY CARE,People's Services,Home Care Services,A56019
London Borough of Sutton,07/05/2023,50361674,"1,921.00",Caremark (Sutton),SOCIAL SERVICES DAY CARE,People's Services,Home Care Services,A56019
London Borough of Sutton,01/06/2023,50361682,803.40,Caremark (Sutton),SOCIAL SERVICES DAY CARE,People's Services,Home Care Services,A56019
London Borough of Sutton,07/05/2023,50361684,"1,662.95",Caremark (Sutton),SOCIAL SERVICES DAY CARE,People's Services,Home Care Services,A56019
London Borough of Sutton,21/05/2023,50362221,500.41,Caremark (Sutton),SOCIAL SERVICES DAY CARE,People's Services,Home Care Services,A56019
London Borough of Sutton,21/05/2023,50362290,594.27,Caremark (Sutton),SOCIAL SERVICES DAY CARE,People's Services,Home Care Services,A56019
London Borough of Sutton,21/05/2023,50362295,815.93,Caremark (Sutton),SOCIAL SERVICES DAY CARE,People's Services,Home Care Services,A56019
London Borough of Sutton,21/05/2023,50362295,21.84,Caremark (Sutton),SOCIAL SERVICES DAY CARE,People's Services,Home Care Services,A56019
London Borough of Sutton,21/05/2023,50362296,618.00,Caremark (Sutton),SOCIAL SERVICES DAY CARE,People's Services,Home Care Services,A56019
London Borough of Sutton,21/05/2023,50362296,309.00,Caremark (Sutton),SOCIAL SERVICES DAY CARE,People's Services,Home Care Services,A56019
London Borough of Sutton,21/05/2023,50362444,623.36,Caremark (Sutton),SOCIAL SERVICES DAY CARE,People's Services,Home Care Services,A56019
London Borough of Sutton,21/05/2023,50362498,938.37,Caremark (Sutton),SOCIAL SERVICES DAY CARE,People's Services,Home Care Services,A56019
London Borough of Sutton,21/05/2023,50362499,45.14,Caremark (Sutton),SOCIAL SERVICES DAY CARE,People's Services,Home Care Services,A56019
London Borough of Sutton,21/05/2023,50362499,605.01,Caremark (Sutton),SOCIAL SERVICES DAY CARE,People's Services,Home Care Services,A56019
London Borough of Sutton,06/06/2023,50362941,803.40,Caremark (Sutton),SOCIAL SERVICES DAY CARE,People's Services,Home Care Services,A56019
London Borough of Sutton,28/05/2023,50362949,508.50,Caremark (Sutton),SOCIAL SERVICES DAY CARE,People's Services,Home Care Services,A56019
London Borough of Sutton,28/05/2023,50362958,"1,875.50",Caremark (Sutton),SOCIAL SERVICES DAY CARE,People's Services,Home Care Services,A56019
London Borough of Sutton,28/05/2023,50362964,500.41,Caremark (Sutton),SOCIAL SERVICES DAY CARE,People's Services,Home Care Services,A56019
London Borough of Sutton,28/05/2023,50362974,623.36,Caremark (Sutton),SOCIAL SERVICES DAY CARE,People's Services,Home Care Services,A56019
London Borough of Sutton,28/05/2023,50362981,"1,053.30",Caremark (Sutton),SOCIAL SERVICES DAY CARE,People's Services,Home Care Services,A56019
London Borough of Sutton,14/05/2023,50364720,569.25,Caremark (Sutton),SOCIAL SERVICES DAY CARE,People's Services,Home Care Services,A56019
London Borough of Sutton,28/05/2023,50364727,926.91,Caremark (Sutton),SOCIAL SERVICES DAY CARE,People's Services,Home Care Services,A56019
London Borough of Sutton,14/05/2023,50364729,"1,921.00",Caremark (Sutton),SOCIAL SERVICES DAY CARE,People's Services,Home Care Services,A56019
London Borough of Sutton,14/05/2023,50364780,635.77,Caremark (Sutton),SOCIAL SERVICES DAY CARE,People's Services,Home Care Services,A56019
London Borough of Sutton,28/05/2023,50364807,803.37,Caremark (Sutton),SOCIAL SERVICES DAY CARE,People's Services,Home Care Services,A56019
London Borough of Sutton,28/05/2023,50364807,21.50,Caremark (Sutton),SOCIAL SERVICES DAY CARE,People's Services,Home Care Services,A56019
London Borough of Sutton,28/05/2023,50364810,618.00,Caremark (Sutton),SOCIAL SERVICES DAY CARE,People's Services,Home Care Services,A56019
London Borough of Sutton,28/05/2023,50364810,309.00,Caremark (Sutton),SOCIAL SERVICES DAY CARE,People's Services,Home Care Services,A56019
London Borough of Sutton,28/05/2023,50364814,803.37,Caremark (Sutton),SOCIAL SERVICES DAY CARE,People's Services,Home Care Services,A56019
London Borough of Sutton,28/05/2023,50364821,938.37,Caremark (Sutton),SOCIAL SERVICES DAY CARE,People's Services,Home Care Services,A56019
London Borough of Sutton,04/06/2023,50364822,948.77,Caremark (Sutton),SOCIAL SERVICES DAY CARE,People's Services,Home Care Services,A56019
London Borough of Sutton,16/04/2023,50365224,506.60,Caremark (Sutton),SOCIAL SERVICES DAY CARE,People's Services,Home Care Services,A56019
London Borough of Sutton,16/04/2023,50365225,592.76,Caremark (Sutton),SOCIAL SERVICES DAY CARE,People's Services,Home Care Services,A56019
London Borough of Sutton,07/05/2023,50365226,623.36,Caremark (Sutton),SOCIAL SERVICES DAY CARE,People's Services,Home Care Services,A56019
London Borough of Sutton,09/04/2023,50365227,506.60,Caremark (Sutton),SOCIAL SERVICES DAY CARE,People's Services,Home Care Services,A56019
London Borough of Sutton,09/04/2023,50365228,586.76,Caremark (Sutton),SOCIAL SERVICES DAY CARE,People's Services,Home Care Services,A56019
London Borough of Sutton,16/04/2023,50365230,"1,069.10",Caremark (Sutton),SOCIAL SERVICES DAY CARE,People's Services,Home Care Services,A56019
London Borough of Sutton,14/05/2023,50365231,"1,069.10",Caremark (Sutton),SOCIAL SERVICES DAY CARE,People's Services,Home Care Services,A56019
London Borough of Sutton,09/04/2023,50365232,"1,066.10",Caremark (Sutton),SOCIAL SERVICES DAY CARE,People's Services,Home Care Services,A56019
London Borough of Sutton,04/06/2023,50365233,"1,069.10",Caremark (Sutton),SOCIAL SERVICES DAY CARE,People's Services,Home Care Services,A56019
London Borough of Sutton,16/04/2023,50365237,"1,709.95",Caremark (Sutton),SOCIAL SERVICES DAY CARE,People's Services,Home Care Services,A56019
London Borough of Sutton,28/05/2023,50365238,"1,658.95",Caremark (Sutton),SOCIAL SERVICES DAY CARE,People's Services,Home Care Services,A56019
London Borough of Sutton,23/04/2023,50365239,"1,658.95",Caremark (Sutton),SOCIAL SERVICES DAY CARE,People's Services,Home Care Services,A56019
London Borough of Sutton,14/05/2023,50365240,"1,662.95",Caremark (Sutton),SOCIAL SERVICES DAY CARE,People's Services,Home Care Services,A56019
London Borough of Sutton,09/04/2023,50365241,"1,662.95",Caremark (Sutton),SOCIAL SERVICES DAY CARE,People's Services,Home Care Services,A56019
London Borough of Sutton,16/04/2023,50365246,569.25,Caremark (Sutton),SOCIAL SERVICES DAY CARE,People's Services,Home Care Services,A56019
London Borough of Sutton,07/05/2023,50365247,540.75,Caremark (Sutton),SOCIAL SERVICES DAY CARE,People's Services,Home Care Services,A56019
London Borough of Sutton,16/04/2023,50365250,32.25,Caremark (Sutton),SOCIAL SERVICES DAY CARE,People's Services,Home Care Services,A56019
London Borough of Sutton,16/04/2023,50365250,813.77,Caremark (Sutton),SOCIAL SERVICES DAY CARE,People's Services,Home Care Services,A56019
London Borough of Sutton,09/04/2023,50365252,32.25,Caremark (Sutton),SOCIAL SERVICES DAY CARE,People's Services,Home Care Services,A56019
London Borough of Sutton,09/04/2023,50365252,813.77,Caremark (Sutton),SOCIAL SERVICES DAY CARE,People's Services,Home Care Services,A56019
London Borough of Sutton,23/04/2023,50365259,710.37,Caremark (Sutton),SOCIAL SERVICES DAY CARE,People's Services,Home Care Services,A56019
London Borough of Sutton,09/04/2023,50365260,"1,923.00",Caremark (Sutton),SOCIAL SERVICES DAY CARE,People's Services,Home Care Services,A56019
London Borough of Sutton,25/05/2023,50365271,532.00,Caremark (Sutton),SOCIAL SERVICES DAY CARE,People's Services,Home Care Services,A56019
London Borough of Sutton,25/05/2023,50365271,407.00,Caremark (Sutton),SOCIAL SERVICES DAY CARE,People's Services,Home Care Services,A56019
London Borough of Sutton,04/06/2023,50365273,"1,662.95",Caremark (Sutton),SOCIAL SERVICES DAY CARE,People's Services,Home Care Services,A56019
London Borough of Sutton,01/06/2023,50365274,618.50,Caremark (Sutton),SOCIAL SERVICES DAY CARE,People's Services,Home Care Services,A56019
London Borough of Sutton,18/05/2023,50365275,532.00,Caremark (Sutton),SOCIAL SERVICES DAY CARE,People's Services,Home Care Services,A56019
London Borough of Sutton,18/05/2023,50365275,371.00,Caremark (Sutton),SOCIAL SERVICES DAY CARE,People's Services,Home Care Services,A56019
London Borough of Sutton,04/06/2023,50365283,742.36,Caremark (Sutton),SOCIAL SERVICES DAY CARE,People's Services,Home Care Services,A56019
London Borough of Sutton,04/06/2023,50365284,547.75,Caremark (Sutton),SOCIAL SERVICES DAY CARE,People's Services,Home Care Services,A56019
London Borough of Sutton,04/06/2023,50365285,"1,932.75",Caremark (Sutton),SOCIAL SERVICES DAY CARE,People's Services,Home Care Services,A56019
London Borough of Sutton,04/06/2023,50365287,553.50,Caremark (Sutton),SOCIAL SERVICES DAY CARE,People's Services,Home Care Services,A56019
London Borough of Sutton,04/06/2023,50365288,506.60,Caremark (Sutton),SOCIAL SERVICES DAY CARE,People's Services,Home Care Services,A56019
London Borough of Sutton,04/06/2023,50365289,532.00,Caremark (Sutton),SOCIAL SERVICES DAY CARE,People's Services,Home Care Services,A56019
London Borough of Sutton,04/06/2023,50365289,407.00,Caremark (Sutton),SOCIAL SERVICES DAY CARE,People's Services,Home Care Services,A56019
London Borough of Sutton,04/06/2023,50365290,635.76,Caremark (Sutton),SOCIAL SERVICES DAY CARE,People's Services,Home Care Services,A56019
London Borough of Sutton,04/06/2023,50365292,691.60,Caremark (Sutton),SOCIAL SERVICES DAY CARE,People's Services,Home Care Services,A56019
London Borough of Sutton,04/06/2023,50365292,165.17,Caremark (Sutton),SOCIAL SERVICES DAY CARE,People's Services,Home Care Services,A56019
London Borough of Sutton,04/06/2023,50365293,813.77,Caremark (Sutton),SOCIAL SERVICES DAY CARE,People's Services,Home Care Services,A56019
London Borough of Sutton,04/06/2023,50365294,813.77,Caremark (Sutton),SOCIAL SERVICES DAY CARE,People's Services,Home Care Services,A56019
London Borough of Sutton,07/05/2023,50365301,948.78,Caremark (Sutton),SOCIAL SERVICES DAY CARE,People's Services,Home Care Services,A56019
London Borough of Sutton,07/05/2023,50365312,599.57,Caremark (Sutton),SOCIAL SERVICES DAY CARE,People's Services,Home Care Services,A56019
London Borough of Sutton,07/05/2023,50365314,553.50,Caremark (Sutton),SOCIAL SERVICES DAY CARE,People's Services,Home Care Services,A56019
London Borough of Sutton,07/05/2023,50365318,506.61,Caremark (Sutton),SOCIAL SERVICES DAY CARE,People's Services,Home Care Services,A56019
London Borough of Sutton,11/06/2023,50367615,803.37,Caremark (Sutton),SOCIAL SERVICES DAY CARE,People's Services,Home Care Services,A56019
London Borough of Sutton,11/06/2023,50367618,540.75,Caremark (Sutton),SOCIAL SERVICES DAY CARE,People's Services,Home Care Services,A56019
London Borough of Sutton,11/06/2023,50367626,"1,897.00",Caremark (Sutton),SOCIAL SERVICES DAY CARE,People's Services,Home Care Services,A56019
London Borough of Sutton,11/06/2023,50367642,640.56,Caremark (Sutton),SOCIAL SERVICES DAY CARE,People's Services,Home Care Services,A56019
London Borough of Sutton,11/06/2023,50367650,"1,053.30",Caremark (Sutton),SOCIAL SERVICES DAY CARE,People's Services,Home Care Services,A56019
London Borough of Sutton,11/06/2023,50367655,938.37,Caremark (Sutton),SOCIAL SERVICES DAY CARE,People's Services,Home Care Services,A56019
London Borough of Sutton,11/06/2023,50367677,607.17,Caremark (Sutton),SOCIAL SERVICES DAY CARE,People's Services,Home Care Services,A56019
London Borough of Sutton,11/06/2023,50367731,803.37,Caremark (Sutton),SOCIAL SERVICES DAY CARE,People's Services,Home Care Services,A56019
London Borough of Sutton,11/06/2023,50367731,43.00,Caremark (Sutton),SOCIAL SERVICES DAY CARE,People's Services,Home Care Services,A56019
London Borough of Sutton,11/06/2023,50367737,618.00,Caremark (Sutton),SOCIAL SERVICES DAY CARE,People's Services,Home Care Services,A56019
London Borough of Sutton,11/06/2023,50367737,309.00,Caremark (Sutton),SOCIAL SERVICES DAY CARE,People's Services,Home Care Services,A56019
London Borough of Sutton,11/06/2023,50367740,721.17,Caremark (Sutton),SOCIAL SERVICES DAY CARE,People's Services,Home Care Services,A56019
London Borough of Sutton,15/01/2023,50370586,580.36,Caremark (Sutton),SOCIAL SERVICES DAY CARE,People's Services,Home Care Services,A56019
London Borough of Sutton,15/01/2023,50370591,938.38,Caremark (Sutton),SOCIAL SERVICES DAY CARE,People's Services,Home Care Services,A56019
London Borough of Sutton,15/01/2023,50370606,544.76,Caremark (Sutton),SOCIAL SERVICES DAY CARE,People's Services,Home Care Services,A56019
London Borough of Sutton,15/01/2023,50370615,176.20,Caremark (Sutton),SOCIAL SERVICES DAY CARE,People's Services,Home Care Services,A56019
London Borough of Sutton,15/01/2023,50370615,924.29,Caremark (Sutton),SOCIAL SERVICES DAY CARE,People's Services,Home Care Services,A56019
London Borough of Sutton,15/01/2023,50370628,540.75,Caremark (Sutton),SOCIAL SERVICES DAY CARE,People's Services,Home Care Services,A56019
London Borough of Sutton,15/01/2023,50370658,32.25,Caremark (Sutton),SOCIAL SERVICES DAY CARE,People's Services,Home Care Services,A56019
London Borough of Sutton,15/01/2023,50370658,803.37,Caremark (Sutton),SOCIAL SERVICES DAY CARE,People's Services,Home Care Services,A56019
London Borough of Sutton,15/01/2023,50370674,"1,897.00",Caremark (Sutton),SOCIAL SERVICES DAY CARE,People's Services,Home Care Services,A56019
London Borough of Sutton,15/01/2023,50370684,500.41,Caremark (Sutton),SOCIAL SERVICES DAY CARE,People's Services,Home Care Services,A56019
London Borough of Sutton,15/01/2023,50370719,975.90,Caremark (Sutton),SOCIAL SERVICES DAY CARE,People's Services,Home Care Services,A56019
London Borough of Sutton,15/01/2023,50370741,846.38,Caremark (Sutton),SOCIAL SERVICES DAY CARE,People's Services,Home Care Services,A56019
London Borough of Sutton,26/06/2023,50371429,750.00,Caremark (Sutton),SOCIAL SERVICES DAY CARE,People's Services,Miscellaneous Expenses,A49000
London Borough of Sutton,18/06/2023,50371767,623.36,Caremark (Sutton),SOCIAL SERVICES DAY CARE,People's Services,Home Care Services,A56019
London Borough of Sutton,18/06/2023,50371779,537.87,Caremark (Sutton),SOCIAL SERVICES DAY CARE,People's Services,Home Care Services,A56019
London Borough of Sutton,18/06/2023,50371794,"1,017.30",Caremark (Sutton),SOCIAL SERVICES DAY CARE,People's Services,Home Care Services,A56019
London Borough of Sutton,18/06/2023,50371855,803.37,Caremark (Sutton),SOCIAL SERVICES DAY CARE,People's Services,Home Care Services,A56019
London Borough of Sutton,18/06/2023,50371855,43.00,Caremark (Sutton),SOCIAL SERVICES DAY CARE,People's Services,Home Care Services,A56019
London Borough of Sutton,18/06/2023,50371864,540.75,Caremark (Sutton),SOCIAL SERVICES DAY CARE,People's Services,Home Care Services,A56019
London Borough of Sutton,18/06/2023,50371880,618.00,Caremark (Sutton),SOCIAL SERVICES DAY CARE,People's Services,Home Care Services,A56019
London Borough of Sutton,18/06/2023,50371880,309.00,Caremark (Sutton),SOCIAL SERVICES DAY CARE,People's Services,Home Care Services,A56019
London Borough of Sutton,18/06/2023,50371883,617.97,Caremark (Sutton),SOCIAL SERVICES DAY CARE,People's Services,Home Care Services,A56019
London Borough of Sutton,18/06/2023,50371889,803.37,Caremark (Sutton),SOCIAL SERVICES DAY CARE,People's Services,Home Care Services,A56019
London Borough of Sutton,18/06/2023,50371891,803.40,Caremark (Sutton),SOCIAL SERVICES DAY CARE,People's Services,Home Care Services,A56019
London Borough of Sutton,18/06/2023,50371906,"1,875.50",Caremark (Sutton),SOCIAL SERVICES DAY CARE,People's Services,Home Care Services,A56019
London Borough of Sutton,18/06/2023,50371908,938.37,Caremark (Sutton),SOCIAL SERVICES DAY CARE,People's Services,Home Care Services,A56019
London Borough of Sutton,18/06/2023,50371931,500.41,Caremark (Sutton),SOCIAL SERVICES DAY CARE,People's Services,Home Care Services,A56019
London Borough of Sutton,26/10/2022,20052132,"2,011.13",Careoline Carers Services Ltd,CHILDREN'S SERVICES - DAY CARE,People's Services,One to One Care,A56108
London Borough of Sutton,07/11/2022,20052133,838.50,Careoline Carers Services Ltd,CHILDREN'S SERVICES - DAY CARE,People's Services,One to One Care,A56108
London Borough of Sutton,16/11/2022,20052134,543.50,Careoline Carers Services Ltd,CHILDREN'S SERVICES - DAY CARE,People's Services,One to One Care,A56108
London Borough of Sutton,09/06/2023,50363754,-710.00,Caretech Community Services Ltd,SOCIAL SERVICES RESIDENTIAL,People's Services,Residential Care - Client Cont ( Net Paymt ),A56113
London Borough of Sutton,09/06/2023,50363754,"5,879.88",Caretech Community Services Ltd,SOCIAL SERVICES RESIDENTIAL,People's Services,Residential Care - Ext Provider,A56114
London Borough of Sutton,09/06/2023,50363757,"5,621.56",Caretech Community Services Ltd,SOCIAL SERVICES RESIDENTIAL,People's Services,Residential Care - Ext Provider,A56114
London Borough of Sutton,09/06/2023,50364011,-627.80,Caretech Community Services Ltd,SOCIAL SERVICES RESIDENTIAL,People's Services,Residential Care - Client Cont ( Net Paymt ),A56113
London Borough of Sutton,09/06/2023,50364011,"6,030.96",Caretech Community Services Ltd,SOCIAL SERVICES RESIDENTIAL,People's Services,Residential Care - Ext Provider,A56114
London Borough of Sutton,06/06/2023,50360820,"4,076.70",Carew Academy,CHILDREN'S SERVICES - RESIDENTIAL,People's Services,Payment - Teachers Pay Grant,A51026
London Borough of Sutton,06/06/2023,50360826,"11,296.86",Carew Academy,CHILDREN'S SERVICES - RESIDENTIAL,People's Services,Payment - Teachers Pension Grant,A51027
London Borough of Sutton,13/06/2023,50364890,"1,785.00",Carew Academy,CHILDREN'S SERVICES - RESIDENTIAL,Resources,"Grants, Contributions & Donations",A47005
London Borough of Sutton,20/06/2023,20052215,"1,542.86",Caridon Young Living Ltd,CHILDREN'S SERVICES - RESIDENTIAL,People's Services,Approved Lodgings,A61000
London Borough of Sutton,25/05/2023,50363328,267.86,Caridon Young Living Ltd,CHILDREN'S SERVICES - RESIDENTIAL,People's Services,Approved Lodgings,A61000
London Borough of Sutton,25/05/2023,50363328,"5,464.29",Caridon Young Living Ltd,CHILDREN'S SERVICES - RESIDENTIAL,People's Services,Approved Lodgings,A61000
London Borough of Sutton,25/05/2023,50363363,276.79,Caridon Young Living Ltd,CHILDREN'S SERVICES - RESIDENTIAL,People's Services,Approved Lodgings,A61000
London Borough of Sutton,25/05/2023,50363363,"7,307.14",Caridon Young Living Ltd,CHILDREN'S SERVICES - RESIDENTIAL,People's Services,Approved Lodgings,A61000
London Borough of Sutton,25/05/2023,50363389,276.79,Caridon Young Living Ltd,CHILDREN'S SERVICES - RESIDENTIAL,People's Services,Approved Lodgings,A61000
London Borough of Sutton,25/05/2023,50363389,"20,482.14",Caridon Young Living Ltd,CHILDREN'S SERVICES - RESIDENTIAL,People's Services,Approved Lodgings,A61000
London Borough of Sutton,20/06/2023,50367278,767.15,Care  Support Partners Ltd,SOCIAL SERVICES RESIDENTIAL,People's Services,Supported Living,A56088
London Borough of Sutton,20/06/2023,50367278,613.72,Care  Support Partners Ltd,SOCIAL SERVICES RESIDENTIAL,People's Services,Supported Living,A56088
London Borough of Sutton,20/06/2023,50367278,"2,078.57",Care  Support Partners Ltd,SOCIAL SERVICES RESIDENTIAL,People's Services,Supported Living,A56088
London Borough of Sutton,09/06/2023,50363767,"6,824.14",Carlene House,SOCIAL SERVICES RESIDENTIAL,People's Services,Residential Care - Ext Provider,A56114
London Borough of Sutton,09/06/2023,50363781,"6,824.14",Carlene House,SOCIAL SERVICES RESIDENTIAL,People's Services,Residential Care - Ext Provider,A56114
London Borough of Sutton,09/06/2023,50363847,"6,824.14",Carlene House,SOCIAL SERVICES RESIDENTIAL,People's Services,Residential Care - Ext Provider,A56114
London Borough of Sutton,09/06/2023,50363882,"6,824.14",Carlene House,SOCIAL SERVICES RESIDENTIAL,People's Services,Residential Care - Ext Provider,A56114
London Borough of Sutton,09/06/2023,50363922,"6,824.14",Carlene House,SOCIAL SERVICES RESIDENTIAL,People's Services,Residential Care - Ext Provider,A56114
London Borough of Sutton,09/06/2023,50363973,"6,824.14",Carlene House,SOCIAL SERVICES RESIDENTIAL,People's Services,Residential Care - Ext Provider,A56114
London Borough of Sutton,09/06/2023,50363980,"6,824.14",Carlene House,SOCIAL SERVICES RESIDENTIAL,People's Services,Residential Care - Ext Provider,A56114
London Borough of Sutton,20/06/2023,50367312,"1,205.75",Carlene House,SOCIAL SERVICES RESIDENTIAL,People's Services,Home Care Services,A56019
London Borough of Sutton,20/06/2023,50367313,"4,405.65",Carlene House,SOCIAL SERVICES RESIDENTIAL,People's Services,Home Care Services,A56019
London Borough of Sutton,20/06/2023,50367314,"1,669.50",Carlene House,SOCIAL SERVICES RESIDENTIAL,People's Services,Home Care Services,A56019
London Borough of Sutton,20/06/2023,50367315,"1,762.25",Carlene House,SOCIAL SERVICES RESIDENTIAL,People's Services,Home Care Services,A56019
London Borough of Sutton,20/06/2023,50369526,"1,544.72",Carlene House,SOCIAL SERVICES RESIDENTIAL,People's Services,Supported Living,A56088
London Borough of Sutton,20/06/2023,50369526,"1,916.70",Carlene House,SOCIAL SERVICES RESIDENTIAL,People's Services,Supported Living,A56088
London Borough of Sutton,20/06/2023,50369526,"1,025.78",Carlene House,SOCIAL SERVICES RESIDENTIAL,People's Services,Supported Living,A56088
London Borough of Sutton,20/06/2023,50369528,"1,217.14",Carlene House,SOCIAL SERVICES RESIDENTIAL,People's Services,Supported Living,A56088
London Borough of Sutton,20/06/2023,50369528,"3,229.58",Carlene House,SOCIAL SERVICES RESIDENTIAL,People's Services,Supported Living,A56088
London Borough of Sutton,20/06/2023,50369528,"1,737.86",Carlene House,SOCIAL SERVICES RESIDENTIAL,People's Services,Supported Living,A56088
London Borough of Sutton,06/06/2023,50360646,504.90,REDACTED - PERSONAL DATA,GRANTS & EX GRATIA PAYMENTS,People's Services,Payment - Nursery Funding,A51056
London Borough of Sutton,06/06/2023,50360643,"1,262.25",REDACTED - PERSONAL DATA,GRANTS & EX GRATIA PAYMENTS,People's Services,Payment - Nursery Funding,A51056
London Borough of Sutton,06/06/2023,50360590,"1,767.15",REDACTED - PERSONAL DATA,GRANTS & EX GRATIA PAYMENTS,People's Services,Payment - Nursery Funding,A51056
London Borough of Sutton,11/05/2023,50367765,"6,000.00",Carshalton Athletic FC Ltd,CHILDREN'S SERVICES - SEN SERVICES,People's Services,Top-up Funding,A51016
London Borough of Sutton,06/06/2023,50360876,"4,816.60",Carshalton Boys Sports College (Academy),GRANTS & EX GRATIA PAYMENTS,People's Services,Pupil Growth,A51014
London Borough of Sutton,13/06/2023,50364891,"5,265.00",Carshalton Boys Sports College (Academy),GRANTS & EX GRATIA PAYMENTS,Resources,"Grants, Contributions & Donations",A47005
London Borough of Sutton,06/06/2023,50360644,522.60,REDACTED - PERSONAL DATA,GRANTS & EX GRATIA PAYMENTS,People's Services,Payment - Nursery Funding,A51056
London Borough of Sutton,22/07/2022,20048181,"9,940.55",CBRE Ltd,TEMP STAFF & CONSULTANCY,Resources,Building Rents,A22005
London Borough of Sutton,23/08/2022,20048182,"11,490.12",CBRE Ltd,TEMP STAFF & CONSULTANCY,Resources,Building Rents,A22005
London Borough of Sutton,20/06/2023,50367228,"6,654.36",Centred (Scotland),SOCIAL SERVICES RESIDENTIAL,People's Services,Supported Living,A56088
London Borough of Sutton,06/06/2023,20051333,"13,600.00",Certus Security LLP,CONSTRUCTION INDUSTRY,HRA,Payments to Contractors,C14000
London Borough of Sutton,06/06/2023,50360599,"7,767.05",Cheam Baptist Church Pre-School,GRANTS & EX GRATIA PAYMENTS,People's Services,Payment - Nursery Funding,A51056
London Borough of Sutton,06/06/2023,50360722,567.84,Cheam Baptist Church Pre-School,GRANTS & EX GRATIA PAYMENTS,People's Services,Payment - Nursery Funding,A51056
London Borough of Sutton,26/04/2023,50365523,"2,034.20",Cheam Baptist Church Pre-School,GRANTS & EX GRATIA PAYMENTS,People's Services,Top-up individual funding,A60033
London Borough of Sutton,01/06/2023,20050755,"2,000.00",Cheam Charter Fair,SUNDRY SUPPLIER - ENV SERVICES,Resources,"Grants, Contributions & Donations",A47005
London Borough of Sutton,06/06/2023,50360841,"24,343.20",Cheam Common Infants School -ACADEMY,GRANTS & EX GRATIA PAYMENTS,People's Services,Payment - Nursery Funding,A51056
London Borough of Sutton,06/06/2023,50360871,"1,506.56",Cheam Common Junior Academy,GRANTS & EX GRATIA PAYMENTS,People's Services,Payment - Cluster Lead SENCO,A51035
London Borough of Sutton,13/06/2023,50364894,825.00,Cheam Common Junior Academy,GRANTS & EX GRATIA PAYMENTS,Resources,"Grants, Contributions & Donations",A47005
London Borough of Sutton,06/06/2023,50360870,"2,643.43",Cheam High School (Academy),GRANTS & EX GRATIA PAYMENTS,People's Services,Payment - Cluster Lead SENCO,A51035
London Borough of Sutton,06/06/2023,50360878,"3,211.20",Cheam High School (Academy),GRANTS & EX GRATIA PAYMENTS,People's Services,Pupil Growth,A51014
London Borough of Sutton,13/06/2023,50364896,"4,080.00",Cheam High School (Academy),GRANTS & EX GRATIA PAYMENTS,Resources,"Grants, Contributions & Donations",A47005
London Borough of Sutton,06/06/2023,50365494,"-1,517.12",Cheam High School (Academy),GRANTS & EX GRATIA PAYMENTS,People's Services,Top-up Funding,A51016
London Borough of Sutton,06/06/2023,50365503,"3,057.00",Cheam High School (Academy),GRANTS & EX GRATIA PAYMENTS,People's Services,Top-up Funding,A51016
London Borough of Sutton,06/06/2023,50365503,"4,185.78",Cheam High School (Academy),GRANTS & EX GRATIA PAYMENTS,People's Services,Top-up Funding,A51016
London Borough of Sutton,06/06/2023,50360843,"13,174.20",Cheam Park Farm Primary School,GRANTS & EX GRATIA PAYMENTS,People's Services,Payment - Nursery Funding,A51056
London Borough of Sutton,13/06/2023,50364897,750.00,Cheam Park Farm Primary School,GRANTS & EX GRATIA PAYMENTS,Resources,"Grants, Contributions & Donations",A47005
London Borough of Sutton,09/06/2023,50363657,"2,905.28",Chegworth Nursing Home Bayswift Ltd,SOCIAL SERVICES RESIDENTIAL,People's Services,Nursing Care Short Term,A56026
London Borough of Sutton,09/06/2023,50363708,-878.84,Chegworth Nursing Home Bayswift Ltd,SOCIAL SERVICES RESIDENTIAL,People's Services,Nursing Care - 3rd party top up payment,A56023
London Borough of Sutton,09/06/2023,50363708,"4,096.12",Chegworth Nursing Home Bayswift Ltd,SOCIAL SERVICES RESIDENTIAL,People's Services,Nursing Care Short Term,A56026
London Borough of Sutton,09/06/2023,50363743,"4,096.12",Chegworth Nursing Home Bayswift Ltd,SOCIAL SERVICES RESIDENTIAL,People's Services,Nursing Care - Ext Provider,A56025
London Borough of Sutton,09/06/2023,50363743,-878.84,Chegworth Nursing Home Bayswift Ltd,SOCIAL SERVICES RESIDENTIAL,People's Services,Nursing Care - 3rd party top up payment,A56023
London Borough of Sutton,09/06/2023,50363747,-750.40,Chegworth Nursing Home Bayswift Ltd,SOCIAL SERVICES RESIDENTIAL,People's Services,Nursing Care - 3rd party top up payment,A56023
London Borough of Sutton,09/06/2023,50363747,"3,734.88",Chegworth Nursing Home Bayswift Ltd,SOCIAL SERVICES RESIDENTIAL,People's Services,Nursing Care Short Term,A56026
London Borough of Sutton,09/06/2023,50363756,"4,096.12",Chegworth Nursing Home Bayswift Ltd,SOCIAL SERVICES RESIDENTIAL,People's Services,Nursing Care - Ext Provider,A56025
London Borough of Sutton,09/06/2023,50363756,-878.84,Chegworth Nursing Home Bayswift Ltd,SOCIAL SERVICES RESIDENTIAL,People's Services,Nursing Care - 3rd party top up payment,A56023
London Borough of Sutton,09/06/2023,50363774,"7,090.71",Chegworth Nursing Home Bayswift Ltd,SOCIAL SERVICES RESIDENTIAL,People's Services,Nursing Care - Ext Provider,A56025
London Borough of Sutton,09/06/2023,50363774,-507.66,Chegworth Nursing Home Bayswift Ltd,SOCIAL SERVICES RESIDENTIAL,People's Services,Nursing Care - 3rd party top up payment,A56023
London Borough of Sutton,09/06/2023,50363774,"-1,412.42",Chegworth Nursing Home Bayswift Ltd,SOCIAL SERVICES RESIDENTIAL,People's Services,Nursing Care - 3rd party top up payment,A56023
London Borough of Sutton,09/06/2023,50363812,-878.84,Chegworth Nursing Home Bayswift Ltd,SOCIAL SERVICES RESIDENTIAL,People's Services,Nursing Care - 3rd party top up payment,A56023
London Borough of Sutton,09/06/2023,50363812,"4,096.12",Chegworth Nursing Home Bayswift Ltd,SOCIAL SERVICES RESIDENTIAL,People's Services,Nursing Care - Ext Provider,A56025
London Borough of Sutton,09/06/2023,50363830,-878.84,Chegworth Nursing Home Bayswift Ltd,SOCIAL SERVICES RESIDENTIAL,People's Services,Nursing Care - 3rd party top up payment,A56023
London Borough of Sutton,09/06/2023,50363830,"4,096.12",Chegworth Nursing Home Bayswift Ltd,SOCIAL SERVICES RESIDENTIAL,People's Services,Nursing Care - Ext Provider,A56025
London Borough of Sutton,09/06/2023,50363833,"4,150.40",Chegworth Nursing Home Bayswift Ltd,SOCIAL SERVICES RESIDENTIAL,People's Services,Nursing Care - Ext Provider,A56025
London Borough of Sutton,09/06/2023,50363836,"3,821.24",Chegworth Nursing Home Bayswift Ltd,SOCIAL SERVICES RESIDENTIAL,People's Services,Nursing Care Short Term,A56026
London Borough of Sutton,09/06/2023,50363836,-836.76,Chegworth Nursing Home Bayswift Ltd,SOCIAL SERVICES RESIDENTIAL,People's Services,Nursing Care - 3rd party top up payment,A56023
London Borough of Sutton,09/06/2023,50363864,"4,096.12",Chegworth Nursing Home Bayswift Ltd,SOCIAL SERVICES RESIDENTIAL,People's Services,Nursing Care - Ext Provider,A56025
London Borough of Sutton,09/06/2023,50363864,-878.84,Chegworth Nursing Home Bayswift Ltd,SOCIAL SERVICES RESIDENTIAL,People's Services,Nursing Care - 3rd party top up payment,A56023
London Borough of Sutton,09/06/2023,50363867,-836.76,Chegworth Nursing Home Bayswift Ltd,SOCIAL SERVICES RESIDENTIAL,People's Services,Nursing Care - 3rd party top up payment,A56023
London Borough of Sutton,09/06/2023,50363867,"3,821.24",Chegworth Nursing Home Bayswift Ltd,SOCIAL SERVICES RESIDENTIAL,People's Services,Nursing Care Short Term,A56026
London Borough of Sutton,09/06/2023,50363871,-750.40,Chegworth Nursing Home Bayswift Ltd,SOCIAL SERVICES RESIDENTIAL,People's Services,Nursing Care - 3rd party top up payment,A56023
London Borough of Sutton,09/06/2023,50363871,"3,734.88",Chegworth Nursing Home Bayswift Ltd,SOCIAL SERVICES RESIDENTIAL,People's Services,Nursing Care Short Term,A56026
London Borough of Sutton,09/06/2023,50363909,"4,096.12",Chegworth Nursing Home Bayswift Ltd,SOCIAL SERVICES RESIDENTIAL,People's Services,Nursing Care - Ext Provider,A56025
London Borough of Sutton,09/06/2023,50363909,-878.84,Chegworth Nursing Home Bayswift Ltd,SOCIAL SERVICES RESIDENTIAL,People's Services,Nursing Care - 3rd party top up payment,A56023
London Borough of Sutton,09/06/2023,50363943,"4,149.92",Chegworth Nursing Home Bayswift Ltd,SOCIAL SERVICES RESIDENTIAL,People's Services,Nursing Care - Ext Provider,A56025
London Borough of Sutton,09/06/2023,50363943,-750.40,Chegworth Nursing Home Bayswift Ltd,SOCIAL SERVICES RESIDENTIAL,People's Services,Nursing Care - 3rd party top up payment,A56023
London Borough of Sutton,09/06/2023,50363965,-662.24,Chegworth Nursing Home Bayswift Ltd,SOCIAL SERVICES RESIDENTIAL,People's Services,Nursing Care - 3rd party top up payment,A56023
London Borough of Sutton,09/06/2023,50363965,"4,955.56",Chegworth Nursing Home Bayswift Ltd,SOCIAL SERVICES RESIDENTIAL,People's Services,Nursing Care Short Term,A56026
London Borough of Sutton,09/06/2023,50363968,"4,096.12",Chegworth Nursing Home Bayswift Ltd,SOCIAL SERVICES RESIDENTIAL,People's Services,Nursing Care - Ext Provider,A56025
London Borough of Sutton,09/06/2023,50363968,-878.84,Chegworth Nursing Home Bayswift Ltd,SOCIAL SERVICES RESIDENTIAL,People's Services,Nursing Care - 3rd party top up payment,A56023
London Borough of Sutton,09/06/2023,50364020,-836.76,Chegworth Nursing Home Bayswift Ltd,SOCIAL SERVICES RESIDENTIAL,People's Services,Nursing Care - 3rd party top up payment,A56023
London Borough of Sutton,09/06/2023,50364020,"3,821.24",Chegworth Nursing Home Bayswift Ltd,SOCIAL SERVICES RESIDENTIAL,People's Services,Nursing Care Short Term,A56026
London Borough of Sutton,09/06/2023,50364039,"4,096.12",Chegworth Nursing Home Bayswift Ltd,SOCIAL SERVICES RESIDENTIAL,People's Services,Nursing Care - Ext Provider,A56025
London Borough of Sutton,09/06/2023,50364039,-878.84,Chegworth Nursing Home Bayswift Ltd,SOCIAL SERVICES RESIDENTIAL,People's Services,Nursing Care - 3rd party top up payment,A56023
London Borough of Sutton,23/05/2023,20050367,-516.57,Chelsea and Westminster NHS ft,SOCIAL SERVICES - OTHER,Health and Wellbeing,Provider Contract Payments,A44290
London Borough of Sutton,31/05/2023,20052076,"6,028.78",Chelsea and Westminster NHS ft,SOCIAL SERVICES - OTHER,Health and Wellbeing,Provider Contract Payments,A44290
London Borough of Sutton,14/06/2023,20051751,"13,725.00",Chelsea Studios Ltd,ACCOMMODATION BED & BREAKFAST,Environment Housing and Neighbourhoods,Temporary Protection - Homeless Persons,A62028
London Borough of Sutton,09/06/2023,50363605,"-6,068.33",Cherry Lodge,SOCIAL SERVICES RESIDENTIAL,People's Services,Residential Care - Client Cont ( Net Paymt ),A56113
London Borough of Sutton,09/06/2023,50363605,"8,717.24",Cherry Lodge,SOCIAL SERVICES RESIDENTIAL,People's Services,Residential Care - Ext Provider,A56114
London Borough of Sutton,09/06/2023,50363605,"5,608.29",Cherry Lodge,SOCIAL SERVICES RESIDENTIAL,People's Services,Residential Care - Client Cont ( Net Paymt ),A56113
London Borough of Sutton,09/06/2023,50363631,"5,947.39",Cherry Lodge,SOCIAL SERVICES RESIDENTIAL,People's Services,Residential Care - Ext Provider,A56114
London Borough of Sutton,09/06/2023,50363624,"4,096.12",CHHG Ltd,SOCIAL SERVICES RESIDENTIAL,People's Services,Nursing Care - Ext Provider,A56025
London Borough of Sutton,09/06/2023,50363624,-878.84,CHHG Ltd,SOCIAL SERVICES RESIDENTIAL,People's Services,Nursing Care - 3rd party top up payment,A56023
London Borough of Sutton,10/05/2023,50363437,"14,102.52",Children's Trust,CHILDREN'S SERVICES - DAY CARE,People's Services,Residential Care-Children,A56115
London Borough of Sutton,08/06/2023,50365524,"6,576.60",Children's Trust,CHILDREN'S SERVICES - DAY CARE,People's Services,Independent School Fees,A56002
London Borough of Sutton,08/06/2023,50365525,"6,648.00",Children's Trust,CHILDREN'S SERVICES - DAY CARE,People's Services,Independent School Fees,A56002
London Borough of Sutton,08/06/2023,50365526,"6,678.00",Children's Trust,CHILDREN'S SERVICES - DAY CARE,People's Services,Independent School Fees,A56002
London Borough of Sutton,06/06/2023,50360774,"4,039.20",Chiltern Day Nursery,GRANTS & EX GRATIA PAYMENTS,People's Services,Payment - Nursery Funding,A51056
London Borough of Sutton,09/06/2023,50363769,"7,809.32",Choice Care Group (Surrey) Ltd,SOCIAL SERVICES RESIDENTIAL,People's Services,Residential Care - Ext Provider,A56114
London Borough of Sutton,09/06/2023,50363796,"34,200.00",Choice Care Group (Surrey) Ltd,SOCIAL SERVICES RESIDENTIAL,People's Services,Residential Care - Ext Provider,A56114
London Borough of Sutton,09/06/2023,50363879,"8,682.92",Choice Care Group (Surrey) Ltd,SOCIAL SERVICES RESIDENTIAL,People's Services,Residential Care - Ext Provider,A56114
London Borough of Sutton,09/06/2023,50364000,"7,512.24",Choice Care Group (Surrey) Ltd,SOCIAL SERVICES RESIDENTIAL,People's Services,Residential Care - Ext Provider,A56114
London Borough of Sutton,09/06/2023,50364033,"8,863.92",Choice Care Group (Surrey) Ltd,SOCIAL SERVICES RESIDENTIAL,People's Services,Residential Care - Ext Provider,A56114
London Borough of Sutton,22/05/2023,20050089,"1,947.04",Choice Support,GRANTS & EX GRATIA PAYMENTS,People's Services,Provider Contract Payments,A44290
London Borough of Sutton,22/05/2023,20050090,"1,602.36",Choice Support,GRANTS & EX GRATIA PAYMENTS,People's Services,Provider Contract Payments,A44290
London Borough of Sutton,22/05/2023,20050091,"2,055.00",Choice Support,GRANTS & EX GRATIA PAYMENTS,People's Services,Provider Contract Payments,A44290
London Borough of Sutton,22/05/2023,20050092,"1,818.00",Choice Support,GRANTS & EX GRATIA PAYMENTS,People's Services,Provider Contract Payments,A44290
London Borough of Sutton,22/05/2023,20050093,"1,602.36",Choice Support,GRANTS & EX GRATIA PAYMENTS,People's Services,Provider Contract Payments,A44290
London Borough of Sutton,22/05/2023,20050094,"1,602.36",Choice Support,GRANTS & EX GRATIA PAYMENTS,People's Services,Provider Contract Payments,A44290
London Borough of Sutton,22/05/2023,20050095,"1,736.36",Choice Support,GRANTS & EX GRATIA PAYMENTS,People's Services,Provider Contract Payments,A44290
London Borough of Sutton,19/06/2023,20052292,"1,736.36",Choice Support,GRANTS & EX GRATIA PAYMENTS,People's Services,Provider Contract Payments,A44290
London Borough of Sutton,19/06/2023,20052310,"1,602.36",Choice Support,GRANTS & EX GRATIA PAYMENTS,People's Services,Provider Contract Payments,A44290
London Borough of Sutton,19/06/2023,20052311,"1,602.36",Choice Support,GRANTS & EX GRATIA PAYMENTS,People's Services,Provider Contract Payments,A44290
London Borough of Sutton,19/06/2023,20052312,"1,818.00",Choice Support,GRANTS & EX GRATIA PAYMENTS,People's Services,Provider Contract Payments,A44290
London Borough of Sutton,19/06/2023,20052313,"1,602.36",Choice Support,GRANTS & EX GRATIA PAYMENTS,People's Services,Provider Contract Payments,A44290
London Borough of Sutton,19/06/2023,20052314,"1,947.04",Choice Support,GRANTS & EX GRATIA PAYMENTS,People's Services,Provider Contract Payments,A44290
London Borough of Sutton,19/06/2023,20052338,"2,055.00",Choice Support,GRANTS & EX GRATIA PAYMENTS,People's Services,Provider Contract Payments,A44290
London Borough of Sutton,01/06/2023,50362729,"1,793.39",Choice Support,GRANTS & EX GRATIA PAYMENTS,People's Services,Supported Living,A56088
London Borough of Sutton,01/06/2023,50362729,633.82,Choice Support,GRANTS & EX GRATIA PAYMENTS,People's Services,Supported Living,A56088
London Borough of Sutton,01/06/2023,50362729,244.50,Choice Support,GRANTS & EX GRATIA PAYMENTS,People's Services,Supported Living,A56088
London Borough of Sutton,01/06/2023,50362729,"1,694.95",Choice Support,GRANTS & EX GRATIA PAYMENTS,People's Services,Supported Living,A56088
London Borough of Sutton,01/06/2023,50362730,"6,350.26",Choice Support,GRANTS & EX GRATIA PAYMENTS,People's Services,Supported Living,A56088
London Borough of Sutton,01/06/2023,50362730,633.82,Choice Support,GRANTS & EX GRATIA PAYMENTS,People's Services,Supported Living,A56088
London Borough of Sutton,01/06/2023,50362730,244.50,Choice Support,GRANTS & EX GRATIA PAYMENTS,People's Services,Supported Living,A56088
London Borough of Sutton,01/06/2023,50362731,"1,529.45",Choice Support,GRANTS & EX GRATIA PAYMENTS,People's Services,Supported Living,A56088
London Borough of Sutton,01/06/2023,50362731,633.82,Choice Support,GRANTS & EX GRATIA PAYMENTS,People's Services,Supported Living,A56088
London Borough of Sutton,01/06/2023,50362731,244.50,Choice Support,GRANTS & EX GRATIA PAYMENTS,People's Services,Supported Living,A56088
London Borough of Sutton,01/06/2023,50362731,"2,335.23",Choice Support,GRANTS & EX GRATIA PAYMENTS,People's Services,Supported Living,A56088
London Borough of Sutton,01/06/2023,50362732,"5,843.99",Choice Support,GRANTS & EX GRATIA PAYMENTS,People's Services,Supported Living,A56088
London Borough of Sutton,01/06/2023,50362732,887.35,Choice Support,GRANTS & EX GRATIA PAYMENTS,People's Services,Supported Living,A56088
London Borough of Sutton,01/06/2023,50362733,"5,866.31",Choice Support,GRANTS & EX GRATIA PAYMENTS,People's Services,Supported Living,A56088
London Borough of Sutton,01/06/2023,50362733,887.35,Choice Support,GRANTS & EX GRATIA PAYMENTS,People's Services,Supported Living,A56088
London Borough of Sutton,01/06/2023,50362734,"1,642.42",Choice Support,GRANTS & EX GRATIA PAYMENTS,People's Services,Supported Living,A56088
London Borough of Sutton,01/06/2023,50362734,633.82,Choice Support,GRANTS & EX GRATIA PAYMENTS,People's Services,Supported Living,A56088
London Borough of Sutton,01/06/2023,50362734,244.50,Choice Support,GRANTS & EX GRATIA PAYMENTS,People's Services,Supported Living,A56088
London Borough of Sutton,01/06/2023,50362734,"2,812.81",Choice Support,GRANTS & EX GRATIA PAYMENTS,People's Services,Supported Living,A56088
London Borough of Sutton,01/06/2023,50362735,"3,133.75",Choice Support,GRANTS & EX GRATIA PAYMENTS,People's Services,Supported Living,A56088
London Borough of Sutton,01/06/2023,50362735,633.82,Choice Support,GRANTS & EX GRATIA PAYMENTS,People's Services,Supported Living,A56088
London Borough of Sutton,01/06/2023,50362735,244.50,Choice Support,GRANTS & EX GRATIA PAYMENTS,People's Services,Supported Living,A56088
London Borough of Sutton,01/06/2023,50362735,"3,601.53",Choice Support,GRANTS & EX GRATIA PAYMENTS,People's Services,Supported Living,A56088
London Borough of Sutton,01/06/2023,50362736,887.35,Choice Support,GRANTS & EX GRATIA PAYMENTS,People's Services,Supported Living,A56088
London Borough of Sutton,01/06/2023,50362736,"5,015.36",Choice Support,GRANTS & EX GRATIA PAYMENTS,People's Services,Supported Living,A56088
London Borough of Sutton,01/06/2023,50362737,"6,920.93",Choice Support,GRANTS & EX GRATIA PAYMENTS,People's Services,Supported Living,A56088
London Borough of Sutton,01/06/2023,50362737,887.35,Choice Support,GRANTS & EX GRATIA PAYMENTS,People's Services,Supported Living,A56088
London Borough of Sutton,09/06/2023,50363560,"5,716.12",Choice Support,GRANTS & EX GRATIA PAYMENTS,People's Services,Residential Care - Ext Provider,A56114
London Borough of Sutton,30/03/2023,50364362,"6,295.80",Choice Support,GRANTS & EX GRATIA PAYMENTS,People's Services,Home Care Services,A56019
London Borough of Sutton,22/05/2023,50364372,"6,295.80",Choice Support,GRANTS & EX GRATIA PAYMENTS,People's Services,Home Care Services,A56019
London Borough of Sutton,15/05/2023,50364376,"6,295.80",Choice Support,GRANTS & EX GRATIA PAYMENTS,People's Services,Home Care Services,A56019
London Borough of Sutton,20/06/2023,50367194,"5,317.72",Choice Support,GRANTS & EX GRATIA PAYMENTS,People's Services,Supported Living,A56088
London Borough of Sutton,20/06/2023,50367194,"1,909.72",Choice Support,GRANTS & EX GRATIA PAYMENTS,People's Services,Supported Living,A56088
London Borough of Sutton,20/06/2023,50367199,-557.90,Choice Support,GRANTS & EX GRATIA PAYMENTS,People's Services,Supported Living,A56088
London Borough of Sutton,20/06/2023,50367199,"15,235.48",Choice Support,GRANTS & EX GRATIA PAYMENTS,People's Services,Supported Living,A56088
London Borough of Sutton,20/06/2023,50367199,"2,110.00",Choice Support,GRANTS & EX GRATIA PAYMENTS,People's Services,Supported Living,A56088
London Borough of Sutton,20/06/2023,50367202,"2,184.17",Choice Support,GRANTS & EX GRATIA PAYMENTS,People's Services,Supported Living,A56088
London Borough of Sutton,20/06/2023,50367202,478.25,Choice Support,GRANTS & EX GRATIA PAYMENTS,People's Services,Supported Living,A56088
London Borough of Sutton,20/06/2023,50367202,"1,409.15",Choice Support,GRANTS & EX GRATIA PAYMENTS,People's Services,Supported Living,A56088
London Borough of Sutton,20/06/2023,50367202,118.37,Choice Support,GRANTS & EX GRATIA PAYMENTS,People's Services,Supported Living,A56088
London Borough of Sutton,20/06/2023,50367203,"2,078.48",Choice Support,GRANTS & EX GRATIA PAYMENTS,People's Services,Supported Living,A56088
London Borough of Sutton,20/06/2023,50367203,478.25,Choice Support,GRANTS & EX GRATIA PAYMENTS,People's Services,Supported Living,A56088
London Borough of Sutton,20/06/2023,50367203,"1,606.42",Choice Support,GRANTS & EX GRATIA PAYMENTS,People's Services,Supported Living,A56088
London Borough of Sutton,20/06/2023,50367203,651.05,Choice Support,GRANTS & EX GRATIA PAYMENTS,People's Services,Supported Living,A56088
London Borough of Sutton,20/06/2023,50367204,"3,708.17",Choice Support,GRANTS & EX GRATIA PAYMENTS,People's Services,Supported Living,A56088
London Borough of Sutton,20/06/2023,50367204,478.25,Choice Support,GRANTS & EX GRATIA PAYMENTS,People's Services,Supported Living,A56088
London Borough of Sutton,20/06/2023,50367204,"1,402.12",Choice Support,GRANTS & EX GRATIA PAYMENTS,People's Services,Supported Living,A56088
London Borough of Sutton,20/06/2023,50367204,651.05,Choice Support,GRANTS & EX GRATIA PAYMENTS,People's Services,Supported Living,A56088
London Borough of Sutton,20/06/2023,50367207,"4,752.00",Choice Support,GRANTS & EX GRATIA PAYMENTS,People's Services,Supported Living,A56088
London Borough of Sutton,20/06/2023,50367207,512.10,Choice Support,GRANTS & EX GRATIA PAYMENTS,People's Services,Supported Living,A56088
London Borough of Sutton,20/06/2023,50367207,"2,036.57",Choice Support,GRANTS & EX GRATIA PAYMENTS,People's Services,Supported Living,A56088
London Borough of Sutton,20/06/2023,50367210,"1,180.25",Choice Support,GRANTS & EX GRATIA PAYMENTS,People's Services,Supported Living,A56088
London Borough of Sutton,20/06/2023,50367210,"3,111.52",Choice Support,GRANTS & EX GRATIA PAYMENTS,People's Services,Supported Living,A56088
London Borough of Sutton,20/06/2023,50367210,"1,091.40",Choice Support,GRANTS & EX GRATIA PAYMENTS,People's Services,Supported Living,A56088
London Borough of Sutton,20/06/2023,50367211,-525.00,Choice Support,GRANTS & EX GRATIA PAYMENTS,People's Services,Supported Living,A56088
London Borough of Sutton,20/06/2023,50367211,"6,919.19",Choice Support,GRANTS & EX GRATIA PAYMENTS,People's Services,Supported Living,A56088
London Borough of Sutton,20/06/2023,50367211,"2,080.90",Choice Support,GRANTS & EX GRATIA PAYMENTS,People's Services,Supported Living,A56088
London Borough of Sutton,20/06/2023,50367221,"2,295.52",Choice Support,GRANTS & EX GRATIA PAYMENTS,People's Services,Supported Living,A56088
London Borough of Sutton,20/06/2023,50367221,478.25,Choice Support,GRANTS & EX GRATIA PAYMENTS,People's Services,Supported Living,A56088
London Borough of Sutton,20/06/2023,50367221,"1,624.03",Choice Support,GRANTS & EX GRATIA PAYMENTS,People's Services,Supported Living,A56088
London Borough of Sutton,20/06/2023,50367221,651.05,Choice Support,GRANTS & EX GRATIA PAYMENTS,People's Services,Supported Living,A56088
London Borough of Sutton,20/06/2023,50367229,"8,448.00",Choice Support,GRANTS & EX GRATIA PAYMENTS,People's Services,Supported Living,A56088
London Borough of Sutton,20/06/2023,50367229,"1,909.72",Choice Support,GRANTS & EX GRATIA PAYMENTS,People's Services,Supported Living,A56088
London Borough of Sutton,20/06/2023,50367230,"3,067.45",Choice Support,GRANTS & EX GRATIA PAYMENTS,People's Services,Supported Living,A56088
London Borough of Sutton,20/06/2023,50367231,"5,442.23",Choice Support,GRANTS & EX GRATIA PAYMENTS,People's Services,Supported Living,A56088
London Borough of Sutton,20/06/2023,50367231,"2,000.87",Choice Support,GRANTS & EX GRATIA PAYMENTS,People's Services,Supported Living,A56088
London Borough of Sutton,20/06/2023,50367235,"1,180.25",Choice Support,GRANTS & EX GRATIA PAYMENTS,People's Services,Supported Living,A56088
London Borough of Sutton,20/06/2023,50367235,"3,290.32",Choice Support,GRANTS & EX GRATIA PAYMENTS,People's Services,Supported Living,A56088
London Borough of Sutton,20/06/2023,50367235,"1,091.40",Choice Support,GRANTS & EX GRATIA PAYMENTS,People's Services,Supported Living,A56088
London Borough of Sutton,20/06/2023,50367236,"4,297.88",Choice Support,GRANTS & EX GRATIA PAYMENTS,People's Services,Supported Living,A56088
London Borough of Sutton,20/06/2023,50367237,"1,180.25",Choice Support,GRANTS & EX GRATIA PAYMENTS,People's Services,Supported Living,A56088
London Borough of Sutton,20/06/2023,50367237,"3,218.78",Choice Support,GRANTS & EX GRATIA PAYMENTS,People's Services,Supported Living,A56088
London Borough of Sutton,20/06/2023,50367237,"1,091.40",Choice Support,GRANTS & EX GRATIA PAYMENTS,People's Services,Supported Living,A56088
London Borough of Sutton,20/06/2023,50367242,"1,761.43",Choice Support,GRANTS & EX GRATIA PAYMENTS,People's Services,Supported Living,A56088
London Borough of Sutton,20/06/2023,50367242,478.25,Choice Support,GRANTS & EX GRATIA PAYMENTS,People's Services,Supported Living,A56088
London Borough of Sutton,20/06/2023,50367242,"2,395.55",Choice Support,GRANTS & EX GRATIA PAYMENTS,People's Services,Supported Living,A56088
London Borough of Sutton,20/06/2023,50367242,118.37,Choice Support,GRANTS & EX GRATIA PAYMENTS,People's Services,Supported Living,A56088
London Borough of Sutton,20/06/2023,50367253,"2,360.32",Choice Support,GRANTS & EX GRATIA PAYMENTS,People's Services,Supported Living,A56088
London Borough of Sutton,20/06/2023,50367253,478.25,Choice Support,GRANTS & EX GRATIA PAYMENTS,People's Services,Supported Living,A56088
London Borough of Sutton,20/06/2023,50367253,"1,659.25",Choice Support,GRANTS & EX GRATIA PAYMENTS,People's Services,Supported Living,A56088
London Borough of Sutton,20/06/2023,50367253,651.05,Choice Support,GRANTS & EX GRATIA PAYMENTS,People's Services,Supported Living,A56088
London Borough of Sutton,20/06/2023,50367257,"1,180.25",Choice Support,GRANTS & EX GRATIA PAYMENTS,People's Services,Supported Living,A56088
London Borough of Sutton,20/06/2023,50367257,"5,328.90",Choice Support,GRANTS & EX GRATIA PAYMENTS,People's Services,Supported Living,A56088
London Borough of Sutton,20/06/2023,50367257,"1,091.40",Choice Support,GRANTS & EX GRATIA PAYMENTS,People's Services,Supported Living,A56088
London Borough of Sutton,20/06/2023,50367258,"3,452.40",Choice Support,GRANTS & EX GRATIA PAYMENTS,People's Services,Supported Living,A56088
London Borough of Sutton,20/06/2023,50367260,"1,180.25",Choice Support,GRANTS & EX GRATIA PAYMENTS,People's Services,Supported Living,A56088
London Borough of Sutton,20/06/2023,50367260,"3,111.52",Choice Support,GRANTS & EX GRATIA PAYMENTS,People's Services,Supported Living,A56088
London Borough of Sutton,20/06/2023,50367260,"1,091.40",Choice Support,GRANTS & EX GRATIA PAYMENTS,People's Services,Supported Living,A56088
London Borough of Sutton,20/06/2023,50367261,"1,180.25",Choice Support,GRANTS & EX GRATIA PAYMENTS,People's Services,Supported Living,A56088
London Borough of Sutton,20/06/2023,50367261,"2,718.08",Choice Support,GRANTS & EX GRATIA PAYMENTS,People's Services,Supported Living,A56088
London Borough of Sutton,20/06/2023,50367261,"1,091.40",Choice Support,GRANTS & EX GRATIA PAYMENTS,People's Services,Supported Living,A56088
London Borough of Sutton,20/06/2023,50367266,528.00,Choice Support,GRANTS & EX GRATIA PAYMENTS,People's Services,Supported Living,A56088
London Borough of Sutton,20/06/2023,50367266,512.10,Choice Support,GRANTS & EX GRATIA PAYMENTS,People's Services,Supported Living,A56088
London Borough of Sutton,20/06/2023,50367266,"2,036.57",Choice Support,GRANTS & EX GRATIA PAYMENTS,People's Services,Supported Living,A56088
London Borough of Sutton,20/06/2023,50367272,-525.00,Choice Support,GRANTS & EX GRATIA PAYMENTS,People's Services,Supported Living,A56088
London Borough of Sutton,20/06/2023,50367272,"11,384.98",Choice Support,GRANTS & EX GRATIA PAYMENTS,People's Services,Supported Living,A56088
London Borough of Sutton,20/06/2023,50367272,"2,080.90",Choice Support,GRANTS & EX GRATIA PAYMENTS,People's Services,Supported Living,A56088
London Borough of Sutton,20/06/2023,50367274,"1,180.25",Choice Support,GRANTS & EX GRATIA PAYMENTS,People's Services,Supported Living,A56088
London Borough of Sutton,20/06/2023,50367274,"5,221.58",Choice Support,GRANTS & EX GRATIA PAYMENTS,People's Services,Supported Living,A56088
London Borough of Sutton,20/06/2023,50367274,"1,091.40",Choice Support,GRANTS & EX GRATIA PAYMENTS,People's Services,Supported Living,A56088
London Borough of Sutton,20/06/2023,50367282,"8,223.96",Choice Support,GRANTS & EX GRATIA PAYMENTS,People's Services,Supported Living,A56088
London Borough of Sutton,20/06/2023,50367282,"1,724.39",Choice Support,GRANTS & EX GRATIA PAYMENTS,People's Services,Supported Living,A56088
London Borough of Sutton,20/06/2023,50367283,"2,315.43",Choice Support,GRANTS & EX GRATIA PAYMENTS,People's Services,Supported Living,A56088
London Borough of Sutton,20/06/2023,50367284,301.72,Choice Support,GRANTS & EX GRATIA PAYMENTS,People's Services,Supported Living,A56088
London Borough of Sutton,20/06/2023,50367284,512.10,Choice Support,GRANTS & EX GRATIA PAYMENTS,People's Services,Supported Living,A56088
London Borough of Sutton,20/06/2023,50367284,"2,036.57",Choice Support,GRANTS & EX GRATIA PAYMENTS,People's Services,Supported Living,A56088
London Borough of Sutton,20/06/2023,50367291,"1,180.25",Choice Support,GRANTS & EX GRATIA PAYMENTS,People's Services,Supported Living,A56088
London Borough of Sutton,20/06/2023,50367291,"3,147.25",Choice Support,GRANTS & EX GRATIA PAYMENTS,People's Services,Supported Living,A56088
London Borough of Sutton,20/06/2023,50367291,"1,091.40",Choice Support,GRANTS & EX GRATIA PAYMENTS,People's Services,Supported Living,A56088
London Borough of Sutton,20/06/2023,50367293,-566.13,Choice Support,GRANTS & EX GRATIA PAYMENTS,People's Services,Supported Living,A56088
London Borough of Sutton,20/06/2023,50367293,"10,446.87",Choice Support,GRANTS & EX GRATIA PAYMENTS,People's Services,Supported Living,A56088
London Borough of Sutton,20/06/2023,50367293,"2,117.28",Choice Support,GRANTS & EX GRATIA PAYMENTS,People's Services,Supported Living,A56088
London Borough of Sutton,20/06/2023,50367294,-121.94,Choice Support,GRANTS & EX GRATIA PAYMENTS,People's Services,Supported Living,A56088
London Borough of Sutton,20/06/2023,50367294,"8,798.01",Choice Support,GRANTS & EX GRATIA PAYMENTS,People's Services,Supported Living,A56088
London Borough of Sutton,20/06/2023,50367294,"1,724.39",Choice Support,GRANTS & EX GRATIA PAYMENTS,People's Services,Supported Living,A56088
London Borough of Sutton,20/06/2023,50367296,"2,325.08",Choice Support,GRANTS & EX GRATIA PAYMENTS,People's Services,Supported Living,A56088
London Borough of Sutton,20/06/2023,50367296,486.68,Choice Support,GRANTS & EX GRATIA PAYMENTS,People's Services,Supported Living,A56088
London Borough of Sutton,20/06/2023,50367296,"1,633.20",Choice Support,GRANTS & EX GRATIA PAYMENTS,People's Services,Supported Living,A56088
London Borough of Sutton,20/06/2023,50367296,651.05,Choice Support,GRANTS & EX GRATIA PAYMENTS,People's Services,Supported Living,A56088
London Borough of Sutton,20/06/2023,50367297,478.25,Choice Support,GRANTS & EX GRATIA PAYMENTS,People's Services,Supported Living,A56088
London Borough of Sutton,20/06/2023,50367297,"3,875.15",Choice Support,GRANTS & EX GRATIA PAYMENTS,People's Services,Supported Living,A56088
London Borough of Sutton,20/06/2023,50367297,118.37,Choice Support,GRANTS & EX GRATIA PAYMENTS,People's Services,Supported Living,A56088
London Borough of Sutton,06/06/2023,50360601,"14,472.00",Christchurch Fledgelings Pre-School,GRANTS & EX GRATIA PAYMENTS,People's Services,Payment - Nursery Funding,A51056
London Borough of Sutton,06/06/2023,50360723,"1,216.80",Christchurch Fledgelings Pre-School,GRANTS & EX GRATIA PAYMENTS,People's Services,Payment - Nursery Funding,A51056
London Borough of Sutton,08/05/2023,20050863,"1,096.98",KEYNYONS ESTATE AGENTS,GRANTS & EX GRATIA PAYMENTS,Environment Housing and Neighbourhoods,Temporary Protection - Homeless Persons,A62028
London Borough of Sutton,08/06/2023,20052377,"1,096.98",KEYNYONS ESTATE AGENTS,GRANTS & EX GRATIA PAYMENTS,Environment Housing and Neighbourhoods,Temporary Protection - Homeless Persons,A62028
London Borough of Sutton,24/05/2023,20050715,"5,426.32",Chroma Vision Limited,AGRICULTURAL & ESTATE SERVICES,Environment Housing and Neighbourhoods,Other Capital Expenditure,C20002
London Borough of Sutton,30/05/2023,20050717,"6,631.28",Chroma Vision Limited,AGRICULTURAL & ESTATE SERVICES,Development Growth and Regeneration,Professional Fees,A44066
London Borough of Sutton,06/06/2023,20051195,"4,950.00",Chroma Vision Limited,AGRICULTURAL & ESTATE SERVICES,Environment Housing and Neighbourhoods,Other Capital Expenditure,C20002
London Borough of Sutton,06/06/2023,20051196,"28,179.86",Chroma Vision Limited,AGRICULTURAL & ESTATE SERVICES,Environment Housing and Neighbourhoods,Other Capital Expenditure,C20002
London Borough of Sutton,07/06/2023,20051383,"7,820.50",Chroma Vision Limited,AGRICULTURAL & ESTATE SERVICES,Environment Housing and Neighbourhoods,Other Capital Expenditure,C20002
London Borough of Sutton,14/06/2023,20051810,"12,558.33",Chroma Vision Limited,AGRICULTURAL & ESTATE SERVICES,Environment Housing and Neighbourhoods,Other Capital Expenditure,C20002
London Borough of Sutton,16/06/2023,20051914,"20,277.12",Chroma Vision Limited,AGRICULTURAL & ESTATE SERVICES,Environment Housing and Neighbourhoods,Other Capital Expenditure,C20002
London Borough of Sutton,16/06/2023,20051915,"29,708.90",Chroma Vision Limited,AGRICULTURAL & ESTATE SERVICES,Environment Housing and Neighbourhoods,Other Capital Expenditure,C20002
London Borough of Sutton,24/05/2023,20052280,"4,515.50",Chroma Vision Limited,AGRICULTURAL & ESTATE SERVICES,Environment Housing and Neighbourhoods,Other Capital Expenditure,C20002
London Borough of Sutton,22/06/2023,20052369,"8,501.60",Chroma Vision Limited,AGRICULTURAL & ESTATE SERVICES,Environment Housing and Neighbourhoods,Other Capital Expenditure,C20002
London Borough of Sutton,06/06/2023,50360837,"14,440.95",Barrow Hedges Primary School Academy,GRANTS & EX GRATIA PAYMENTS,People's Services,Payment - Nursery Funding,A51056
London Borough of Sutton,13/06/2023,50364886,975.00,Barrow Hedges Primary School Academy,GRANTS & EX GRATIA PAYMENTS,Resources,"Grants, Contributions & Donations",A47005
London Borough of Sutton,06/06/2023,50365491,"-2,292.75",Barrow Hedges Primary School Academy,GRANTS & EX GRATIA PAYMENTS,People's Services,Top-up Funding,A51016
London Borough of Sutton,30/03/2023,20050370,897.20,City & Guilds,SUBSCRIPTIONS & PUBLICATIONS,Health and Wellbeing,Examination Fees,A44200
London Borough of Sutton,02/03/2023,20050371,"1,249.60",City & Guilds,SUBSCRIPTIONS & PUBLICATIONS,Health and Wellbeing,Examination Fees,A44200
London Borough of Sutton,23/03/2023,20050373,"1,173.00",City & Guilds,SUBSCRIPTIONS & PUBLICATIONS,Health and Wellbeing,Examination Fees,A44200
London Borough of Sutton,27/04/2023,20050374,502.30,City & Guilds,SUBSCRIPTIONS & PUBLICATIONS,Health and Wellbeing,Examination Fees,A44200
London Borough of Sutton,03/05/2023,20048682,"3,168.55",City of London Corporation,CENTRAL & LOCAL GOVERNMENT,Environment Housing and Neighbourhoods,Hazardous Waste Disposal,A56069
London Borough of Sutton,31/05/2023,20052327,"3,073.68",City Sprint UK (Excel) Ltd,DELIVERY AND COURIER SERVICES,Health and Wellbeing,Hire of Transport - Non Staff,A32000
London Borough of Sutton,01/06/2023,20050889,"33,868.60",Cityglen Ltd,ACCOMMODATION BED & BREAKFAST,Environment Housing and Neighbourhoods,Bed & Breakfast,A56000
London Borough of Sutton,16/06/2023,20051120,"4,260.00",CJA Property Consulting Limited,OFFICE SERVICES,Resources,Professional Fees,A44066
London Borough of Sutton,09/06/2023,50363673,"4,096.12",Claremont Care Svs Ltd,SOCIAL SERVICES RESIDENTIAL,People's Services,Nursing Care - Ext Provider,A56025
London Borough of Sutton,09/06/2023,50363673,-878.84,Claremont Care Svs Ltd,SOCIAL SERVICES RESIDENTIAL,People's Services,Nursing Care - 3rd party top up payment,A56023
London Borough of Sutton,09/06/2023,50363783,"6,236.76",Claremont Care Svs Ltd,SOCIAL SERVICES RESIDENTIAL,People's Services,Nursing Care Short Term,A56026
London Borough of Sutton,09/06/2023,50363783,-836.76,Claremont Care Svs Ltd,SOCIAL SERVICES RESIDENTIAL,People's Services,Nursing Care - 3rd party top up payment,A56023
London Borough of Sutton,09/06/2023,50363788,"5,367.84",Claremont Care Svs Ltd,SOCIAL SERVICES RESIDENTIAL,People's Services,Nursing Care - Ext Provider,A56025
London Borough of Sutton,09/06/2023,50363788,-735.68,Claremont Care Svs Ltd,SOCIAL SERVICES RESIDENTIAL,People's Services,Nursing Care - 3rd party top up payment,A56023
London Borough of Sutton,09/06/2023,50363794,"6,236.76",Claremont Care Svs Ltd,SOCIAL SERVICES RESIDENTIAL,People's Services,Nursing Care - Ext Provider,A56025
London Borough of Sutton,09/06/2023,50363794,-836.76,Claremont Care Svs Ltd,SOCIAL SERVICES RESIDENTIAL,People's Services,Nursing Care - 3rd party top up payment,A56023
London Borough of Sutton,09/06/2023,50363800,"-11,424.00",Claremont Care Svs Ltd,SOCIAL SERVICES RESIDENTIAL,People's Services,Nursing Care - 3rd party top up payment,A56023
London Borough of Sutton,09/06/2023,50363800,"14,613.88",Claremont Care Svs Ltd,SOCIAL SERVICES RESIDENTIAL,People's Services,Nursing Care - Ext Provider,A56025
London Borough of Sutton,09/06/2023,50363803,-878.84,Claremont Care Svs Ltd,SOCIAL SERVICES RESIDENTIAL,People's Services,Nursing Care - 3rd party top up payment,A56023
London Borough of Sutton,09/06/2023,50363803,"7,838.84",Claremont Care Svs Ltd,SOCIAL SERVICES RESIDENTIAL,People's Services,Nursing Care Short Term,A56026
London Borough of Sutton,09/06/2023,50363851,"6,513.96",Claremont Care Svs Ltd,SOCIAL SERVICES RESIDENTIAL,People's Services,Nursing Care - Ext Provider,A56025
London Borough of Sutton,09/06/2023,50363851,-836.76,Claremont Care Svs Ltd,SOCIAL SERVICES RESIDENTIAL,People's Services,Nursing Care - 3rd party top up payment,A56023
London Borough of Sutton,09/06/2023,50363866,"6,487.64",Claremont Care Svs Ltd,SOCIAL SERVICES RESIDENTIAL,People's Services,Nursing Care - Ext Provider,A56025
London Borough of Sutton,09/06/2023,50363866,-750.40,Claremont Care Svs Ltd,SOCIAL SERVICES RESIDENTIAL,People's Services,Nursing Care - 3rd party top up payment,A56023
London Borough of Sutton,09/06/2023,50364010,"4,525.36",Claremont Care Svs Ltd,SOCIAL SERVICES RESIDENTIAL,People's Services,Nursing Care - Ext Provider,A56025
London Borough of Sutton,09/06/2023,50364010,-750.40,Claremont Care Svs Ltd,SOCIAL SERVICES RESIDENTIAL,People's Services,Nursing Care - 3rd party top up payment,A56023
London Borough of Sutton,09/06/2023,50363635,-735.68,Bondcare (London) Ltd,SOCIAL SERVICES RESIDENTIAL,People's Services,Nursing Care - 3rd party top up payment,A56023
London Borough of Sutton,09/06/2023,50363635,"3,720.16",Bondcare (London) Ltd,SOCIAL SERVICES RESIDENTIAL,People's Services,Nursing Care - Ext Provider,A56025
London Borough of Sutton,13/05/2023,50367761,672.00,Clark SLT Of Clark Interventions Limited,CHILDREN'S SERVICES - SEN SERVICES,People's Services,Special Educational Needs,A51015
London Borough of Sutton,24/05/2023,50362747,759.45,Classroom Teachers Ltd,ACADEMIC INSTNS - OTHER,People's Services,Independent School Fees,A56002
London Borough of Sutton,31/05/2023,50362748,759.45,Classroom Teachers Ltd,ACADEMIC INSTNS - OTHER,People's Services,Independent School Fees,A56002
London Borough of Sutton,05/05/2023,50366822,"2,495.77",Clear Thinking Care Limited,SOCIAL SERVICES RESIDENTIAL,People's Services,Supported Living,A56088
London Borough of Sutton,31/05/2023,50366823,"2,468.05",Clear Thinking Care Limited,SOCIAL SERVICES RESIDENTIAL,People's Services,Supported Living,A56088
London Borough of Sutton,02/06/2023,50366824,"2,495.77",Clear Thinking Care Limited,SOCIAL SERVICES RESIDENTIAL,People's Services,Supported Living,A56088
London Borough of Sutton,19/06/2023,50369521,"2,495.77",Clear Thinking Care Limited,SOCIAL SERVICES RESIDENTIAL,People's Services,Supported Living,A56088
London Borough of Sutton,21/06/2023,50370904,"2,495.77",Clear Thinking Care Limited,SOCIAL SERVICES RESIDENTIAL,People's Services,Supported Living,A56088
London Borough of Sutton,15/06/2023,20051926,"9,930.50",Clemlec Group LTD,BUILDING MNTCE - SERVICES,Environment Housing and Neighbourhoods,Grants Given For Capital Purposes,C20004
London Borough of Sutton,20/06/2023,50367217,"1,061.62",CLIA CARE LTD,SOCIAL SERVICES RESIDENTIAL,People's Services,Supported Living,A56088
London Borough of Sutton,20/06/2023,50367217,708.00,CLIA CARE LTD,SOCIAL SERVICES RESIDENTIAL,People's Services,Supported Living,A56088
London Borough of Sutton,20/06/2023,50367217,"3,761.10",CLIA CARE LTD,SOCIAL SERVICES RESIDENTIAL,People's Services,Supported Living,A56088
London Borough of Sutton,20/06/2023,50367217,"2,767.50",CLIA CARE LTD,SOCIAL SERVICES RESIDENTIAL,People's Services,One to One Care,A56108
London Borough of Sutton,20/06/2023,50367217,"-4,149.13",CLIA CARE LTD,SOCIAL SERVICES RESIDENTIAL,People's Services,Nursing Care - 3rd party top up payment,A56023
London Borough of Sutton,11/06/2023,50366677,545.00,Clovecare Ltd,SOCIAL SERVICES RESIDENTIAL,People's Services,Home Care Services,A56019
London Borough of Sutton,11/06/2023,50366677,635.50,Clovecare Ltd,SOCIAL SERVICES RESIDENTIAL,People's Services,Home Care Services,A56019
London Borough of Sutton,18/06/2023,50367732,545.00,Clovecare Ltd,SOCIAL SERVICES RESIDENTIAL,People's Services,Home Care Services,A56019
London Borough of Sutton,18/06/2023,50367732,635.50,Clovecare Ltd,SOCIAL SERVICES RESIDENTIAL,People's Services,Home Care Services,A56019
London Borough of Sutton,25/06/2023,50371915,548.00,Clovecare Ltd,SOCIAL SERVICES RESIDENTIAL,People's Services,Home Care Services,A56019
London Borough of Sutton,09/06/2023,50363491,"4,234.16",Coast Care Homes Ltd,SOCIAL SERVICES RESIDENTIAL,People's Services,Residential Care - Ext Provider,A56114
London Borough of Sutton,09/06/2023,50363531,"12,960.16",Cognithan Ltd,SOCIAL SERVICES RESIDENTIAL,People's Services,Residential Care - Ext Provider,A56114
London Borough of Sutton,02/05/2023,20048444,"15,769.42",Cognus Ltd,LEGAL & PROFESSIONAL SERVICES,People's Services,Consultancy Services,A56007
London Borough of Sutton,02/05/2023,20048445,"148,062.50",Cognus Ltd,LEGAL & PROFESSIONAL SERVICES,People's Services,Special Educational Needs,A51015
London Borough of Sutton,02/05/2023,20048446,"151,477.17",Cognus Ltd,LEGAL & PROFESSIONAL SERVICES,People's Services,Consultancy Services,A56007
London Borough of Sutton,02/05/2023,20048448,"148,062.50",Cognus Ltd,LEGAL & PROFESSIONAL SERVICES,People's Services,Special Educational Needs,A51015
London Borough of Sutton,02/06/2023,20050794,"148,062.50",Cognus Ltd,LEGAL & PROFESSIONAL SERVICES,People's Services,Special Educational Needs,A51015
London Borough of Sutton,02/06/2023,20050795,"231,686.53",Cognus Ltd,LEGAL & PROFESSIONAL SERVICES,People's Services,Consultancy Services,A56007
London Borough of Sutton,02/06/2023,20050796,"151,477.17",Cognus Ltd,LEGAL & PROFESSIONAL SERVICES,People's Services,Consultancy Services,A56007
London Borough of Sutton,02/06/2023,20050797,"15,769.42",Cognus Ltd,LEGAL & PROFESSIONAL SERVICES,People's Services,Special Educational Needs,A51015
London Borough of Sutton,02/06/2023,20050798,"15,769.42",Cognus Ltd,LEGAL & PROFESSIONAL SERVICES,People's Services,Special Educational Needs,A51015
London Borough of Sutton,02/06/2023,20050799,"148,062.50",Cognus Ltd,LEGAL & PROFESSIONAL SERVICES,People's Services,Special Educational Needs,A51015
London Borough of Sutton,02/06/2023,20051328,"42,533.33",Cognus Ltd,LEGAL & PROFESSIONAL SERVICES,People's Services,Consultancy Services,A56007
London Borough of Sutton,01/06/2023,20051330,"78,000.00",Cognus Ltd,LEGAL & PROFESSIONAL SERVICES,People's Services,LAC - Education,A44280
London Borough of Sutton,06/06/2023,50362767,"4,820.00",Cognus Ltd,LEGAL & PROFESSIONAL SERVICES,People's Services,Special Educational Needs,A51015
London Borough of Sutton,07/06/2023,50367768,"1,834.00",Cognus Ltd,LEGAL & PROFESSIONAL SERVICES,People's Services,Miscellaneous Expenses,A49000
London Borough of Sutton,09/06/2023,50363549,"11,981.04",Coleg Elidyr Camphill Communities,CHILDREN'S SERVICES - RESIDENTIAL,People's Services,Interim Placements - Ext Provider,A56102
London Borough of Sutton,06/06/2023,50360603,"9,120.60",Collingwood School Ltd,GRANTS & EX GRATIA PAYMENTS,People's Services,Payment - Nursery Funding,A51056
London Borough of Sutton,29/06/2023,50371408,"7,260.00",Come and Play Childcare Ltd,CHILDREN'S SERVICES - DAY CARE,Resources,Other Supplies & Services,A44291
London Borough of Sutton,26/06/2023,50371380,"2,937.87",Comfort Care Services UK Ltd,SOCIAL SERVICES - DIRECT PAYMENTS,People's Services,Supported Living,A56088
London Borough of Sutton,26/06/2023,50371381,"2,843.10",Comfort Care Services UK Ltd,SOCIAL SERVICES - DIRECT PAYMENTS,People's Services,Supported Living,A56088
London Borough of Sutton,26/06/2023,50371382,"2,179.71",Comfort Care Services UK Ltd,SOCIAL SERVICES - DIRECT PAYMENTS,People's Services,Supported Living,A56088
London Borough of Sutton,26/06/2023,50371383,"2,653.56",Comfort Care Services UK Ltd,SOCIAL SERVICES - DIRECT PAYMENTS,People's Services,Supported Living,A56088
London Borough of Sutton,26/06/2023,50371384,"2,937.87",Comfort Care Services UK Ltd,SOCIAL SERVICES - DIRECT PAYMENTS,People's Services,Supported Living,A56088
London Borough of Sutton,26/06/2023,50371385,"2,937.87",Comfort Care Services UK Ltd,SOCIAL SERVICES - DIRECT PAYMENTS,People's Services,Supported Living,A56088
London Borough of Sutton,26/06/2023,50371386,"2,937.87",Comfort Care Services UK Ltd,SOCIAL SERVICES - DIRECT PAYMENTS,People's Services,Supported Living,A56088
London Borough of Sutton,26/06/2023,50371387,"-2,350.14",Comfort Care Services UK Ltd,SOCIAL SERVICES - DIRECT PAYMENTS,People's Services,Nursing Care - 3rd party top up payment,A56023
London Borough of Sutton,26/06/2023,50371387,"3,411.56",Comfort Care Services UK Ltd,SOCIAL SERVICES - DIRECT PAYMENTS,People's Services,Supported Living,A56088
London Borough of Sutton,19/05/2023,50363331,"4,088.28",Compass Fostering London Ltd,CHILDREN'S SERVICES - FOSTERING & ADOPTION SERVICES,People's Services,Foster Parents Support,A44110
London Borough of Sutton,19/05/2023,50363386,"3,639.09",Compass Fostering London Ltd,CHILDREN'S SERVICES - FOSTERING & ADOPTION SERVICES,People's Services,Foster Parents Support,A44110
London Borough of Sutton,19/05/2023,50363461,"3,753.17",Compass Fostering London Ltd,CHILDREN'S SERVICES - FOSTERING & ADOPTION SERVICES,People's Services,Foster Parents Support,A44110
London Borough of Sutton,01/05/2023,50363414,"4,649.69",Compass Fostering South Ltd,CHILDREN'S SERVICES - FOSTERING & ADOPTION SERVICES,People's Services,Foster Parents Support,A44110
London Borough of Sutton,03/05/2023,50363329,"4,162.86",Connect Fostering Services Ltd,CHILDREN'S SERVICES - FOSTERING & ADOPTION SERVICES,People's Services,Foster Parents Support,A44110
London Borough of Sutton,03/05/2023,50363441,"3,875.00",Connect Fostering Services Ltd,CHILDREN'S SERVICES - FOSTERING & ADOPTION SERVICES,People's Services,Foster Parents Support,A44110
London Borough of Sutton,14/06/2023,50367767,"2,257.80",Connevans Limited,SOCIAL SERVICES - OTHER,People's Services,Equipment,A61013
London Borough of Sutton,06/06/2023,50360651,"8,886.24",Little PioneersSsutton,GRANTS & EX GRATIA PAYMENTS,People's Services,Payment - Nursery Funding,A51056
London Borough of Sutton,06/06/2023,50360742,"1,115.40",Little PioneersSsutton,GRANTS & EX GRATIA PAYMENTS,People's Services,Payment - Nursery Funding,A51056
London Borough of Sutton,08/05/2023,20051390,"2,228.66",Coram Academy Ltd,CONFERENCES,People's Services,Subscriptions,A47010
London Borough of Sutton,13/06/2023,20052290,"1,092.60",Corona Energy,UTILITIES,Resources,Gas,A21003
London Borough of Sutton,13/06/2023,20052290,58.01,Corona Energy,UTILITIES,Resources,Gas,A21003
London Borough of Sutton,13/06/2023,20052291,108.94,Corona Energy,UTILITIES,Resources,Gas,A21003
London Borough of Sutton,13/06/2023,20052291,276.16,Corona Energy,UTILITIES,Resources,Gas,A21003
London Borough of Sutton,13/06/2023,20052291,215.28,Corona Energy,UTILITIES,Resources,Gas,A21003
London Borough of Sutton,13/06/2023,20052291,8.37,Corona Energy,UTILITIES,Resources,Gas,A21003
London Borough of Sutton,25/05/2023,20050251,545.00,Corsair Engineering Ltd,CATERING SERVICES,Resources,Miscellaneous Expenses,A49000
London Borough of Sutton,06/06/2023,50360771,912.60,Cosy Cottage Daycare Ltd,GRANTS & EX GRATIA PAYMENTS,People's Services,Payment - Nursery Funding,A51056
London Borough of Sutton,06/06/2023,50360777,"1,447.20",Cosy Cottage Daycare Ltd,GRANTS & EX GRATIA PAYMENTS,People's Services,Payment - Nursery Funding,A51056
London Borough of Sutton,09/06/2023,50363534,"13,042.86",Country Court Care Homes 2 Ltd,SOCIAL SERVICES RESIDENTIAL,People's Services,Residential Care - Ext Provider,A56114
London Borough of Sutton,09/06/2023,50363581,"4,400.00",Country Court Care Homes 2 Ltd,SOCIAL SERVICES RESIDENTIAL,People's Services,Nursing Care - Ext Provider,A56025
London Borough of Sutton,09/06/2023,50363581,"-1,226.92",Country Court Care Homes 2 Ltd,SOCIAL SERVICES RESIDENTIAL,People's Services,Nursing Care - 3rd party top up payment,A56023
London Borough of Sutton,26/05/2023,20050893,"7,426.56",CPC Project Services LLP,CONSTRUCTION INDUSTRY,HRA,External Fees and Consultants,C20000
London Borough of Sutton,01/06/2023,20050589,"154,067.08",Cranstoun,SOCIAL SERVICES - OTHER,Health and Wellbeing,Provider Contract Payments,A44290
London Borough of Sutton,09/06/2023,50363583,"7,584.16",Cream 1 Ltd,SOCIAL SERVICES RESIDENTIAL,People's Services,Residential Care - Ext Provider,A56114
London Borough of Sutton,09/06/2023,50363583,"5,560.52",Cream 1 Ltd,SOCIAL SERVICES RESIDENTIAL,People's Services,One to One Care,A56108
London Borough of Sutton,22/06/2023,20052624,"1,000.00",Creative Croydon CIC,SUNDRY SUPPLIER - ENV SERVICES,Resources,"Grants, Contributions & Donations",A47005
London Borough of Sutton,02/05/2023,50363327,"6,957.29",Credo Care Limited,CHILDREN'S SERVICE - OTHER,People's Services,Foster Parents Support,A44110
London Borough of Sutton,09/06/2023,50363665,-836.76,CRNH Ltd,SOCIAL SERVICES RESIDENTIAL,People's Services,Nursing Care - 3rd party top up payment,A56023
London Borough of Sutton,09/06/2023,50363665,"6,400.00",CRNH Ltd,SOCIAL SERVICES RESIDENTIAL,People's Services,Nursing Care Short Term,A56026
London Borough of Sutton,09/06/2023,50363677,"4,096.12",CRNH Ltd,SOCIAL SERVICES RESIDENTIAL,People's Services,Nursing Care - Ext Provider,A56025
London Borough of Sutton,09/06/2023,50363677,-878.84,CRNH Ltd,SOCIAL SERVICES RESIDENTIAL,People's Services,Nursing Care - 3rd party top up payment,A56023
London Borough of Sutton,09/06/2023,50363787,658.03,CRNH Ltd,SOCIAL SERVICES RESIDENTIAL,People's Services,Nursing Care - Ext Provider,A56025
London Borough of Sutton,09/06/2023,50363787,31.39,CRNH Ltd,SOCIAL SERVICES RESIDENTIAL,People's Services,Nursing Care - 3rd party top up payment,A56023
London Borough of Sutton,09/06/2023,50363802,-836.76,CRNH Ltd,SOCIAL SERVICES RESIDENTIAL,People's Services,Nursing Care - 3rd party top up payment,A56023
London Borough of Sutton,09/06/2023,50363802,"5,400.00",CRNH Ltd,SOCIAL SERVICES RESIDENTIAL,People's Services,Nursing Care Short Term,A56026
London Borough of Sutton,09/06/2023,50363839,"4,096.12",CRNH Ltd,SOCIAL SERVICES RESIDENTIAL,People's Services,Nursing Care - Ext Provider,A56025
London Borough of Sutton,09/06/2023,50363839,-878.84,CRNH Ltd,SOCIAL SERVICES RESIDENTIAL,People's Services,Nursing Care - 3rd party top up payment,A56023
London Borough of Sutton,09/06/2023,50363861,"6,028.52",CRNH Ltd,SOCIAL SERVICES RESIDENTIAL,People's Services,Nursing Care - Ext Provider,A56025
London Borough of Sutton,09/06/2023,50363861,-836.76,CRNH Ltd,SOCIAL SERVICES RESIDENTIAL,People's Services,Nursing Care - 3rd party top up payment,A56023
London Borough of Sutton,09/06/2023,50363934,"4,096.12",CRNH Ltd,SOCIAL SERVICES RESIDENTIAL,People's Services,Nursing Care - Ext Provider,A56025
London Borough of Sutton,09/06/2023,50363934,-878.84,CRNH Ltd,SOCIAL SERVICES RESIDENTIAL,People's Services,Nursing Care - 3rd party top up payment,A56023
London Borough of Sutton,09/06/2023,50363936,"4,096.12",CRNH Ltd,SOCIAL SERVICES RESIDENTIAL,People's Services,Nursing Care - Ext Provider,A56025
London Borough of Sutton,09/06/2023,50363936,-878.84,CRNH Ltd,SOCIAL SERVICES RESIDENTIAL,People's Services,Nursing Care - 3rd party top up payment,A56023
London Borough of Sutton,09/06/2023,50364017,"4,096.12",CRNH Ltd,SOCIAL SERVICES RESIDENTIAL,People's Services,Nursing Care - Ext Provider,A56025
London Borough of Sutton,09/06/2023,50364017,-878.84,CRNH Ltd,SOCIAL SERVICES RESIDENTIAL,People's Services,Nursing Care - 3rd party top up payment,A56023
London Borough of Sutton,09/06/2023,50364029,"5,400.00",CRNH Ltd,SOCIAL SERVICES RESIDENTIAL,People's Services,Nursing Care - Ext Provider,A56025
London Borough of Sutton,09/06/2023,50364029,-836.76,CRNH Ltd,SOCIAL SERVICES RESIDENTIAL,People's Services,Nursing Care - 3rd party top up payment,A56023
London Borough of Sutton,30/04/2023,20052358,"19,618.00",Cromwood Limited,ACCOMMODATION BED & BREAKFAST,Environment Housing and Neighbourhoods,Bed & Breakfast,A56000
London Borough of Sutton,09/06/2023,50363711,"6,744.87",Cross Care Services Ltd,SOCIAL SERVICES RESIDENTIAL,People's Services,Nursing Care Short Term,A56026
London Borough of Sutton,09/06/2023,50363740,"4,096.12",Cross Care Services Ltd,SOCIAL SERVICES RESIDENTIAL,People's Services,Nursing Care - Ext Provider,A56025
London Borough of Sutton,09/06/2023,50363764,-878.84,Cross Care Services Ltd,SOCIAL SERVICES RESIDENTIAL,People's Services,Nursing Care - 3rd party top up payment,A56023
London Borough of Sutton,09/06/2023,50363764,"4,096.12",Cross Care Services Ltd,SOCIAL SERVICES RESIDENTIAL,People's Services,Nursing Care - Ext Provider,A56025
London Borough of Sutton,09/06/2023,50363815,"4,096.12",Cross Care Services Ltd,SOCIAL SERVICES RESIDENTIAL,People's Services,Nursing Care - Ext Provider,A56025
London Borough of Sutton,09/06/2023,50363815,-878.84,Cross Care Services Ltd,SOCIAL SERVICES RESIDENTIAL,People's Services,Nursing Care - 3rd party top up payment,A56023
London Borough of Sutton,09/06/2023,50363908,"4,096.12",Cross Care Services Ltd,SOCIAL SERVICES RESIDENTIAL,People's Services,Nursing Care - Ext Provider,A56025
London Borough of Sutton,09/06/2023,50363908,-878.84,Cross Care Services Ltd,SOCIAL SERVICES RESIDENTIAL,People's Services,Nursing Care - 3rd party top up payment,A56023
London Borough of Sutton,09/06/2023,50363939,"3,821.24",Cross Care Services Ltd,SOCIAL SERVICES RESIDENTIAL,People's Services,Nursing Care Short Term,A56026
London Borough of Sutton,09/06/2023,50363953,-836.76,Cross Care Services Ltd,SOCIAL SERVICES RESIDENTIAL,People's Services,Nursing Care - 3rd party top up payment,A56023
London Borough of Sutton,09/06/2023,50363953,"3,821.24",Cross Care Services Ltd,SOCIAL SERVICES RESIDENTIAL,People's Services,Nursing Care Short Term,A56026
London Borough of Sutton,09/06/2023,50363996,"4,096.12",Cross Care Services Ltd,SOCIAL SERVICES RESIDENTIAL,People's Services,Nursing Care - Ext Provider,A56025
London Borough of Sutton,09/06/2023,50363996,-878.84,Cross Care Services Ltd,SOCIAL SERVICES RESIDENTIAL,People's Services,Nursing Care - 3rd party top up payment,A56023
London Borough of Sutton,09/06/2023,50364036,"4,096.12",Cross Care Services Ltd,SOCIAL SERVICES RESIDENTIAL,People's Services,Nursing Care - Ext Provider,A56025
London Borough of Sutton,09/06/2023,50364036,-878.84,Cross Care Services Ltd,SOCIAL SERVICES RESIDENTIAL,People's Services,Nursing Care - 3rd party top up payment,A56023
London Borough of Sutton,28/03/2023,20047731,"46,200.77",LONDON BOROUGH OF CROYDON,CENTRAL & LOCAL GOVERNMENT,Environment Housing and Neighbourhoods,Civic Amenity,A56052
London Borough of Sutton,16/03/2023,20049126,"916,299.42",LONDON BOROUGH OF CROYDON,CENTRAL & LOCAL GOVERNMENT,Environment Housing and Neighbourhoods,Gate Fee Tonnage,A56072
London Borough of Sutton,16/03/2023,20049127,"298,477.42",LONDON BOROUGH OF CROYDON,CENTRAL & LOCAL GOVERNMENT,Environment Housing and Neighbourhoods,Gate Fee Tonnage,A56072
London Borough of Sutton,22/05/2023,20050751,"56,472.83",LONDON BOROUGH OF CROYDON,CENTRAL & LOCAL GOVERNMENT,Environment Housing and Neighbourhoods,Civic Amenity,A56052
London Borough of Sutton,23/05/2023,20050752,"7,228.53",LONDON BOROUGH OF CROYDON,CENTRAL & LOCAL GOVERNMENT,Environment Housing and Neighbourhoods,Idverde - Contract Payment,A56100
London Borough of Sutton,06/06/2023,20051641,"134,072.22",LONDON BOROUGH OF CROYDON,CENTRAL & LOCAL GOVERNMENT,Environment Housing and Neighbourhoods,Idverde - Contract Payment,A56100
London Borough of Sutton,06/06/2023,20051642,"802,127.61",LONDON BOROUGH OF CROYDON,CENTRAL & LOCAL GOVERNMENT,Environment Housing and Neighbourhoods,Waste Contractor Payment,A56057
London Borough of Sutton,24/03/2023,20052176,"6,145.31",LONDON BOROUGH OF CROYDON,CENTRAL & LOCAL GOVERNMENT,Environment Housing and Neighbourhoods,Idverde - Contract Payment,A56100
London Borough of Sutton,24/05/2023,50362769,"4,997.95",LONDON BOROUGH OF CROYDON,CENTRAL & LOCAL GOVERNMENT,People's Services,Childrens Social Care Transport,A32009
London Borough of Sutton,24/05/2023,50362770,"4,305.92",LONDON BOROUGH OF CROYDON,CENTRAL & LOCAL GOVERNMENT,People's Services,Childrens Social Care Transport,A32009
London Borough of Sutton,02/06/2023,50363374,"2,884.00",LONDON BOROUGH OF CROYDON,CENTRAL & LOCAL GOVERNMENT,People's Services,Foster Parents Support,A44110
London Borough of Sutton,02/06/2023,50363375,"3,193.00",LONDON BOROUGH OF CROYDON,CENTRAL & LOCAL GOVERNMENT,People's Services,Foster Parents Support,A44110
London Borough of Sutton,02/06/2023,50363376,"3,193.00",LONDON BOROUGH OF CROYDON,CENTRAL & LOCAL GOVERNMENT,People's Services,Foster Parents Support,A44110
London Borough of Sutton,02/06/2023,50363377,"3,193.00",LONDON BOROUGH OF CROYDON,CENTRAL & LOCAL GOVERNMENT,People's Services,Foster Parents Support,A44110
London Borough of Sutton,02/06/2023,50363378,"3,090.00",LONDON BOROUGH OF CROYDON,CENTRAL & LOCAL GOVERNMENT,People's Services,Foster Parents Support,A44110
London Borough of Sutton,02/06/2023,50363379,"3,193.00",LONDON BOROUGH OF CROYDON,CENTRAL & LOCAL GOVERNMENT,People's Services,Foster Parents Support,A44110
London Borough of Sutton,31/05/2023,20050696,"9,115.00",Croydon Court Ltd,ACCOMMODATION BED & BREAKFAST,Environment Housing and Neighbourhoods,Bed & Breakfast,A56000
London Borough of Sutton,31/05/2023,20050743,"1,193.50",Croydon Court Ltd,ACCOMMODATION BED & BREAKFAST,People's Services,Temporary Residential Accommodation,A44140
London Borough of Sutton,06/06/2023,50360781,912.60,REDACTED - PERSONAL DATA,GRANTS & EX GRATIA PAYMENTS,People's Services,Payment - Nursery Funding,A51056
London Borough of Sutton,09/06/2023,50363629,"8,118.44",CSS Ltd,SOCIAL SERVICES RESIDENTIAL,People's Services,Residential Care - Ext Provider,A56114
London Borough of Sutton,14/06/2023,50365615,683.76,CSS Ltd,SOCIAL SERVICES RESIDENTIAL,People's Services,Day Care Services,A56021
London Borough of Sutton,31/05/2023,20050859,"2,889.12",Cubiquity Limited,OFFICE SERVICES,Resources,Printing,A43010
London Borough of Sutton,06/06/2023,50360792,"179,114.27",Culvers House Primary School,GRANTS & EX GRATIA PAYMENTS,People's Services,Payments to Schools,A51013
London Borough of Sutton,06/06/2023,50360844,"10,134.00",Culvers House Primary School,GRANTS & EX GRATIA PAYMENTS,People's Services,Payment - Nursery Funding,A51056
London Borough of Sutton,06/06/2023,50360892,"8,146.00",Culvers House Primary School,GRANTS & EX GRATIA PAYMENTS,People's Services,Payment - Primary PE and Sport Premium,A51028
London Borough of Sutton,06/06/2023,50360913,"5,002.50",Culvers House Primary School,GRANTS & EX GRATIA PAYMENTS,People's Services,Payment - Covid 19 Recovery Premium,A51039
London Borough of Sutton,06/06/2023,50360943,"7,965.00",Culvers House Primary School,GRANTS & EX GRATIA PAYMENTS,People's Services,Payment - school led tutoring grant,A51060
London Borough of Sutton,13/06/2023,50364898,"2,355.00",Culvers House Primary School,GRANTS & EX GRATIA PAYMENTS,Resources,"Grants, Contributions & Donations",A47005
London Borough of Sutton,30/05/2023,20050720,"5,000.00",Cura surveys Limited,SUNDRY SUPPLIER - ENV SERVICES,Development Growth and Regeneration,External Fees and Consultants,C20000
London Borough of Sutton,09/06/2023,50363542,"6,400.00",Curado Limited,GRANTS & EX GRATIA PAYMENTS,People's Services,Residential Care - Ext Provider,A56114
London Borough of Sutton,09/06/2023,50363642,"4,800.00",Curado Limited,GRANTS & EX GRATIA PAYMENTS,People's Services,Interim Placements - Ext Provider,A56102
London Borough of Sutton,20/06/2023,50367270,"1,928.57",Curado Limited,GRANTS & EX GRATIA PAYMENTS,People's Services,Supported Living,A56088
London Borough of Sutton,31/05/2023,20050633,"2,383.33",Cushman & Wakefield Debenham Tie Leung Limited,LEGAL & PROFESSIONAL SERVICES,Development Growth and Regeneration,External Fees and Consultants,C20000
London Borough of Sutton,31/05/2023,20050634,"10,500.00",Cushman & Wakefield Debenham Tie Leung Limited,LEGAL & PROFESSIONAL SERVICES,Development Growth and Regeneration,External Fees and Consultants,C20000
London Borough of Sutton,31/05/2023,20050635,"1,680.00",Cushman & Wakefield Debenham Tie Leung Limited,LEGAL & PROFESSIONAL SERVICES,Development Growth and Regeneration,External Fees and Consultants,C20000
London Borough of Sutton,15/06/2023,20052066,"4,300.00",Cushman & Wakefield Debenham Tie Leung Limited,LEGAL & PROFESSIONAL SERVICES,Development Growth and Regeneration,External Fees and Consultants,C20000
London Borough of Sutton,08/06/2023,20051316,581.73,Cygnet IT Services CIC,BUSINESS & COMPUTER SYSTEMS,Resources,Equipment And Materials Repairs & Maintenance,A40051
London Borough of Sutton,11/06/2023,20051168,805.00,REDACTED - PERSONAL DATA,GRANTS & EX GRATIA PAYMENTS,Environment Housing and Neighbourhoods,Temporary Protection - Homeless Persons,A62028
London Borough of Sutton,05/06/2023,20051065,"1,667.10",Dariba Design Limited,CONSULTING ARCHITECTS ENGINEER,Environment Housing and Neighbourhoods,Grants Given For Capital Purposes,C20004
London Borough of Sutton,05/06/2023,20051732,"1,753.74",Dariba Design Limited,CONSULTING ARCHITECTS ENGINEER,Environment Housing and Neighbourhoods,Grants Given For Capital Purposes,C20004
London Borough of Sutton,05/06/2023,20050890,"4,488.00",David Ogilvie Engineering Ltd,EQUIPMENT MAINTENANCE & REPAIR,Environment Housing and Neighbourhoods,Payments to Contractors,C14000
London Borough of Sutton,01/06/2023,20050769,785.73,Angel Lettings,ACCOMMODATION BED & BREAKFAST,Environment Housing and Neighbourhoods,Temporary Protection - Homeless Persons,A62028
London Borough of Sutton,01/06/2023,20050768,989.43,Angel Lettings,ACCOMMODATION BED & BREAKFAST,Environment Housing and Neighbourhoods,Temporary Protection - Homeless Persons,A62028
London Borough of Sutton,09/06/2023,20051450,"1,209.00",REDACTED - PERSONAL DATA,GRANTS & EX GRATIA PAYMENTS,Environment Housing and Neighbourhoods,Temporary Protection - Homeless Persons,A62028
London Borough of Sutton,31/05/2023,20050763,"1,395.00",Dellhome Limited,ACCOMMODATION BED & BREAKFAST,Environment Housing and Neighbourhoods,Bed & Breakfast,A56000
London Borough of Sutton,31/05/2023,20050764,"1,395.00",Dellhome Limited,ACCOMMODATION BED & BREAKFAST,Environment Housing and Neighbourhoods,Bed & Breakfast,A56000
London Borough of Sutton,31/05/2023,20050765,"1,395.00",Dellhome Limited,ACCOMMODATION BED & BREAKFAST,Environment Housing and Neighbourhoods,Bed & Breakfast,A56000
London Borough of Sutton,31/05/2023,20050766,"1,860.00",Dellhome Limited,ACCOMMODATION BED & BREAKFAST,Environment Housing and Neighbourhoods,Bed & Breakfast,A56000
London Borough of Sutton,31/05/2023,20050770,"2,480.00",Dellhome Limited,ACCOMMODATION BED & BREAKFAST,Environment Housing and Neighbourhoods,Bed & Breakfast,A56000
London Borough of Sutton,31/05/2023,20050772,"1,190.00",Dellhome Limited,ACCOMMODATION BED & BREAKFAST,Environment Housing and Neighbourhoods,Bed & Breakfast,A56000
London Borough of Sutton,31/05/2023,20050773,"1,125.00",Dellhome Limited,ACCOMMODATION BED & BREAKFAST,Environment Housing and Neighbourhoods,Bed & Breakfast,A56000
London Borough of Sutton,31/05/2023,20050774,"2,015.00",Dellhome Limited,ACCOMMODATION BED & BREAKFAST,Environment Housing and Neighbourhoods,Bed & Breakfast,A56000
London Borough of Sutton,31/05/2023,20050775,"1,395.00",Dellhome Limited,ACCOMMODATION BED & BREAKFAST,Environment Housing and Neighbourhoods,Bed & Breakfast,A56000
London Borough of Sutton,02/06/2023,20050869,"35,867.00",Delta Wise Limited,ACCOMMODATION BED & BREAKFAST,Environment Housing and Neighbourhoods,Bed & Breakfast,A56000
London Borough of Sutton,08/06/2023,20051274,"1,860.00",Denhan Property Services,ACCOMMODATION BED & BREAKFAST,Environment Housing and Neighbourhoods,Bed & Breakfast,A56000
London Borough of Sutton,08/06/2023,20051275,"2,077.00",Denhan Property Services,ACCOMMODATION BED & BREAKFAST,Environment Housing and Neighbourhoods,Bed & Breakfast,A56000
London Borough of Sutton,08/06/2023,20051276,"1,116.00",Denhan Property Services,ACCOMMODATION BED & BREAKFAST,Environment Housing and Neighbourhoods,Bed & Breakfast,A56000
London Borough of Sutton,08/06/2023,20051278,"2,015.00",Denhan Property Services,ACCOMMODATION BED & BREAKFAST,Environment Housing and Neighbourhoods,Bed & Breakfast,A56000
London Borough of Sutton,08/06/2023,20051279,740.00,Denhan Property Services,ACCOMMODATION BED & BREAKFAST,Environment Housing and Neighbourhoods,Bed & Breakfast,A56000
London Borough of Sutton,08/06/2023,20051281,"1,929.75",Denhan Property Services,ACCOMMODATION BED & BREAKFAST,Environment Housing and Neighbourhoods,Bed & Breakfast,A56000
London Borough of Sutton,08/06/2023,20051284,"1,612.00",Denhan Property Services,ACCOMMODATION BED & BREAKFAST,Environment Housing and Neighbourhoods,Bed & Breakfast,A56000
London Borough of Sutton,09/06/2023,50363574,"3,505.00",Denville Hall 2012,SOCIAL SERVICES RESIDENTIAL,People's Services,Residential Care - Ext Provider,A56114
London Borough of Sutton,30/05/2023,20050511,"20,944.00",Department of Health Income,SUNDRY SUPPLIER - FINANCE,Health and Wellbeing,Provider Contract Payments,A44290
London Borough of Sutton,09/06/2023,50363623,"3,175.04",Devaglade Trading Limited,SOCIAL SERVICES RESIDENTIAL,People's Services,Residential Care - Ext Provider,A56114
London Borough of Sutton,06/06/2023,50360785,"262,600.44",Devonshire Primary School,GRANTS & EX GRATIA PAYMENTS,People's Services,Payments to Schools,A51013
London Borough of Sutton,06/06/2023,50360845,"10,848.60",Devonshire Primary School,GRANTS & EX GRATIA PAYMENTS,People's Services,Payment - Nursery Funding,A51056
London Borough of Sutton,06/06/2023,50360885,"8,904.00",Devonshire Primary School,GRANTS & EX GRATIA PAYMENTS,People's Services,Payment - Primary PE and Sport Premium,A51028
London Borough of Sutton,06/06/2023,50360906,"6,778.75",Devonshire Primary School,GRANTS & EX GRATIA PAYMENTS,People's Services,Payment - Covid 19 Recovery Premium,A51039
London Borough of Sutton,06/06/2023,50360936,"11,745.00",Devonshire Primary School,GRANTS & EX GRATIA PAYMENTS,People's Services,Payment - school led tutoring grant,A51060
London Borough of Sutton,13/06/2023,50364899,"3,000.00",Devonshire Primary School,GRANTS & EX GRATIA PAYMENTS,Resources,"Grants, Contributions & Donations",A47005
London Borough of Sutton,22/05/2023,20050455,"1,300.00",D'Gama Ltd,PLS LANDLORDS,Environment Housing and Neighbourhoods,Temporary Protection - Homeless Persons,A62028
London Borough of Sutton,29/04/2023,20050456,"1,300.00",D'Gama Ltd,PLS LANDLORDS,Environment Housing and Neighbourhoods,Temporary Protection - Homeless Persons,A62028
London Borough of Sutton,17/06/2023,50366338,"7,092.85",Direct Care And Support Services,ACCOMMODATION - OTHER,People's Services,Supported Living,A56088
London Borough of Sutton,17/06/2023,50366338,"1,307.32",Direct Care And Support Services,ACCOMMODATION - OTHER,People's Services,Supported Living,A56088
London Borough of Sutton,17/06/2023,50366339,"7,092.85",Direct Care And Support Services,ACCOMMODATION - OTHER,People's Services,Supported Living,A56088
London Borough of Sutton,17/06/2023,50366339,"1,307.32",Direct Care And Support Services,ACCOMMODATION - OTHER,People's Services,Supported Living,A56088
London Borough of Sutton,17/06/2023,50366443,"7,092.85",Direct Care And Support Services,ACCOMMODATION - OTHER,People's Services,Supported Living,A56088
London Borough of Sutton,17/06/2023,50366443,"1,307.32",Direct Care And Support Services,ACCOMMODATION - OTHER,People's Services,Supported Living,A56088
